{"text_format":"1","workbook":"xlsx","n_sheets":31,"sheets":["NatC Tumbling arrière","NatC Tumbling Mixte","NatC Tumbling avant","ListeClubAvril2023","FFGym Clubs","FedB Tumbling avant","FedB Tumbling arrière","NatB Tumbling Mixte","NatC MT - MT","NatC MT - Saut","FedB MT - MT","FedA Tumbling avant","FedA Tumbling arrière","NatB Tumbling avant","NatB Tumbling arrière","FedA MT - MT","NatB MT - Saut","ListeDiffSol","NatB MT - MT","ListeClubs 95 ","liste","Activer Macro 97-2003","Activer Macro2007","SOL Explications","Explications","MessageErreurO365","fiche engagement","FED Dif Sol","PERF Dif Sol","dif tumbling","dif mini tramp"],"not_rendered":{"charts":0,"images":23,"macros":1,"external_links":1,"defined_names":66,"comments":0,"pivot_tables":0},"unopened":[],"bounds":{"document_bytes":16777216,"sheet_cells":100000,"rows_first":2000,"rows_last":500,"rows_between":2000,"halvings":0,"cell_chars":16384,"cell_head_chars":4096},"cells_cut":0,"cells_raw":0,"read":"whole","date_system":"1900"}

{"sheet":"NatC Tumbling arrière","index":0,"n_rows":44,"n_cols":4,"rows_kept":44,"cut":false,"hidden":true,"merged":[[0,0,0,2],[2,0,16,0],[17,0,37,0],[38,0,42,0],[43,0,50,0]]}
["Séries autorisée au Tumbling en arrière\nTeamGym",null,null,{"$f":"COUNTA(B3:B29)","v":27}]
[null,"Séries","Valeur"]
[null,"Saut de mains 1 pied Roue ",0.5]
[null,"Saut de mains 1 pied Rondade",0.5]
[null,"Roue Roue pied pied ",0.5]
[null,"Roue saut de mains ",0.5]
[null,"Roue Rondade ",0.5]
[null,"Salto av décalé groupé Rondade  ",0.6]
[null,"Rondade flip ",1]
[null,"Salto av décalé groupé Rondade  flip ",1.1000000000000001]
[null,"Rondade salto groupé ",1.4]
[null,"Rondade flip salto groupé ",1.4]
[null,"Rondade salto carpé ",1.5]
[null,"Rondade flip salto carpé ",1.5]
[null,"Salto av décalé groupé Rondade  flip salto groupé ",1.5]
[null,"Salto av décalé groupé Rondade  Salto groupé ",1.5]
[null,"Rondade salto tendu ",1.6]
["3 éléments","Rondade flip salto tendu ",1.6]
[null,"Salto av décalé groupé Rondade  flip salto carpé ",1.6]
[null,"Salto av décalé groupé Rondade  Salto carpé ",1.6]
[null,"Salto av décalé groupé Rondade  flip salto tendu ",1.7]
[null,"Salto av décalé groupé Rondade  Salto tendu ",1.7]
[null,"Salto av décalé carpé Rondade  flip salto Tendu ",1.8]
[null,"Salto av décalé carpé Rondade  Salto tendu ",1.8]
[null,"Salto av décalé carpé Rondade  flip salto carpé ",1.7]
[null,"Salto av décalé carpé Rondade  Salto carpé ",1.7]
[null,"Salto av décalé carpé Rondade  flip salto groupé ",1.6]
[null,"Salto av décalé carpé Rondade  Salto groupé ",1.6]
[null,"Série Nulle",0]
[]
[]
[]
[]
[]
[]
[]
[]
[]
["4 éléments"]
[]
[]
[]
[]
["4 éléments"]

{"sheet":"NatC Tumbling Mixte","index":1,"n_rows":48,"n_cols":4,"rows_kept":48,"cut":false,"hidden":true,"merged":[[0,0,0,2],[2,0,16,0],[17,0,33,0],[34,0,38,0],[39,0,51,0]]}
["Séries autorisée au Tumbling en arrière\nTeamGym",null,null,{"$f":"COUNTA(B3:B48)","v":46}]
[null,"Séries","Valeur"]
[null,"Roue Rondade",0.5]
[null,"Saut de mains 1 pied Roue ",0.5]
[null,"Saut de mains 1 pied Rondade",0.5]
[null,"Roue Roue pied pied ",0.5]
[null,"Roue saut de mains ",0.5]
[null,"Roue Rondade ",0.5]
[null,"Salto av décalé groupé Rondade  ",0.6]
[null,"Saut de mains 1 pied Roue",1]
[null,"Saut de mains 1 pied Rondade",1]
[null,"Saut de mains 1 pied Saut de mains",1]
[null,"Roue saut de mains",1]
[null,"Rondade flip ",1]
[null,"Salto av décalé groupé Rondade  flip ",1.1000000000000001]
[null,"Saut de mains flip av ",1.2]
[null,"Salto av décalé groupé roue  ",1.4]
["3 éléments","Salto av décalé groupé Rondade  ",1.4]
[null,"Salto av décalé groupé saut de mains ",1.4]
[null,"Rondade salto groupé ",1.4]
[null,"Rondade flip salto groupé ",1.4]
[null,"Rondade salto carpé ",1.5]
[null,"Rondade flip salto carpé ",1.5]
[null,"Salto av décalé groupé Rondade  flip salto groupé ",1.5]
[null,"Salto av décalé groupé Rondade  Salto groupé ",1.5]
[null,"Saut de mains salto av groupé",1.6]
[null,"Saut de mains 1 pied Saut de mains salto groupé ",1.6]
[null,"Rondade salto tendu ",1.6]
[null,"Rondade flip salto tendu ",1.6]
[null,"Salto av décalé groupé Rondade  flip salto carpé ",1.6]
[null,"Salto av décalé groupé Rondade  Salto carpé ",1.6]
[null,"Salto av décalé carpé Rondade  flip salto groupé ",1.6]
[null,"Salto av décalé carpé Rondade  Salto groupé ",1.6]
[null,"Saut de mains salto av carpé",1.7]
["4 éléments","Saut de mains 1 pied Saut de mains salto carpé",1.7]
[null,"Salto av décalé groupé saut de mains salto groupé ",1.7]
[null,"Salto Groupé Salto Carpé",1.7]
[null,"Salto av décalé groupé Rondade  flip salto tendu ",1.7]
[null,"Salto av décalé groupé Rondade  Salto tendu ",1.7]
["4 éléments","Salto av décalé carpé Rondade  flip salto carpé ",1.7]
[null,"Salto av décalé carpé Rondade  Salto carpé ",1.7]
[null,"Saut de mains salto av tendu",1.8]
[null,"Saut de mains 1 pied Saut de mains salto tendu",1.8]
[null,"Salto av décalé groupé saut de mains salto carpé ",1.8]
[null,"Salto Tendu Salto Groupé",1.8]
[null,"Salto av décalé carpé Rondade  flip salto Tendu ",1.8]
[null,"Salto av décalé carpé Rondade  Salto tendu ",1.8]
[null,"Série Nulle ",0]

{"sheet":"NatC Tumbling avant","index":2,"n_rows":57,"n_cols":4,"rows_kept":57,"cut":false,"hidden":true,"merged":[[0,0,0,2],[2,0,31,0],[33,0,55,0],[56,0,67,0],[68,0,69,0]]}
["Séries autorisées au Tumbling en avant\nTeamGym",null,null,{"$f":"COUNTA(SerieAvantTumblingNatC)","v":20}]
[null,"Séries","Valeur"]
[null,"Roue Rondade",0.5]
[null,"Saut de mains 1 pied Roue",1]
[null,"Saut de mains 1 pied Rondade",1]
[null,"Saut de mains 1 pied Saut de mains",1]
[null,"Roue saut de mains",1]
[null,"Saut de mains flip av ",1.2]
[null,"Salto av décalé groupé roue  ",1.4]
[null,"Salto av décalé groupé Rondade  ",1.4]
[null,"Salto av décalé groupé saut de mains ",1.4]
[null,"Saut de mains salto av groupé",1.6]
[null,"Saut de mains 1 pied Saut de mains salto groupé ",1.6]
[null,"Saut de mains salto av carpé",1.7]
[null,"Saut de mains 1 pied Saut de mains salto carpé",1.7]
[null,"Salto av décalé groupé saut de mains salto groupé ",1.7]
[null,"Salto Groupé Salto Carpé",1.7]
[null,"Saut de mains salto av tendu",1.8]
[null,"Saut de mains 1 pied Saut de mains salto tendu",1.8]
[null,"Salto av décalé groupé saut de mains salto carpé ",1.8]
[null,"Salto Tendu Salto Groupé",1.8]
[null,"Série Nulle ",0]
[]
[]
[]
[]
[]
[]
[]
[]
[]
[]
[]
["3 éléments"]
[]
[]
[]
[]
[]
[]
[]
[]
[]
[]
[]
[]
[]
[]
[]
[]
[]
[]
[]
[]
[]
[]
["3 éléments\n(suite)"]

{"sheet":"ListeClubAvril2023","index":3,"n_rows":298,"n_cols":4,"rows_kept":298,"cut":false,"hidden":true,"merged":[]}
["Nom","Numéro d'affiliation","Ville"]
["A S C A","52072.054","LA CHAPELLE ST-AUBIN",{"$f":"VLOOKUP(A2,'FFGym Clubs'!A:A,1,FALSE)","v":"A S C A"}]
["A S COURONNAISE ","28076.027","PETIT COURONNE",{"$f":"VLOOKUP(A3,'FFGym Clubs'!A:A,1,FALSE)","v":"A S COURONNAISE "}]
["A.N.T. AVIGNON","93084.033","AVIGNON",{"$f":"VLOOKUP(A4,'FFGym Clubs'!A:A,1,FALSE)","v":"A.N.T. AVIGNON"}]
["A.S.P.C. GYM'SPORT","52049.082","LES PONTS DE CE",{"$f":"VLOOKUP(A5,'FFGym Clubs'!A:A,1,FALSE)","v":"A.S.P.C. GYM'SPORT"}]
["ABBEVILLE GYM","32080.065","ABBEVILLE",{"$f":"VLOOKUP(A6,'FFGym Clubs'!A:A,1,FALSE)","v":"ABBEVILLE GYM"}]
["AC CHAPELAIN","52044.061","LA CHAPELLE SUR ERDRE",{"$f":"VLOOKUP(A7,'FFGym Clubs'!A:A,1,FALSE)","v":"AC CHAPELAIN"}]
["ACR GYM","24041.061","ROMORANTIN",{"$f":"VLOOKUP(A8,'FFGym Clubs'!A:A,1,FALSE)","v":"ACR GYM"}]
["ACRO VOLTIGE","52085.103","LUCON",{"$f":"VLOOKUP(A9,'FFGym Clubs'!A:A,1,FALSE)","v":"ACRO VOLTIGE"}]
["ACTI' GYM CAVAILLON","93084.135","CAVAILLON",{"$f":"VLOOKUP(A10,'FFGym Clubs'!A:A,1,FALSE)","v":"ACTI' GYM CAVAILLON"}]
["AG DE LA MONTAGNE","52044.047","LA MONTAGNE",{"$f":"VLOOKUP(A11,'FFGym Clubs'!A:A,1,FALSE)","v":"AG DE LA MONTAGNE"}]
["AGM GYM VESOUL","27070.055","VESOUL",{"$f":"VLOOKUP(A12,'FFGym Clubs'!A:A,1,FALSE)","v":"AGM GYM VESOUL"}]
["ALBONAISE GYMNASTIQUE DE FRANCONVILLE","11095.301","FRANCONVILLE",{"$f":"VLOOKUP(A13,'FFGym Clubs'!A:A,1,FALSE)","v":"ALBONAISE GYMNASTIQUE DE FRANCONVILLE"}]
["ALERTE SAINT GEORGES SUR CHER","24041.063","SAINT GEORGES SUR CHER",{"$f":"VLOOKUP(A14,'FFGym Clubs'!A:A,1,FALSE)","v":"ALERTE SAINT GEORGES SUR CHER"}]
["ALLIANCE TOURQUENNOISE DE GYMNASTIQUE","32059.254","TOURCOING",{"$f":"VLOOKUP(A15,'FFGym Clubs'!A:A,1,FALSE)","v":"ALLIANCE TOURQUENNOISE DE GYMNASTIQUE"}]
["AMICALE DE VILLENEUVE LA GARENNE - COURS MUNICIPAL DE GYMNASTIQUE DE VILLENEUVE","11092.251","VILLENEUVE LA GARENNE",{"$f":"VLOOKUP(A16,'FFGym Clubs'!A:A,1,FALSE)","v":"AMICALE DE VILLENEUVE LA GARENNE - COURS MUNICIPAL DE GYMNASTIQUE DE VILLENEUVE"}]
["AMICALE LAIQUE BILLERE","75064.103","BILLERE",{"$f":"VLOOKUP(A17,'FFGym Clubs'!A:A,1,FALSE)","v":"AMICALE LAIQUE BILLERE"}]
["AMICALE LAIQUE JULES FERRY","84001.021","AMBERIEU EN BUGEY",{"$f":"VLOOKUP(A18,'FFGym Clubs'!A:A,1,FALSE)","v":"AMICALE LAIQUE JULES FERRY"}]
["AMICALE LAIQUE PARAY","27071.038","PARAY LE MONIAL",{"$f":"VLOOKUP(A19,'FFGym Clubs'!A:A,1,FALSE)","v":"AMICALE LAIQUE PARAY"}]
["ANCIENNE ESPERANCE ANGOULEME","75016.011","ANGOULÊME",{"$f":"VLOOKUP(A20,'FFGym Clubs'!A:A,1,FALSE)","v":"ANCIENNE ESPERANCE ANGOULEME"}]
["ANGERS GYMNASTIQUE","52049.077","ANGERS",{"$f":"VLOOKUP(A21,'FFGym Clubs'!A:A,1,FALSE)","v":"ANGERS GYMNASTIQUE"}]
["ASS. SPORTIVE FOURCHAMBAULT","27058.063","FOURCHAMBAULT",{"$f":"VLOOKUP(A22,'FFGym Clubs'!A:A,1,FALSE)","v":"ASS. SPORTIVE FOURCHAMBAULT"}]
["ASS. SPORTIVE GUERIGNY URZY","27058.005","GUERIGNY",{"$f":"VLOOKUP(A23,'FFGym Clubs'!A:A,1,FALSE)","v":"ASS. SPORTIVE GUERIGNY URZY"}]
["ASS.SPORT.UNION CHEMINOTTE","27089.075","MIGENNES",{"$f":"VLOOKUP(A24,'FFGym Clubs'!A:A,1,FALSE)","v":"ASS.SPORT.UNION CHEMINOTTE"}]
["ASSOCIATION AMICALE SPORTIVE SARCELLES","11095.317","SARCELLES",{"$f":"VLOOKUP(A25,'FFGym Clubs'!A:A,1,FALSE)","v":"ASSOCIATION AMICALE SPORTIVE SARCELLES"}]
["ASSOCIATION AUXONNAISE DE GYM","27021.077","AUXONNE",{"$f":"VLOOKUP(A26,'FFGym Clubs'!A:A,1,FALSE)","v":"ASSOCIATION AUXONNAISE DE GYM"}]
["ASSOCIATION EN FORM' SECTION GYM","75079.097","MAUZE SUR LE MIGNON",{"$f":"VLOOKUP(A27,'FFGym Clubs'!A:A,1,FALSE)","v":"ASSOCIATION EN FORM' SECTION GYM"}]
["ASSOCIATION GRAINES D'ACROBATES","03973.001","SAINT-LAURENT DU MARONI",{"$f":"VLOOKUP(A28,'FFGym Clubs'!A:A,1,FALSE)","v":"ASSOCIATION GRAINES D'ACROBATES"}]
["ASSOCIATION GYMNIQUE  LOUDUNAISE","75086.034","LOUDUN",{"$f":"VLOOKUP(A29,'FFGym Clubs'!A:A,1,FALSE)","v":"ASSOCIATION GYMNIQUE  LOUDUNAISE"}]
["ASSOCIATION GYMNIQUE BREUILLETOISE","11091.135","BREUILLET",{"$f":"VLOOKUP(A30,'FFGym Clubs'!A:A,1,FALSE)","v":"ASSOCIATION GYMNIQUE BREUILLETOISE"}]
["ASSOCIATION GYMNIQUE CHAUVINOISE","75086.072","CHAUVIGNY",{"$f":"VLOOKUP(A31,'FFGym Clubs'!A:A,1,FALSE)","v":"ASSOCIATION GYMNIQUE CHAUVINOISE"}]
["ASSOCIATION GYMNIQUE DE BALAGNE","94020.012","L'ILE  ROUSSE",{"$f":"VLOOKUP(A32,'FFGym Clubs'!A:A,1,FALSE)","v":"ASSOCIATION GYMNIQUE DE BALAGNE"}]
["ASSOCIATION GYMNIQUE DE CESSON VERT ST DENIS","11077.130","CESSON VERT SAINT DENIS",{"$f":"VLOOKUP(A33,'FFGym Clubs'!A:A,1,FALSE)","v":"ASSOCIATION GYMNIQUE DE CESSON VERT ST DENIS"}]
["ASSOCIATION GYMNIQUE DE LATTES-MAURIN","76034.003","MAURIN",{"$f":"VLOOKUP(A34,'FFGym Clubs'!A:A,1,FALSE)","v":"ASSOCIATION GYMNIQUE DE LATTES-MAURIN"}]
["ASSOCIATION GYMNIQUE DE L'ORGE","11091.122","SAINT MICHEL SUR ORGE",{"$f":"VLOOKUP(A35,'FFGym Clubs'!A:A,1,FALSE)","v":"ASSOCIATION GYMNIQUE DE L'ORGE"}]
["ASSOCIATION GYMNIQUE DE PLOUGASTEL","53029.086","PLOUGASTEL",{"$f":"VLOOKUP(A36,'FFGym Clubs'!A:A,1,FALSE)","v":"ASSOCIATION GYMNIQUE DE PLOUGASTEL"}]
["ASSOCIATION GYMNIQUE PERPIGNANAISE","76066.053","PERPIGNAN",{"$f":"VLOOKUP(A37,'FFGym Clubs'!A:A,1,FALSE)","v":"ASSOCIATION GYMNIQUE PERPIGNANAISE"}]
["ASSOCIATION GYMNIQUE REMOISE","44051.048","REIMS",{"$f":"VLOOKUP(A38,'FFGym Clubs'!A:A,1,FALSE)","v":"ASSOCIATION GYMNIQUE REMOISE"}]
["ASSOCIATION MUNICIPALE GYMNIQUE ARQUES","32062.139","ARQUES",{"$f":"VLOOKUP(A39,'FFGym Clubs'!A:A,1,FALSE)","v":"ASSOCIATION MUNICIPALE GYMNIQUE ARQUES"}]
["ASSOCIATION SPORTIVE AMBARESIENNE GYM","75033.056","AMBARES",{"$f":"VLOOKUP(A40,'FFGym Clubs'!A:A,1,FALSE)","v":"ASSOCIATION SPORTIVE AMBARESIENNE GYM"}]
["ASSOCIATION SPORTIVE DE LA JEUNESSE ONZAINOISE","24041.076","ONZAIN",{"$f":"VLOOKUP(A41,'FFGym Clubs'!A:A,1,FALSE)","v":"ASSOCIATION SPORTIVE DE LA JEUNESSE ONZAINOISE"}]
["ASSOCIATION SPORTIVE DE SARREGUEMINES","44057.032","SARREGUEMINES",{"$f":"VLOOKUP(A42,'FFGym Clubs'!A:A,1,FALSE)","v":"ASSOCIATION SPORTIVE DE SARREGUEMINES"}]
["ASSOCIATION SPORTIVE ET CULTURELLE PESSAC ALOUETTE","75033.010","PESSAC ALOUETTE",{"$f":"VLOOKUP(A43,'FFGym Clubs'!A:A,1,FALSE)","v":"ASSOCIATION SPORTIVE ET CULTURELLE PESSAC ALOUETTE"}]
["ASSOCIATION SPORTIVE FLEURANCE GYM","76032.084","FLEURANCE",{"$f":"VLOOKUP(A44,'FFGym Clubs'!A:A,1,FALSE)","v":"ASSOCIATION SPORTIVE FLEURANCE GYM"}]
["ASSOCIATION SPORTIVE GYMNASTIQUE TRAMPOLINE DE ROGNAC","93013.113","ROGNAC",{"$f":"VLOOKUP(A45,'FFGym Clubs'!A:A,1,FALSE)","v":"ASSOCIATION SPORTIVE GYMNASTIQUE TRAMPOLINE DE ROGNAC"}]
["ASSOCIATION SPORTIVE GYMNIQUE VILLENAVE D'ORNON","75033.014","VILLENAVE D'ORNON",{"$f":"VLOOKUP(A46,'FFGym Clubs'!A:A,1,FALSE)","v":"ASSOCIATION SPORTIVE GYMNIQUE VILLENAVE D'ORNON"}]
["ASSOCIATION SPORTIVE ILLACAISE","75033.069","ST JEAN D'ILLAC",{"$f":"VLOOKUP(A47,'FFGym Clubs'!A:A,1,FALSE)","v":"ASSOCIATION SPORTIVE ILLACAISE"}]
["ASSOCIATION SPORTIVE LE HAILLAN GYM","75033.018","LE HAILLAN",{"$f":"VLOOKUP(A48,'FFGym Clubs'!A:A,1,FALSE)","v":"ASSOCIATION SPORTIVE LE HAILLAN GYM"}]
["ASSOCIATION SPORTIVE LES TAMARIS","24045.068","SAINT JEAN DE BRAYE",{"$f":"VLOOKUP(A49,'FFGym Clubs'!A:A,1,FALSE)","v":"ASSOCIATION SPORTIVE LES TAMARIS"}]
["ASSOCIATION SPORTIVE MONTFERRANDAISE","84063.002","CLERMONT-FD",{"$f":"VLOOKUP(A50,'FFGym Clubs'!A:A,1,FALSE)","v":"ASSOCIATION SPORTIVE MONTFERRANDAISE"}]
["ASSOCIATION SPORTIVE PIAN MEDOC Gym Trampoline","75033.052","LE PIAN MEDOC",{"$f":"VLOOKUP(A51,'FFGym Clubs'!A:A,1,FALSE)","v":"ASSOCIATION SPORTIVE PIAN MEDOC Gym Trampoline"}]
["ASSOCIATION SPORTIVE ST MEDARD EN JALLES","75033.017","ST MEDARD EN JALLES",{"$f":"VLOOKUP(A52,'FFGym Clubs'!A:A,1,FALSE)","v":"ASSOCIATION SPORTIVE ST MEDARD EN JALLES"}]
["ASSOCIATION TRAMPOGYM SAINT-PAUL","04974.024","SAINT-PAUL",{"$f":"VLOOKUP(A53,'FFGym Clubs'!A:A,1,FALSE)","v":"ASSOCIATION TRAMPOGYM SAINT-PAUL"}]
["ASTUS SOISY SOUS MONTMORENCY","11095.307","SOISY SOUS MONTMORENCY",{"$f":"VLOOKUP(A54,'FFGym Clubs'!A:A,1,FALSE)","v":"ASTUS SOISY SOUS MONTMORENCY"}]
["AVANT GARDE DE TERVES","75079.022","TERVES",{"$f":"VLOOKUP(A55,'FFGym Clubs'!A:A,1,FALSE)","v":"AVANT GARDE DE TERVES"}]
["AVANT GARDE DU MANS","52072.041","LE MANS",{"$f":"VLOOKUP(A56,'FFGym Clubs'!A:A,1,FALSE)","v":"AVANT GARDE DU MANS"}]
["AVANT GARDE TAIN TOURNON","84026.008","TAIN TOURNON",{"$f":"VLOOKUP(A57,'FFGym Clubs'!A:A,1,FALSE)","v":"AVANT GARDE TAIN TOURNON"}]
["AVENIR COLMAR","44068.028","COLMAR",{"$f":"VLOOKUP(A58,'FFGym Clubs'!A:A,1,FALSE)","v":"AVENIR COLMAR"}]
["AVENIR DU HOULME","28076.016","LE HOULME",{"$f":"VLOOKUP(A59,'FFGym Clubs'!A:A,1,FALSE)","v":"AVENIR DU HOULME"}]
["AVENIR EVIANAIS","84074.041","EVIAN",{"$f":"VLOOKUP(A60,'FFGym Clubs'!A:A,1,FALSE)","v":"AVENIR EVIANAIS"}]
["AVENIR GESSIEN DE THOIRY","84001.062","THOIRY",{"$f":"VLOOKUP(A61,'FFGym Clubs'!A:A,1,FALSE)","v":"AVENIR GESSIEN DE THOIRY"}]
["AVENIR GYMNIQUE DE CORBIE","32080.064","CORBIE",{"$f":"VLOOKUP(A62,'FFGym Clubs'!A:A,1,FALSE)","v":"AVENIR GYMNIQUE DE CORBIE"}]
["AVENIR GYMNIQUE LURE","27070.051","LURE",{"$f":"VLOOKUP(A63,'FFGym Clubs'!A:A,1,FALSE)","v":"AVENIR GYMNIQUE LURE"}]
["AVENIR GYMNIQUE ORANGEOIS","93084.132","ORANGE",{"$f":"VLOOKUP(A64,'FFGym Clubs'!A:A,1,FALSE)","v":"AVENIR GYMNIQUE ORANGEOIS"}]
["AVENIR LA REDONNAISE GYMNASTIQUE","53035.001","REDON",{"$f":"VLOOKUP(A65,'FFGym Clubs'!A:A,1,FALSE)","v":"AVENIR LA REDONNAISE GYMNASTIQUE"}]
["AVOINE BEAUMONT GYMNASTIQUE ","24037.021","AVOINE - BEAUMONT EN VERON",{"$f":"VLOOKUP(A66,'FFGym Clubs'!A:A,1,FALSE)","v":"AVOINE BEAUMONT GYMNASTIQUE "}]
["BASTIA TEAM GYM","94020.022","BASTIA",{"$f":"VLOOKUP(A67,'FFGym Clubs'!A:A,1,FALSE)","v":"BASTIA TEAM GYM"}]
["BEAUSEJOUR LES SABLES","52085.018","LES SABLES D'OLONNE",{"$f":"VLOOKUP(A68,'FFGym Clubs'!A:A,1,FALSE)","v":"BEAUSEJOUR LES SABLES"}]
["BELFORT GYMNASTIQUE","27090.027","BELFORT",{"$f":"VLOOKUP(A69,'FFGym Clubs'!A:A,1,FALSE)","v":"BELFORT GYMNASTIQUE"}]
["BOLLENE GYMNASTIQUE","93084.138","BOLLENE",{"$f":"VLOOKUP(A70,'FFGym Clubs'!A:A,1,FALSE)","v":"BOLLENE GYMNASTIQUE"}]
["BROCELI'GYM MONTFORT","53035.167","MONTFORT SUR MEU",{"$f":"VLOOKUP(A71,'FFGym Clubs'!A:A,1,FALSE)","v":"BROCELI'GYM MONTFORT"}]
["CABRI MELLOIS","75079.037","MELLE",{"$f":"VLOOKUP(A72,'FFGym Clubs'!A:A,1,FALSE)","v":"CABRI MELLOIS"}]
["CARCASSONNE OLYMPIQUE SECTION GYMNASTIQUE","76011.002","CARCASSONNE",{"$f":"VLOOKUP(A73,'FFGym Clubs'!A:A,1,FALSE)","v":"CARCASSONNE OLYMPIQUE SECTION GYMNASTIQUE"}]
["CARCES GYM","93083.101","CARCES",{"$f":"VLOOKUP(A74,'FFGym Clubs'!A:A,1,FALSE)","v":"CARCES GYM"}]
["CERCLE D EDUCATION PHYSIQUE GYM POITIERS","75086.017","POITIERS",{"$f":"VLOOKUP(A75,'FFGym Clubs'!A:A,1,FALSE)","v":"CERCLE D EDUCATION PHYSIQUE GYM POITIERS"}]
["CERCLE JULES FERRY","53035.002","SAINT-MALO",{"$f":"VLOOKUP(A76,'FFGym Clubs'!A:A,1,FALSE)","v":"CERCLE JULES FERRY"}]
["CERCLE PASTEUR MONTARGIS","24045.036","MONTARGIS",{"$f":"VLOOKUP(A77,'FFGym Clubs'!A:A,1,FALSE)","v":"CERCLE PASTEUR MONTARGIS"}]
["CERCLE PAUL BERT","53035.009","RENNES",{"$f":"VLOOKUP(A78,'FFGym Clubs'!A:A,1,FALSE)","v":"CERCLE PAUL BERT"}]
["CERCLE SPORTIF LAIC","27071.021","SAINT VALLIER",{"$f":"VLOOKUP(A79,'FFGym Clubs'!A:A,1,FALSE)","v":"CERCLE SPORTIF LAIC"}]
["CLUB ATHLETIQUE BEGLAIS","75033.002","BEGLES",{"$f":"VLOOKUP(A80,'FFGym Clubs'!A:A,1,FALSE)","v":"CLUB ATHLETIQUE BEGLAIS"}]
["CLUB DE GYMNASTIQUE DE HERMES","32060.086","HERMES",{"$f":"VLOOKUP(A81,'FFGym Clubs'!A:A,1,FALSE)","v":"CLUB DE GYMNASTIQUE DE HERMES"}]
["CLUB DE GYMNASTIQUE DE SERIGNAN","76034.128","SERIGNAN",{"$f":"VLOOKUP(A82,'FFGym Clubs'!A:A,1,FALSE)","v":"CLUB DE GYMNASTIQUE DE SERIGNAN"}]
["CLUB DE GYMNASTIQUE ST-ANDREEN","04974.014","SAINT-ANDRE",{"$f":"VLOOKUP(A83,'FFGym Clubs'!A:A,1,FALSE)","v":"CLUB DE GYMNASTIQUE ST-ANDREEN"}]
["CLUB DEPARTEMENTAL DE GYMNASTIQUE GIRONDE","75033.074","BORDEAUX",{"$f":"VLOOKUP(A84,'FFGym Clubs'!A:A,1,FALSE)","v":"CLUB DEPARTEMENTAL DE GYMNASTIQUE GIRONDE"}]
["CLUB GROUP'OMNISPORT de ST JULIEN L'ARS","75086.031","SAINT JULIEN L'ARS",{"$f":"VLOOKUP(A85,'FFGym Clubs'!A:A,1,FALSE)","v":"CLUB GROUP'OMNISPORT de ST JULIEN L'ARS"}]
["CLUB GYMNIQUE DE BONNEVEINE MARSEILLE","93013.019","MARSEILLE",{"$f":"VLOOKUP(A86,'FFGym Clubs'!A:A,1,FALSE)","v":"CLUB GYMNIQUE DE BONNEVEINE MARSEILLE"}]
["CLUB GYMNIQUE DE LASSIGNY","32060.068","LASSIGNY",{"$f":"VLOOKUP(A87,'FFGym Clubs'!A:A,1,FALSE)","v":"CLUB GYMNIQUE DE LASSIGNY"}]
["CLUB GYMNIQUE DE NEUILLY SUR MARNE","11093.341","NEUILLY SUR MARNE",{"$f":"VLOOKUP(A88,'FFGym Clubs'!A:A,1,FALSE)","v":"CLUB GYMNIQUE DE NEUILLY SUR MARNE"}]
["CLUB GYMNIQUE DE SAINT GINIEZ","93013.018","MARSEILLE",{"$f":"VLOOKUP(A89,'FFGym Clubs'!A:A,1,FALSE)","v":"CLUB GYMNIQUE DE SAINT GINIEZ"}]
["CLUB GYMNIQUE DE SAINT PIERRE REUNION","04974.012","SAINT-PIERRE",{"$f":"VLOOKUP(A90,'FFGym Clubs'!A:A,1,FALSE)","v":"CLUB GYMNIQUE DE SAINT PIERRE REUNION"}]
["CLUB GYMNIQUE ERMONT","11095.300","ERMONT",{"$f":"VLOOKUP(A91,'FFGym Clubs'!A:A,1,FALSE)","v":"CLUB GYMNIQUE ERMONT"}]
["CLUB GYMNIQUE LANGROIS","44052.062","LANGRES",{"$f":"VLOOKUP(A92,'FFGym Clubs'!A:A,1,FALSE)","v":"CLUB GYMNIQUE LANGROIS"}]
["CLUB GYMNIQUE RILLIEUX","84069.051","RILLIEUX LA PAPE",{"$f":"VLOOKUP(A93,'FFGym Clubs'!A:A,1,FALSE)","v":"CLUB GYMNIQUE RILLIEUX"}]
["CLUB L'ISLOIS DE GYMNASTIQUE","93084.064","L ISLE SUR LA SORGUE",{"$f":"VLOOKUP(A94,'FFGym Clubs'!A:A,1,FALSE)","v":"CLUB L'ISLOIS DE GYMNASTIQUE"}]
["CLUB MARIGNANAIS DES SPORTS DE GYMNASTIQUE","93013.001","MARIGNANE",{"$f":"VLOOKUP(A95,'FFGym Clubs'!A:A,1,FALSE)","v":"CLUB MARIGNANAIS DES SPORTS DE GYMNASTIQUE"}]
["CLUB OLYMPIQUE MULTISPORTS BAGNEUX","11092.202","BAGNEUX",{"$f":"VLOOKUP(A96,'FFGym Clubs'!A:A,1,FALSE)","v":"CLUB OLYMPIQUE MULTISPORTS BAGNEUX"}]
["CLUB SPORTIF ARTISTIQUE DE LA DEFENSE - CHATELLERAULT","75086.009","CHATELLERAULT",{"$f":"VLOOKUP(A97,'FFGym Clubs'!A:A,1,FALSE)","v":"CLUB SPORTIF ARTISTIQUE DE LA DEFENSE - CHATELLERAULT"}]
["CLUB SPORTIF BETTON","53035.073","BETTON",{"$f":"VLOOKUP(A98,'FFGym Clubs'!A:A,1,FALSE)","v":"CLUB SPORTIF BETTON"}]
["CLUB SPORTIF DE MARDEUIL","44051.033","MARDEUIL",{"$f":"VLOOKUP(A99,'FFGym Clubs'!A:A,1,FALSE)","v":"CLUB SPORTIF DE MARDEUIL"}]
["CLUB SPORTIF MUNICIPAL DE GYMNASTIQUE EPINAY SOUS SENART","11091.104","EPINAY SOUS SENART",{"$f":"VLOOKUP(A100,'FFGym Clubs'!A:A,1,FALSE)","v":"CLUB SPORTIF MUNICIPAL DE GYMNASTIQUE EPINAY SOUS SENART"}]
["CLUB SPORTIF MUNICIPAL LE PECQ","11078.062","LE PECQ",{"$f":"VLOOKUP(A101,'FFGym Clubs'!A:A,1,FALSE)","v":"CLUB SPORTIF MUNICIPAL LE PECQ"}]
["CLUB SPORTIF VILLEPINTE GYMNASTIQUE","11093.363","VILLEPINTE",{"$f":"VLOOKUP(A102,'FFGym Clubs'!A:A,1,FALSE)","v":"CLUB SPORTIF VILLEPINTE GYMNASTIQUE"}]
["COGLAIS GYM","53035.170","MAEN ROCH",{"$f":"VLOOKUP(A103,'FFGym Clubs'!A:A,1,FALSE)","v":"COGLAIS GYM"}]
["COQUELICOT TOULOUSE GYM","76031.012","TOULOUSE",{"$f":"VLOOKUP(A104,'FFGym Clubs'!A:A,1,FALSE)","v":"COQUELICOT TOULOUSE GYM"}]
["DEFENSE AMBLAINVILLE","32060.014","AMBLAINVILLE",{"$f":"VLOOKUP(A105,'FFGym Clubs'!A:A,1,FALSE)","v":"DEFENSE AMBLAINVILLE"}]
["DINARD-GYM","53035.120","DINARD",{"$f":"VLOOKUP(A106,'FFGym Clubs'!A:A,1,FALSE)","v":"DINARD-GYM"}]
["E. S. M. G-O","28076.067","GONFREVILLE L.ORCHER",{"$f":"VLOOKUP(A107,'FFGym Clubs'!A:A,1,FALSE)","v":"E. S. M. G-O"}]
["E.S.M. GYM CHALLANS","52085.048","CHALLANS",{"$f":"VLOOKUP(A108,'FFGym Clubs'!A:A,1,FALSE)","v":"E.S.M. GYM CHALLANS"}]
["ELAN GYMNIQUE DE BLAGNAC","76031.049","BLAGNAC",{"$f":"VLOOKUP(A109,'FFGym Clubs'!A:A,1,FALSE)","v":"ELAN GYMNIQUE DE BLAGNAC"}]
["ELAN GYMNIQUE DE SEVRAN","11093.347","SEVRAN",{"$f":"VLOOKUP(A110,'FFGym Clubs'!A:A,1,FALSE)","v":"ELAN GYMNIQUE DE SEVRAN"}]
["ELAN MORTAGNAIS","52085.037","MORTAGNE SUR SEVRE",{"$f":"VLOOKUP(A111,'FFGym Clubs'!A:A,1,FALSE)","v":"ELAN MORTAGNAIS"}]
["ELGAR GYM","75064.116","ST JEAN DE LUZ",{"$f":"VLOOKUP(A112,'FFGym Clubs'!A:A,1,FALSE)","v":"ELGAR GYM"}]
["ELITE GYM VILLEFRANCHE","84069.011","VILLEFRANCHE SUR SAÔNE",{"$f":"VLOOKUP(A113,'FFGym Clubs'!A:A,1,FALSE)","v":"ELITE GYM VILLEFRANCHE"}]
["ENFANCE ET GYMNASTIQUE DE DIEUZE","44057.113","DIEUZE",{"$f":"VLOOKUP(A114,'FFGym Clubs'!A:A,1,FALSE)","v":"ENFANCE ET GYMNASTIQUE DE DIEUZE"}]
["ENFANTS DU REVARD AIX LES BAINS","84073.037","AIX LES BAINS",{"$f":"VLOOKUP(A115,'FFGym Clubs'!A:A,1,FALSE)","v":"ENFANTS DU REVARD AIX LES BAINS"}]
["ENTENTE GYMNIQUE DEODATIENNE","44088.092","SAINT DIE DES VOSGES",{"$f":"VLOOKUP(A116,'FFGym Clubs'!A:A,1,FALSE)","v":"ENTENTE GYMNIQUE DEODATIENNE"}]
["ENTENTE GYMNIQUE ETAMPES - SECTION GYMNASTIQUE","11091.105","ETAMPES",{"$f":"VLOOKUP(A117,'FFGym Clubs'!A:A,1,FALSE)","v":"ENTENTE GYMNIQUE ETAMPES - SECTION GYMNASTIQUE"}]
["ENTENTE GYMNIQUE GANNATOISE","84003.077","GANNAT",{"$f":"VLOOKUP(A118,'FFGym Clubs'!A:A,1,FALSE)","v":"ENTENTE GYMNIQUE GANNATOISE"}]
["ENTENTE GYMNIQUE LA ROSE BLEUE","76030.042","BAGNOLS SUR CEZE",{"$f":"VLOOKUP(A119,'FFGym Clubs'!A:A,1,FALSE)","v":"ENTENTE GYMNIQUE LA ROSE BLEUE"}]
["ENTENTE SPORTIVE DE BRUGES","75033.012","BRUGES",{"$f":"VLOOKUP(A120,'FFGym Clubs'!A:A,1,FALSE)","v":"ENTENTE SPORTIVE DE BRUGES"}]
["ENTENTE SPORTIVE FALAISIENNE GYMNASTIQUE","28014.193","FALAISE",{"$f":"VLOOKUP(A121,'FFGym Clubs'!A:A,1,FALSE)","v":"ENTENTE SPORTIVE FALAISIENNE GYMNASTIQUE"}]
["ESPERANCE AUDINCOURT","27025.010","AUDINCOURT",{"$f":"VLOOKUP(A122,'FFGym Clubs'!A:A,1,FALSE)","v":"ESPERANCE AUDINCOURT"}]
["ESPERANCE DE VIGNEUX","11091.118","VIGNEUX",{"$f":"VLOOKUP(A123,'FFGym Clubs'!A:A,1,FALSE)","v":"ESPERANCE DE VIGNEUX"}]
["ESPERANCE D'OISSEL","28076.024","OISSEL",{"$f":"VLOOKUP(A124,'FFGym Clubs'!A:A,1,FALSE)","v":"ESPERANCE D'OISSEL"}]
["ESPERANCE MONTATAIRE","32060.013","MONTATAIRE",{"$f":"VLOOKUP(A125,'FFGym Clubs'!A:A,1,FALSE)","v":"ESPERANCE MONTATAIRE"}]
["ESPERANCE ST LEGER GYMNASTIQUE","27058.006","ST LEGER DES VIGNES",{"$f":"VLOOKUP(A126,'FFGym Clubs'!A:A,1,FALSE)","v":"ESPERANCE ST LEGER GYMNASTIQUE"}]
["ESPERANCE ST-GERMANOISE","84003.053","ST GERMAIN DES FOSSES",{"$f":"VLOOKUP(A127,'FFGym Clubs'!A:A,1,FALSE)","v":"ESPERANCE ST-GERMANOISE"}]
["ETOILE GOUSSAINVILLOISE","11095.303","GOUSSAINVILLE",{"$f":"VLOOKUP(A128,'FFGym Clubs'!A:A,1,FALSE)","v":"ETOILE GOUSSAINVILLOISE"}]
["ETOILE GYMNIQUE DE COLOMIERS","76031.035","COLOMIERS",{"$f":"VLOOKUP(A129,'FFGym Clubs'!A:A,1,FALSE)","v":"ETOILE GYMNIQUE DE COLOMIERS"}]
["ÉTOILE GYMNIQUE ONZAINOISE ","24041.082","VEUZAIN SUR LOIRE",{"$f":"VLOOKUP(A130,'FFGym Clubs'!A:A,1,FALSE)","v":"ÉTOILE GYMNIQUE ONZAINOISE "}]
["ETOILE PARTHENAISIENNE","75079.040","PARTHENAY",{"$f":"VLOOKUP(A131,'FFGym Clubs'!A:A,1,FALSE)","v":"ETOILE PARTHENAISIENNE"}]
["ETOILE SAINT AMANDOISE","24018.003","SAINT AMAND MONTROND",{"$f":"VLOOKUP(A132,'FFGym Clubs'!A:A,1,FALSE)","v":"ETOILE SAINT AMANDOISE"}]
["ETOILE SPORTIVE GYMNASTIQUE CHATEAU LANDON","11077.150","CHATEAU LANDON",{"$f":"VLOOKUP(A133,'FFGym Clubs'!A:A,1,FALSE)","v":"ETOILE SPORTIVE GYMNASTIQUE CHATEAU LANDON"}]
["ETOILE SPORTIVE SANVIGNES","27071.039","SANVIGNES",{"$f":"VLOOKUP(A134,'FFGym Clubs'!A:A,1,FALSE)","v":"ETOILE SPORTIVE SANVIGNES"}]
["ETOILE SPORTIVE ST MARCELLOISE SUD MINERVOIS","76011.015","SAINT MARCEL",{"$f":"VLOOKUP(A135,'FFGym Clubs'!A:A,1,FALSE)","v":"ETOILE SPORTIVE ST MARCELLOISE SUD MINERVOIS"}]
["EVASION SPORTIVE ET CULTURELLE PAR L'ANIMATION ET LES LOISIRS GYMNIQUES","28076.177","ROUEN",{"$f":"VLOOKUP(A136,'FFGym Clubs'!A:A,1,FALSE)","v":"EVASION SPORTIVE ET CULTURELLE PAR L'ANIMATION ET LES LOISIRS GYMNIQUES"}]
["EVOLUTION MORTEAU","27025.014","MORTEAU",{"$f":"VLOOKUP(A137,'FFGym Clubs'!A:A,1,FALSE)","v":"EVOLUTION MORTEAU"}]
["FEMINA MONTARGIS","24045.037","MONTARGIS",{"$f":"VLOOKUP(A138,'FFGym Clubs'!A:A,1,FALSE)","v":{"$error":"#N/A"}}]
["FEMINA SPORTS DE MONACO","93098.008","MONACO",{"$f":"VLOOKUP(A139,'FFGym Clubs'!A:A,1,FALSE)","v":"FEMINA SPORTS DE MONACO"}]
["FOIX ATHLETIC CLUB","76009.001","FOIX",{"$f":"VLOOKUP(A140,'FFGym Clubs'!A:A,1,FALSE)","v":"FOIX ATHLETIC CLUB"}]
["FONTENILLES GYM","76031.094","FONTENILLES",{"$f":"VLOOKUP(A141,'FFGym Clubs'!A:A,1,FALSE)","v":"FONTENILLES GYM"}]
["GINNASTICA CORSU DI U PAESE AIACCINU","94020.021","AJACCIO",{"$f":"VLOOKUP(A142,'FFGym Clubs'!A:A,1,FALSE)","v":"GINNASTICA CORSU DI U PAESE AIACCINU"}]
["GIVRE EN MAI","75079.024","SAINT SAUVEUR DE GIVRE EN MAI",{"$f":"VLOOKUP(A143,'FFGym Clubs'!A:A,1,FALSE)","v":"GIVRE EN MAI"}]
["GRENOBLE GYM","84038.013","GRENOBLE",{"$f":"VLOOKUP(A144,'FFGym Clubs'!A:A,1,FALSE)","v":"GRENOBLE GYM"}]
["GROUPEMENT GYMNIQUE HAVRE BANLIEUE","28076.073","LE HAVRE",{"$f":"VLOOKUP(A145,'FFGym Clubs'!A:A,1,FALSE)","v":"GROUPEMENT GYMNIQUE HAVRE BANLIEUE"}]
["GYM 2000 LA FARLEDE","93083.088","LA FARLEDE",{"$f":"VLOOKUP(A146,'FFGym Clubs'!A:A,1,FALSE)","v":"GYM 2000 LA FARLEDE"}]
["GYM 64 - ASSOCIATION DEPARTEMENTALE DE GYMNASTIQUE","75064.130","PAU",{"$f":"VLOOKUP(A147,'FFGym Clubs'!A:A,1,FALSE)","v":"GYM 64 - ASSOCIATION DEPARTEMENTALE DE GYMNASTIQUE"}]
["GYM CLUB DE LECOUSSE","53035.117","LECOUSSE",{"$f":"VLOOKUP(A148,'FFGym Clubs'!A:A,1,FALSE)","v":"GYM CLUB DE LECOUSSE"}]
["GYM CLUB DU PERREUX","11094.584","LE PERREUX",{"$f":"VLOOKUP(A149,'FFGym Clubs'!A:A,1,FALSE)","v":"GYM CLUB DU PERREUX"}]
["GYM CLUB NUEIL LES AUBIERS","75079.053","NUEIL LES AUBIERS",{"$f":"VLOOKUP(A150,'FFGym Clubs'!A:A,1,FALSE)","v":"GYM CLUB NUEIL LES AUBIERS"}]
["GYM CLUB POSSESSION","04974.008","LA POSSESSION",{"$f":"VLOOKUP(A151,'FFGym Clubs'!A:A,1,FALSE)","v":"GYM CLUB POSSESSION"}]
["GYM CLUB SUZERAIN","52072.011","LA SUZE SUR SARTHE",{"$f":"VLOOKUP(A152,'FFGym Clubs'!A:A,1,FALSE)","v":"GYM CLUB SUZERAIN"}]
["GYM CREYSSE","75024.165","CREYSSE",{"$f":"VLOOKUP(A153,'FFGym Clubs'!A:A,1,FALSE)","v":"GYM CREYSSE"}]
["GYM et RYTHME CROLLES","84038.106","CROLLES",{"$f":"VLOOKUP(A154,'FFGym Clubs'!A:A,1,FALSE)","v":"GYM et RYTHME CROLLES"}]
["GYM L AIGLE","28061.380","L AIGLE",{"$f":"VLOOKUP(A155,'FFGym Clubs'!A:A,1,FALSE)","v":"GYM L AIGLE"}]
["GYM OLERON","75017.051","SAINT PIERRE D OLERON",{"$f":"VLOOKUP(A156,'FFGym Clubs'!A:A,1,FALSE)","v":"GYM OLERON"}]
["GYM OLIVET","24045.038","OLIVET",{"$f":"VLOOKUP(A157,'FFGym Clubs'!A:A,1,FALSE)","v":"GYM OLIVET"}]
["GYM' PARIS 15","11075.046","PARIS",{"$f":"VLOOKUP(A158,'FFGym Clubs'!A:A,1,FALSE)","v":"GYM' PARIS 15"}]
["GYM SPORT PAM","44054.005","PONT A MOUSSON",{"$f":"VLOOKUP(A159,'FFGym Clubs'!A:A,1,FALSE)","v":"GYM SPORT PAM"}]
["GYMNASE MUNICIPAL DE ST VALLIER","84026.004","ST VALLIER",{"$f":"VLOOKUP(A160,'FFGym Clubs'!A:A,1,FALSE)","v":"GYMNASE MUNICIPAL DE ST VALLIER"}]
["GYMNASTE CLUB DE MANDELIEU LA NAPOULE","93006.076","MANDELIEU LA NAPOULE",{"$f":"VLOOKUP(A161,'FFGym Clubs'!A:A,1,FALSE)","v":"GYMNASTE CLUB DE MANDELIEU LA NAPOULE"}]
["GYMNASTIQUE CLUB DE CHATEAU GONTIER","52053.091","CHATEAU GONTIER",{"$f":"VLOOKUP(A162,'FFGym Clubs'!A:A,1,FALSE)","v":"GYMNASTIQUE CLUB DE CHATEAU GONTIER"}]
["GYMNASTIQUE CLUB DE WISSOUS","11091.131","WISSOUS",{"$f":"VLOOKUP(A163,'FFGym Clubs'!A:A,1,FALSE)","v":"GYMNASTIQUE CLUB DE WISSOUS"}]
["GYMNASTIQUE CLUB LA ROCHE SUR YON","52085.099","ROCHE SUR YON",{"$f":"VLOOKUP(A164,'FFGym Clubs'!A:A,1,FALSE)","v":"GYMNASTIQUE CLUB LA ROCHE SUR YON"}]
["GYMNASTIQUE CLUB MENNECY","11091.152","MENNECY",{"$f":"VLOOKUP(A165,'FFGym Clubs'!A:A,1,FALSE)","v":"GYMNASTIQUE CLUB MENNECY"}]
["GYMNASTIQUE DU PAYS D'AIX EN PROVENCE","93013.166","AIX EN PROVENCE",{"$f":"VLOOKUP(A166,'FFGym Clubs'!A:A,1,FALSE)","v":"GYMNASTIQUE DU PAYS D'AIX EN PROVENCE"}]
["GYMNASTIQUE SODOBRIENNE DE SUEVRES","24041.077","SUEVRES",{"$f":"VLOOKUP(A167,'FFGym Clubs'!A:A,1,FALSE)","v":"GYMNASTIQUE SODOBRIENNE DE SUEVRES"}]
["GYMNASTIQUE SPORTIVE CHARTRES DE BRETAGNE","53035.083","CHARTRES DE BRETAGNE",{"$f":"VLOOKUP(A168,'FFGym Clubs'!A:A,1,FALSE)","v":"GYMNASTIQUE SPORTIVE CHARTRES DE BRETAGNE"}]
["GYMNASTIQUE SPORTIVE DE GAP","93005.082","GAP",{"$f":"VLOOKUP(A169,'FFGym Clubs'!A:A,1,FALSE)","v":"GYMNASTIQUE SPORTIVE DE GAP"}]
["HEGAL-EGIN","75064.126","ANGLET",{"$f":"VLOOKUP(A170,'FFGym Clubs'!A:A,1,FALSE)","v":"HEGAL-EGIN"}]
["HIRONDELLES TROYES GYMNIQUE","44010.010","TROYES",{"$f":"VLOOKUP(A171,'FFGym Clubs'!A:A,1,FALSE)","v":"HIRONDELLES TROYES GYMNIQUE"}]
["HYERES GYM","93083.031","HYERES",{"$f":"VLOOKUP(A172,'FFGym Clubs'!A:A,1,FALSE)","v":"HYERES GYM"}]
["ILETS SPORTS MONTLUCONNAIS","84003.031","MONTLUÇON",{"$f":"VLOOKUP(A173,'FFGym Clubs'!A:A,1,FALSE)","v":"ILETS SPORTS MONTLUCONNAIS"}]
["IMPULSION GYM","75079.088","ST MARTIN DE BERNEGOUE",{"$f":"VLOOKUP(A174,'FFGym Clubs'!A:A,1,FALSE)","v":"IMPULSION GYM"}]
["INDEPENDANTE COMTOISE BESANCON GYMNASTIQUE","27025.008","BESANÇON",{"$f":"VLOOKUP(A175,'FFGym Clubs'!A:A,1,FALSE)","v":"INDEPENDANTE COMTOISE BESANCON GYMNASTIQUE"}]
["INDEPENDANTE KINGERSHEIM","44068.037","KINGERSHEIM",{"$f":"VLOOKUP(A176,'FFGym Clubs'!A:A,1,FALSE)","v":"INDEPENDANTE KINGERSHEIM"}]
["INFINITY GYMNASTICS VAL D'EUROPE","11077.180","SERRIS",{"$f":"VLOOKUP(A177,'FFGym Clubs'!A:A,1,FALSE)","v":"INFINITY GYMNASTICS VAL D'EUROPE"}]
["ISSOLDUNOISE","24036.004","ISSOUDUN",{"$f":"VLOOKUP(A178,'FFGym Clubs'!A:A,1,FALSE)","v":"ISSOLDUNOISE"}]
["J3 SPORTS AMILLY GYMNASTIQUE","24045.058","AMILLY",{"$f":"VLOOKUP(A179,'FFGym Clubs'!A:A,1,FALSE)","v":"J3 SPORTS AMILLY GYMNASTIQUE"}]
["JEAN ZAY WATTRELOS","32059.182","WATTRELOS",{"$f":"VLOOKUP(A180,'FFGym Clubs'!A:A,1,FALSE)","v":"JEAN ZAY WATTRELOS"}]
["JEUNE CRAN CHEVANCEAUX","75017.066","CHEVANCEAUX",{"$f":"VLOOKUP(A181,'FFGym Clubs'!A:A,1,FALSE)","v":"JEUNE CRAN CHEVANCEAUX"}]
["JEUNESSE SPORTIVE ANGOULEME","75016.001","ANGOULEME",{"$f":"VLOOKUP(A182,'FFGym Clubs'!A:A,1,FALSE)","v":"JEUNESSE SPORTIVE ANGOULEME"}]
["Juges convoqués FFGym","40995.361","FFGYM",{"$f":"VLOOKUP(A183,'FFGym Clubs'!A:A,1,FALSE)","v":"Juges convoqués FFGym"}]
["KAN-KOUROU","03973.002","KOUROU",{"$f":"VLOOKUP(A184,'FFGym Clubs'!A:A,1,FALSE)","v":"KAN-KOUROU"}]
["KEWENN GYMNASTIQUE","53056.160","QUEVEN",{"$f":"VLOOKUP(A185,'FFGym Clubs'!A:A,1,FALSE)","v":"KEWENN GYMNASTIQUE"}]
["L OLYMPIQUE GRANDE SYNTHE","32059.098","GRANDE SYNTHE",{"$f":"VLOOKUP(A186,'FFGym Clubs'!A:A,1,FALSE)","v":"L OLYMPIQUE GRANDE SYNTHE"}]
["LA BELLERIVOISE","84003.024","BELLERIVE SUR ALLIER",{"$f":"VLOOKUP(A187,'FFGym Clubs'!A:A,1,FALSE)","v":"LA BELLERIVOISE"}]
["LA BIGOURDANE TARBES","76065.023","TARBES",{"$f":"VLOOKUP(A188,'FFGym Clubs'!A:A,1,FALSE)","v":"LA BIGOURDANE TARBES"}]
["LA BLESOISE","24041.030","BLOIS",{"$f":"VLOOKUP(A189,'FFGym Clubs'!A:A,1,FALSE)","v":"LA BLESOISE"}]
["LA BOURBONNAISE","84003.032","MOULINS",{"$f":"VLOOKUP(A190,'FFGym Clubs'!A:A,1,FALSE)","v":"LA BOURBONNAISE"}]
["LA BRESSAUDE","44088.107","LA BRESSE",{"$f":"VLOOKUP(A191,'FFGym Clubs'!A:A,1,FALSE)","v":"LA BRESSAUDE"}]
["LA CELLE SAINT CLOUD GYM","11078.003","LA CELLE SAINT CLOUD",{"$f":"VLOOKUP(A192,'FFGym Clubs'!A:A,1,FALSE)","v":"LA CELLE SAINT CLOUD GYM"}]
["LA CHAMPIGNEULLAISE","44054.118","CHAMPIGNEULLES",{"$f":"VLOOKUP(A193,'FFGym Clubs'!A:A,1,FALSE)","v":"LA CHAMPIGNEULLAISE"}]
["LA CHAUMONTAISE","44052.025","CHAUMONT",{"$f":"VLOOKUP(A194,'FFGym Clubs'!A:A,1,FALSE)","v":"LA CHAUMONTAISE"}]
["LA COGNACAISE","75016.003","COGNAC",{"$f":"VLOOKUP(A195,'FFGym Clubs'!A:A,1,FALSE)","v":"LA COGNACAISE"}]
["LA FONTENAISIENNE","52085.013","FONTENAY LE COMTE",{"$f":"VLOOKUP(A196,'FFGym Clubs'!A:A,1,FALSE)","v":"LA FONTENAISIENNE"}]
["LA FRATERNELLE","28027.042","LOUVIERS",{"$f":"VLOOKUP(A197,'FFGym Clubs'!A:A,1,FALSE)","v":"LA FRATERNELLE"}]
["LA FRONTIERE DE REMIREMONT","44088.047","REMIREMONT",{"$f":"VLOOKUP(A198,'FFGym Clubs'!A:A,1,FALSE)","v":"LA FRONTIERE DE REMIREMONT"}]
["LA JEANNE D'ARC DE MAURIAC","84015.033","MAURIAC",{"$f":"VLOOKUP(A199,'FFGym Clubs'!A:A,1,FALSE)","v":"LA JEANNE D'ARC DE MAURIAC"}]
["LA JEANNE D'ARC DE PLOMBIERES","44088.095","PLOMBIERES",{"$f":"VLOOKUP(A200,'FFGym Clubs'!A:A,1,FALSE)","v":"LA JEANNE D'ARC DE PLOMBIERES"}]
["LA LEGERE MELINOISE","27070.026","ECHENOZ LA MELINE",{"$f":"VLOOKUP(A201,'FFGym Clubs'!A:A,1,FALSE)","v":"LA LEGERE MELINOISE"}]
["LA NIVERNAISE","27058.007","NEVERS",{"$f":"VLOOKUP(A202,'FFGym Clubs'!A:A,1,FALSE)","v":"LA NIVERNAISE"}]
["LA PERSEVERANTE DE MAROMME","28076.020","MAROMME",{"$f":"VLOOKUP(A203,'FFGym Clubs'!A:A,1,FALSE)","v":"LA PERSEVERANTE DE MAROMME"}]
["LA ROCHEFORTAISE","75017.006","ROCHEFORT SUR MER",{"$f":"VLOOKUP(A204,'FFGym Clubs'!A:A,1,FALSE)","v":"LA ROCHEFORTAISE"}]
["LA ROCHELAISE ET FRATERNELLE REUNIES","75017.005","LA ROCHELLE",{"$f":"VLOOKUP(A205,'FFGym Clubs'!A:A,1,FALSE)","v":"LA ROCHELAISE ET FRATERNELLE REUNIES"}]
["LA SEREINE GYMNASTIQUE MONTLUEL","84001.063","MONTLUEL",{"$f":"VLOOKUP(A206,'FFGym Clubs'!A:A,1,FALSE)","v":"LA SEREINE GYMNASTIQUE MONTLUEL"}]
["LA VAILLANTE DE LANGON","75033.006","LANGON",{"$f":"VLOOKUP(A207,'FFGym Clubs'!A:A,1,FALSE)","v":"LA VAILLANTE DE LANGON"}]
["LA VAUDOISE GYMNASTIQUE HERICOURT","27070.052","HÉRICOURT",{"$f":"VLOOKUP(A208,'FFGym Clubs'!A:A,1,FALSE)","v":"LA VAUDOISE GYMNASTIQUE HERICOURT"}]
["LA VIGILANTE DE NOISY LE SEC","11093.344","NOISY LE SEC",{"$f":"VLOOKUP(A209,'FFGym Clubs'!A:A,1,FALSE)","v":"LA VIGILANTE DE NOISY LE SEC"}]
["LA VOSGIENNE EPINAL","44088.026","EPINAL",{"$f":"VLOOKUP(A210,'FFGym Clubs'!A:A,1,FALSE)","v":"LA VOSGIENNE EPINAL"}]
["LA VOSGIENNE SOULTZ 1861","44068.055","SOULTZ",{"$f":"VLOOKUP(A211,'FFGym Clubs'!A:A,1,FALSE)","v":"LA VOSGIENNE SOULTZ 1861"}]
["LAETITIA","52044.091","NANTES",{"$f":"VLOOKUP(A212,'FFGym Clubs'!A:A,1,FALSE)","v":"LAETITIA"}]
["LE REVEIL","32062.069","BOULOGNE/MER",{"$f":"VLOOKUP(A213,'FFGym Clubs'!A:A,1,FALSE)","v":"LE REVEIL"}]
["LE STADE PESSACAIS UNION CLUB","75033.005","PESSAC",{"$f":"VLOOKUP(A214,'FFGym Clubs'!A:A,1,FALSE)","v":"LE STADE PESSACAIS UNION CLUB"}]
["LEGION ST-PIERRE BREST GYM","53029.027","BREST",{"$f":"VLOOKUP(A215,'FFGym Clubs'!A:A,1,FALSE)","v":"LEGION ST-PIERRE BREST GYM"}]
["LEGION VIENNOISE ","84038.062","VIENNE",{"$f":"VLOOKUP(A216,'FFGym Clubs'!A:A,1,FALSE)","v":"LEGION VIENNOISE "}]
["L'ELAN GYMNIQUE DE COURBEVOIE","11092.246","COURBEVOIE",{"$f":"VLOOKUP(A217,'FFGym Clubs'!A:A,1,FALSE)","v":"L'ELAN GYMNIQUE DE COURBEVOIE"}]
["L'ENVOL ROMAINVILLE","11093.390","ROMAINVILLE",{"$f":"VLOOKUP(A218,'FFGym Clubs'!A:A,1,FALSE)","v":"L'ENVOL ROMAINVILLE"}]
["L'ENVOL SAINT-GAUDINOIS","76031.073","ST GAUDENS",{"$f":"VLOOKUP(A219,'FFGym Clubs'!A:A,1,FALSE)","v":"L'ENVOL SAINT-GAUDINOIS"}]
["LEO LAGRANGE","52044.069","NANTES",{"$f":"VLOOKUP(A220,'FFGym Clubs'!A:A,1,FALSE)","v":"LEO LAGRANGE"}]
["LES ACROBATES DU CANIGOU","76066.128","PRADES",{"$f":"VLOOKUP(A221,'FFGym Clubs'!A:A,1,FALSE)","v":"LES ACROBATES DU CANIGOU"}]
["LES ALCYONS","52085.001","ST-GILLES CROIX DE VIE",{"$f":"VLOOKUP(A222,'FFGym Clubs'!A:A,1,FALSE)","v":"LES ALCYONS"}]
["LES AMIS GYMNASTES D'AULNAY /BOIS","11093.331","AULNAY SOUS BOIS",{"$f":"VLOOKUP(A223,'FFGym Clubs'!A:A,1,FALSE)","v":"LES AMIS GYMNASTES D'AULNAY /BOIS"}]
["LES CADETS DE GASCOGNE","75040.188","SAINT SEVER",{"$f":"VLOOKUP(A224,'FFGym Clubs'!A:A,1,FALSE)","v":"LES CADETS DE GASCOGNE"}]
["LES ECUREUILS CRITOURIENS","76009.010","LA TOUR DU CRIEU",{"$f":"VLOOKUP(A225,'FFGym Clubs'!A:A,1,FALSE)","v":"LES ECUREUILS CRITOURIENS"}]
["LES ETERLOUS","27039.054","SAINT CLAUDE",{"$f":"VLOOKUP(A226,'FFGym Clubs'!A:A,1,FALSE)","v":"LES ETERLOUS"}]
["LES ETOILES D' AIGREFEUILLE","75017.079","AIGREFEUILLE D' AUNIS",{"$f":"VLOOKUP(A227,'FFGym Clubs'!A:A,1,FALSE)","v":"LES ETOILES D' AIGREFEUILLE"}]
["LES FARFADETS GYM ET TRAMPOLINE","27070.064","LUXEUIL LES BAINS",{"$f":"VLOOKUP(A228,'FFGym Clubs'!A:A,1,FALSE)","v":"LES FARFADETS GYM ET TRAMPOLINE"}]
["LES GRAPPES D'OR","75064.105","JURANCON",{"$f":"VLOOKUP(A229,'FFGym Clubs'!A:A,1,FALSE)","v":"LES GRAPPES D'OR"}]
["LES JEUNES DU CAPTALAT LA TESTE","75033.009","LA TESTE",{"$f":"VLOOKUP(A230,'FFGym Clubs'!A:A,1,FALSE)","v":"LES JEUNES DU CAPTALAT LA TESTE"}]
["LES PATRIOTES AGENAIS","75047.126","AGEN",{"$f":"VLOOKUP(A231,'FFGym Clubs'!A:A,1,FALSE)","v":"LES PATRIOTES AGENAIS"}]
["LICENCES INDIVIDUELLES FFGym","40995.000","PARIS",{"$f":"VLOOKUP(A232,'FFGym Clubs'!A:A,1,FALSE)","v":"LICENCES INDIVIDUELLES FFGym"}]
["LORRAINE GYMNASTIQUE LUNEVILLE","44054.006","LUNEVILLE",{"$f":"VLOOKUP(A233,'FFGym Clubs'!A:A,1,FALSE)","v":"LORRAINE GYMNASTIQUE LUNEVILLE"}]
["LOUVI'GYM","53035.090","LOUVIGNE DU DESERT",{"$f":"VLOOKUP(A234,'FFGym Clubs'!A:A,1,FALSE)","v":"LOUVI'GYM"}]
["L'UNION D'AY","44051.020","AY",{"$f":"VLOOKUP(A235,'FFGym Clubs'!A:A,1,FALSE)","v":"L'UNION D'AY"}]
["L'UNION des GYMNASTES NIORTAIS","75079.090","NIORT",{"$f":"VLOOKUP(A236,'FFGym Clubs'!A:A,1,FALSE)","v":"L'UNION des GYMNASTES NIORTAIS"}]
["L'UNION GYM","76031.097","L'UNION",{"$f":"VLOOKUP(A237,'FFGym Clubs'!A:A,1,FALSE)","v":"L'UNION GYM"}]
["L'UNION SPORTIVE TALENCAISE GYMNASTIQUE","75033.004","TALENCE",{"$f":"VLOOKUP(A238,'FFGym Clubs'!A:A,1,FALSE)","v":{"$error":"#N/A"}}]
["MONTIGNY LE BRETONNEUX GYMNASTIQUE","11078.013","MONTIGNY LE BRETONNEUX",{"$f":"VLOOKUP(A239,'FFGym Clubs'!A:A,1,FALSE)","v":"MONTIGNY LE BRETONNEUX GYMNASTIQUE"}]
["MORLAIX SAINT POL GYMNASTIQUE","53029.010","MORLAIX",{"$f":"VLOOKUP(A240,'FFGym Clubs'!A:A,1,FALSE)","v":"MORLAIX SAINT POL GYMNASTIQUE"}]
["MULHOUSE GYM ALSACE","44068.156","MULHOUSE",{"$f":"VLOOKUP(A241,'FFGym Clubs'!A:A,1,FALSE)","v":"MULHOUSE GYM ALSACE"}]
["MUNICIPALE CONDOM","76032.016","CONDOM",{"$f":"VLOOKUP(A242,'FFGym Clubs'!A:A,1,FALSE)","v":"MUNICIPALE CONDOM"}]
["NEUVILLE GYM","84069.091","NEUVILLE S/SAONE",{"$f":"VLOOKUP(A243,'FFGym Clubs'!A:A,1,FALSE)","v":"NEUVILLE GYM"}]
["NICE GYM","93006.099","NICE",{"$f":"VLOOKUP(A244,'FFGym Clubs'!A:A,1,FALSE)","v":"NICE GYM"}]
["PAUILLAC GYM","75033.024","PAUILLAC",{"$f":"VLOOKUP(A245,'FFGym Clubs'!A:A,1,FALSE)","v":"PAUILLAC GYM"}]
["PORTET GYM","76031.099","PORTET SUR GARONNE",{"$f":"VLOOKUP(A246,'FFGym Clubs'!A:A,1,FALSE)","v":"PORTET GYM"}]
["RAYON SPORTIF BRAGARD ST DIZIER","44052.055","SAINT DIZIER",{"$f":"VLOOKUP(A247,'FFGym Clubs'!A:A,1,FALSE)","v":"RAYON SPORTIF BRAGARD ST DIZIER"}]
["ROYAN OCEAN GYMNASTIQUE","75017.087","ROYAN",{"$f":"VLOOKUP(A248,'FFGym Clubs'!A:A,1,FALSE)","v":"ROYAN OCEAN GYMNASTIQUE"}]
["SAINT JEAN GYMNIQUE","76031.048","ST JEAN",{"$f":"VLOOKUP(A249,'FFGym Clubs'!A:A,1,FALSE)","v":"SAINT JEAN GYMNIQUE"}]
["SAINT-DENIS GYM REUNION","04974.042","SAINT-DENIS",{"$f":"VLOOKUP(A250,'FFGym Clubs'!A:A,1,FALSE)","v":"SAINT-DENIS GYM REUNION"}]
["SALESIENNE ANNECY","84074.069","ANNECY",{"$f":"VLOOKUP(A251,'FFGym Clubs'!A:A,1,FALSE)","v":"SALESIENNE ANNECY"}]
["SALTO ALBIGEOIS","76081.003","ALBI",{"$f":"VLOOKUP(A252,'FFGym Clubs'!A:A,1,FALSE)","v":"SALTO ALBIGEOIS"}]
["SALTO GYM CLUB","53035.176","SAINT AUBIN DU CORMIER",{"$f":"VLOOKUP(A253,'FFGym Clubs'!A:A,1,FALSE)","v":"SALTO GYM CLUB"}]
["SALTO GYM LA ROCHE CENTRE VENDEE","52085.104","ROCHE SUR YON",{"$f":"VLOOKUP(A254,'FFGym Clubs'!A:A,1,FALSE)","v":"SALTO GYM LA ROCHE CENTRE VENDEE"}]
["SAUMUR LOIRE ALLIANCE GYMNIQUE","52049.102","SAUMUR",{"$f":"VLOOKUP(A255,'FFGym Clubs'!A:A,1,FALSE)","v":"SAUMUR LOIRE ALLIANCE GYMNIQUE"}]
["SEDAN GYMNIQUE","44008.007","SEDAN",{"$f":"VLOOKUP(A256,'FFGym Clubs'!A:A,1,FALSE)","v":"SEDAN GYMNIQUE"}]
["SOCIETE DE GYMNASTIQUE DE YUTZ","44057.012","YUTZ",{"$f":"VLOOKUP(A257,'FFGym Clubs'!A:A,1,FALSE)","v":"SOCIETE DE GYMNASTIQUE DE YUTZ"}]
["SOCIETE DE GYMNASTIQUE ERSTEIN","44067.020","ERSTEIN",{"$f":"VLOOKUP(A258,'FFGym Clubs'!A:A,1,FALSE)","v":"SOCIETE DE GYMNASTIQUE ERSTEIN"}]
["SOCIETE DE GYMNASTIQUE MASEVAUX","44068.039","MASEVAUX",{"$f":"VLOOKUP(A259,'FFGym Clubs'!A:A,1,FALSE)","v":"SOCIETE DE GYMNASTIQUE MASEVAUX"}]
["SOCIETE DE GYMNASTIQUE MUTTERSHOLTZ","44067.011","MUTTERSHOLTZ",{"$f":"VLOOKUP(A260,'FFGym Clubs'!A:A,1,FALSE)","v":"SOCIETE DE GYMNASTIQUE MUTTERSHOLTZ"}]
["SOCIETE DE GYMNASTIQUE SAUSHEIM","44068.054","SAUSHEIM",{"$f":"VLOOKUP(A261,'FFGym Clubs'!A:A,1,FALSE)","v":"SOCIETE DE GYMNASTIQUE SAUSHEIM"}]
["SOCIETE DE GYMNASTIQUE SELESTAT","44067.019","SELESTAT",{"$f":"VLOOKUP(A262,'FFGym Clubs'!A:A,1,FALSE)","v":"SOCIETE DE GYMNASTIQUE SELESTAT"}]
["Société de Gymnastique Sportive St Joseph HOENHEIM","44067.173","HOENHEIM",{"$f":"VLOOKUP(A263,'FFGym Clubs'!A:A,1,FALSE)","v":"Société de Gymnastique Sportive St Joseph HOENHEIM"}]
["SOCIETE DE TRAMPOLINE ET DE GYMNASTIQUE DE CHATEAUDUN","24028.017","CHATEAUDUN",{"$f":"VLOOKUP(A264,'FFGym Clubs'!A:A,1,FALSE)","v":"SOCIETE DE TRAMPOLINE ET DE GYMNASTIQUE DE CHATEAUDUN"}]
["Société Immercurienne Gymnique de Saint Laurent Blangy","32062.085","ST LAURENT BLANGY",{"$f":"VLOOKUP(A265,'FFGym Clubs'!A:A,1,FALSE)","v":"Société Immercurienne Gymnique de Saint Laurent Blangy"}]
["SOCIETE MIOSSAISE","75033.011","MIOS",{"$f":"VLOOKUP(A266,'FFGym Clubs'!A:A,1,FALSE)","v":"SOCIETE MIOSSAISE"}]
["SOCIETE MUNICIPALE ARMENTIERES","32059.004","ARMENTIERES",{"$f":"VLOOKUP(A267,'FFGym Clubs'!A:A,1,FALSE)","v":"SOCIETE MUNICIPALE ARMENTIERES"}]
["SPORTING CLUB PRIVAS GYM","84007.105","PRIVAS",{"$f":"VLOOKUP(A268,'FFGym Clubs'!A:A,1,FALSE)","v":"SPORTING CLUB PRIVAS GYM"}]
["SPORTS REUNIS OBERNAI","44067.013","OBERNAI",{"$f":"VLOOKUP(A269,'FFGym Clubs'!A:A,1,FALSE)","v":"SPORTS REUNIS OBERNAI"}]
["ST CAPRAIS GYM BORDEAUX","75033.032","BORDEAUX",{"$f":"VLOOKUP(A270,'FFGym Clubs'!A:A,1,FALSE)","v":"ST CAPRAIS GYM BORDEAUX"}]
["ST MAIXENT GYM","75079.096","ST MAIXENT L'ECOLE",{"$f":"VLOOKUP(A271,'FFGym Clubs'!A:A,1,FALSE)","v":"ST MAIXENT GYM"}]
["STADE OLYMPIQUE DE ROSNY SOUS BOIS","11093.346","ROSNY SOUS BOIS",{"$f":"VLOOKUP(A272,'FFGym Clubs'!A:A,1,FALSE)","v":"STADE OLYMPIQUE DE ROSNY SOUS BOIS"}]
["STADE POITEVIN GYMNASTIQUE","75086.036","POITIERS",{"$f":"VLOOKUP(A273,'FFGym Clubs'!A:A,1,FALSE)","v":"STADE POITEVIN GYMNASTIQUE"}]
["SULNIAC GYM ACRO","53056.141","SULNIAC",{"$f":"VLOOKUP(A274,'FFGym Clubs'!A:A,1,FALSE)","v":"SULNIAC GYM ACRO"}]
["THOUARS GYM 79","75079.087","THOUARS",{"$f":"VLOOKUP(A275,'FFGym Clubs'!A:A,1,FALSE)","v":"THOUARS GYM 79"}]
["THOUROTTE GYM","32060.037","THOUROTTE",{"$f":"VLOOKUP(A276,'FFGym Clubs'!A:A,1,FALSE)","v":"THOUROTTE GYM"}]
["TRICOLORE SPORTIVE DE MASSY","11091.110","MASSY",{"$f":"VLOOKUP(A277,'FFGym Clubs'!A:A,1,FALSE)","v":"TRICOLORE SPORTIVE DE MASSY"}]
["U S J A CARQUEFOU","52044.056","CARQUEFOU",{"$f":"VLOOKUP(A278,'FFGym Clubs'!A:A,1,FALSE)","v":"U S J A CARQUEFOU"}]
["UNION ACROBATIQUE METZ-MOSELLE","44057.173","METZ",{"$f":"VLOOKUP(A279,'FFGym Clubs'!A:A,1,FALSE)","v":"UNION ACROBATIQUE METZ-MOSELLE"}]
["UNION COSNOISE SPORT","27058.012","COSNE COURS SUR LOIRE",{"$f":"VLOOKUP(A280,'FFGym Clubs'!A:A,1,FALSE)","v":"UNION COSNOISE SPORT"}]
["UNION GYMNIQUE PALOISE","75064.104","PAU",{"$f":"VLOOKUP(A281,'FFGym Clubs'!A:A,1,FALSE)","v":"UNION GYMNIQUE PALOISE"}]
["UNION GYMNIQUE SAPEURS POMPIER PORTES LES VALENCE","84026.043","PORTES LES VALENCE",{"$f":"VLOOKUP(A282,'FFGym Clubs'!A:A,1,FALSE)","v":"UNION GYMNIQUE SAPEURS POMPIER PORTES LES VALENCE"}]
["UNION GYMNIQUE SAUJONNAISE","75017.059","SAUJON",{"$f":"VLOOKUP(A283,'FFGym Clubs'!A:A,1,FALSE)","v":"UNION GYMNIQUE SAUJONNAISE"}]
["UNION HALLUINOISE DE GYM ET DE DANSE","32059.019","HALLUIN",{"$f":"VLOOKUP(A284,'FFGym Clubs'!A:A,1,FALSE)","v":"UNION HALLUINOISE DE GYM ET DE DANSE"}]
["UNION SPORTIVE ARGENTON GYMNASTIQUE","24036.096","ARGENTON SUR CREUSE",{"$f":"VLOOKUP(A285,'FFGym Clubs'!A:A,1,FALSE)","v":"UNION SPORTIVE ARGENTON GYMNASTIQUE"}]
["UNION SPORTIVE AVENIR AMNEVILLE","44057.053","AMNEVILLE",{"$f":"VLOOKUP(A286,'FFGym Clubs'!A:A,1,FALSE)","v":"UNION SPORTIVE AVENIR AMNEVILLE"}]
["UNION SPORTIVE DE CHAMALIERES","84063.009","CHAMALIERES",{"$f":"VLOOKUP(A287,'FFGym Clubs'!A:A,1,FALSE)","v":"UNION SPORTIVE DE CHAMALIERES"}]
["UNION SPORTIVE DE VERN GYMNASTIQUE","53035.174","VERN SUR SEICHE",{"$f":"VLOOKUP(A288,'FFGym Clubs'!A:A,1,FALSE)","v":"UNION SPORTIVE DE VERN GYMNASTIQUE"}]
["UNION SPORTIVE FORBACH GYMNASTIQUE ET DANSE FORBACH","44057.015","FORBACH",{"$f":"VLOOKUP(A289,'FFGym Clubs'!A:A,1,FALSE)","v":"UNION SPORTIVE FORBACH GYMNASTIQUE ET DANSE FORBACH"}]
["UNION SPORTIVE JARNY GYMNASTIQUE","44054.080","JARNY",{"$f":"VLOOKUP(A290,'FFGym Clubs'!A:A,1,FALSE)","v":"UNION SPORTIVE JARNY GYMNASTIQUE"}]
["UNION SPORTIVE LAVALLOISE","52053.073","LAVAL",{"$f":"VLOOKUP(A291,'FFGym Clubs'!A:A,1,FALSE)","v":"UNION SPORTIVE LAVALLOISE"}]
["UNION SPORTIVE LIFFREENNE","53035.039","LIFFRE",{"$f":"VLOOKUP(A292,'FFGym Clubs'!A:A,1,FALSE)","v":"UNION SPORTIVE LIFFREENNE"}]
["UNION SPORTIVE PORTOISE DE GYMNASTIQUE ET DU SPORT ACROBATIQUE","04974.006","LE PORT",{"$f":"VLOOKUP(A293,'FFGym Clubs'!A:A,1,FALSE)","v":"UNION SPORTIVE PORTOISE DE GYMNASTIQUE ET DU SPORT ACROBATIQUE"}]
["USM GYM LA MELUNAISE","11077.111","MELUN",{"$f":"VLOOKUP(A294,'FFGym Clubs'!A:A,1,FALSE)","v":"USM GYM LA MELUNAISE"}]
["VANNETAISE ATHLETIC CLUB","53056.011","VANNES",{"$f":"VLOOKUP(A295,'FFGym Clubs'!A:A,1,FALSE)","v":"VANNETAISE ATHLETIC CLUB"}]
["VELAY GYM","84043.067","LE PUY",{"$f":"VLOOKUP(A296,'FFGym Clubs'!A:A,1,FALSE)","v":"VELAY GYM"}]
["VICHY GYM","84003.059","VICHY",{"$f":"VLOOKUP(A297,'FFGym Clubs'!A:A,1,FALSE)","v":"VICHY GYM"}]
["VILLEMOMBLE SPORT GYMNASTIQUE","11093.349","VILLEMOMBLE",{"$f":"VLOOKUP(A298,'FFGym Clubs'!A:A,1,FALSE)","v":"VILLEMOMBLE SPORT GYMNASTIQUE"}]

{"sheet":"FFGym Clubs","index":4,"n_rows":381,"n_cols":5,"rows_kept":381,"cut":false,"hidden":false,"merged":[]}
["Nom","Number","Numéro d'affiliation","Abréviation","Ville"]
[null,0]
["1-CLUB INTROUVABLE ",1,"00000.000","INCONNU","INCONNUE"]
["A S C A",2,"52072.054","A S C A","LA CHAPELLE ST-AUBIN"]
["A S COURONNAISE ",3,"28076.027","A.S.C.G PETIT COURONNE ","PETIT COURONNE"]
["A.N.T. AVIGNON",4,"93084.033","A.N.T. AVIGNON","AVIGNON"]
["A.S.P.C. GYM'SPORT",5,"52049.082","A.S.PONTS DE CE","LES PONTS DE CE"]
["ABBEVILLE GYM",6,"32080.065","ABBEVILLE GYM","ABBEVILLE"]
["AC CHAPELAIN",7,"52044.061","AC CHAPELAIN","LA CHAPELLE SUR ERDRE"]
["ACR GYM",8,"24041.061","ACR ROMORANTIN","ROMORANTIN"]
["ACRO VOLTIGE",9,"52085.103","","LUCON"]
["ACRO VOLTIGE",10,"52085.103","SEVRAN-ATS 93","LUCON"]
["ACTI' GYM CAVAILLON",11,"93084.135","ACTI' GYM CAVAILLON","CAVAILLON"]
["AG DE LA MONTAGNE",12,"52044.047","AG DE LA MONTAGNE","LA MONTAGNE"]
["AGM GYM VESOUL",13,"27070.055","AGM GYM VESOUL","VESOUL"]
["ALBONAISE GYMNASTIQUE DE FRANCONVILLE",14,"11095.301","FRANCONVILLE-AGF","FRANCONVILLE"]
["ALERTE SAINT GEORGES SUR CHER",15,"24041.063","ALERTE ST GEORGES","SAINT GEORGES SUR CHER"]
["ALLIANCE TOURQUENNOISE DE GYMNASTIQUE",16,"32059.254","ATG  Tourcoing","TOURCOING"]
["AMICALE DE VILLENEUVE LA GARENNE - COURS MUNICIPAL DE GYMNASTIQUE DE VILLENEUVE",17,"11092.251","VILLENEUVE LA G-AVGCMGV","VILLENEUVE LA GARENNE"]
["AMICALE LAIQUE BILLERE",18,"75064.103","AL BILLERE","BILLERE"]
["AMICALE LAIQUE DIGOIN",19,"27071.031","AMICALE LAIQUE DIGOIN","DIGOIN"]
["AMICALE LAIQUE JULES FERRY",20,"84001.021","ALJF AMBERIEU","AMBERIEU EN BUGEY"]
["AMICALE LAIQUE PARAY",21,"27071.038","AMICALE LAIQUE PARAY","PARAY LE MONIAL"]
["ANCIENNE ESPERANCE ANGOULEME",22,"75016.011","AE ANGOULEME","ANGOULÊME"]
["ANGERS GYMNASTIQUE",23,"52049.077","ANGERS GYMNASTIQUE","ANGERS"]
["ASS. SPORTIVE FOURCHAMBAULT",24,"27058.063","A. S. FOURCHAMBAULT","FOURCHAMBAULT"]
["ASS. SPORTIVE GUERIGNY URZY",25,"27058.005","A.S.GUERIGNY URZY","GUERIGNY"]
["ASS.SPORT.UNION CHEMINOTTE",26,"27089.075","A. S. U. C. MIGENNES","MIGENNES"]
["ASSOCIATION AMICALE SPORTIVE SARCELLES",27,"11095.317","SARCELLES-AASS","SARCELLES"]
["ASSOCIATION AUXONNAISE DE GYM",28,"27021.077","AAG - AUXONNE","AUXONNE"]
["ASSOCIATION EN FORM' SECTION GYM",29,"75079.097","AS EN FORM MAUZE LE MIGNON","MAUZE SUR LE MIGNON"]
["ASSOCIATION GRAINES D'ACROBATES",30,"03973.001","ASSOCIATION GRAINES D'ACROBATE","SAINT-LAURENT DU MARONI"]
["ASSOCIATION GYMNIQUE  LOUDUNAISE",31,"75086.034","AG LOUDUN","LOUDUN"]
["ASSOCIATION GYMNIQUE BREUILLETOISE",32,"11091.135","A.G.BOIS ROSE","BREUILLET"]
["ASSOCIATION GYMNIQUE CHAUVINOISE",33,"75086.072","AG CHAUVINOISE","CHAUVIGNY"]
["ASSOCIATION GYMNIQUE DE BALAGNE",34,"94020.012","A. G.  BALAGNE","L'ILE  ROUSSE"]
["ASSOCIATION GYMNIQUE DE CESSON VERT ST DENIS",35,"11077.130","CESSON VERT ST DENIS - AGCVD","CESSON VERT SAINT DENIS"]
["ASSOCIATION GYMNIQUE DE CHOISY LE ROI",36,"11094.563","CHOISY LE ROI-AGCR","CHOISY LE ROI"]
["ASSOCIATION GYMNIQUE DE LATTES-MAURIN",37,"76034.003","ASS GYMNIQUE DE LATTES-MAURIN","MAURIN"]
["ASSOCIATION GYMNIQUE DE L'ORGE",38,"11091.122","ST MICHEL / ORGE-AGYMO","SAINT MICHEL SUR ORGE"]
["ASSOCIATION GYMNIQUE DE PLOUGASTEL",39,"53029.086","AG PLOUGASTEL","PLOUGASTEL"]
["ASSOCIATION GYMNIQUE LA FAMECKOISE",40,"44057.014","A.G.FAMECKOISE","FAMECK"]
["ASSOCIATION GYMNIQUE PERPIGNANAISE",41,"76066.053","A.G.P.PERPIGNAN","PERPIGNAN"]
["ASSOCIATION GYMNIQUE REMOISE",42,"44051.048","AG REIMS","REIMS"]
["ASSOCIATION MUNICIPALE GYMNIQUE ARQUES",43,"32062.139","AMGA ARQUES","ARQUES"]
["ASSOCIATION SPORTIVE AMBARESIENNE GYM",44,"75033.056","AS AMBARES GYM","AMBARES"]
["ASSOCIATION SPORTIVE DE LA JEUNESSE ONZAINOISE",45,"24041.076","AS GLAINES","ONZAIN"]
["ASSOCIATION SPORTIVE DE SARREGUEMINES",46,"44057.032","ASS.SP.SARREGUEMINES","SARREGUEMINES"]
["ASSOCIATION SPORTIVE ET CULTURELLE PESSAC ALOUETTE",47,"75033.010","ASCPA PESSAC","PESSAC ALOUETTE"]
["ASSOCIATION SPORTIVE FLEURANCE GYM",48,"76032.084","AS FLEURANCE GYM","FLEURANCE"]
["ASSOCIATION SPORTIVE FONTAINE",49,"84038.029","ASF GYM","FONTAINE"]
["ASSOCIATION SPORTIVE GYMNASTIQUE TRAMPOLINE DE ROGNAC",50,"93013.113","ASR GYM TRAMPO ROGNAC","ROGNAC"]
["ASSOCIATION SPORTIVE GYMNIQUE VILLENAVE D'ORNON",51,"75033.014","ASG VILLENAVE D'ORNON","VILLENAVE D'ORNON"]
["ASSOCIATION SPORTIVE ILLACAISE",52,"75033.069","AS ST JEAN d'ILLAC","ST JEAN D'ILLAC"]
["ASSOCIATION SPORTIVE KEVIN DUPUIS GYMNASTIQUE",53,"52044.035","ASKD GYM","CHATEAUBRIANT"]
["ASSOCIATION SPORTIVE LE HAILLAN GYM",54,"75033.018","ASG LE HAILLAN","LE HAILLAN"]
["ASSOCIATION SPORTIVE LES TAMARIS",55,"24045.068","AS LES TAMARIS","SAINT JEAN DE BRAYE"]
["ASSOCIATION SPORTIVE MONTFERRANDAISE",56,"84063.002","A.S. MONTFERRANDAISE","CLERMONT-FD"]
["ASSOCIATION SPORTIVE PIAN MEDOC Gym Trampoline",57,"75033.052","A.S. MONTFERRANDAISE","LE PIAN MEDOC"]
["ASSOCIATION SPORTIVE SAINT-REMY DE VITTEL",58,"44088.117","SAINT REMY VITTEL","VITTEL"]
["ASSOCIATION SPORTIVE ST MEDARD EN JALLES",59,"75033.017","AS ST MEDARD EN JALLES","ST MEDARD EN JALLES"]
["ASSOCIATION TRAMPOGYM SAINT-PAUL",60,"04974.024","TRAMPOGYM SAINT-PAUL","SAINT-PAUL"]
["ASTUS SOISY SOUS MONTMORENCY",61,"11095.307","SOISY S/S M-ASTUS","SOISY SOUS MONTMORENCY"]
["AVANT GARDE DE TERVES",62,"75079.022","AG TERVES","TERVES"]
["AVANT GARDE DU MANS",63,"52072.041","AVANT GARDE DU MANS","LE MANS"]
["AVANT GARDE TAIN TOURNON",64,"84026.008","AGTT GYM","TAIN TOURNON"]
["AVENIR COLMAR",65,"44068.028","AVENIR COLMAR","COLMAR"]
["AVENIR DU HOULME",66,"28076.016","AVENIR DU HOULME","LE HOULME"]
["AVENIR EBROICIEN",67,"28027.033","AV EBROICIEN","EVREUX"]
["AVENIR ETIENNE BILLIERES",68,"76031.017","AV.ETIENNE BILLIERES","TOULOUSE"]
["AVENIR EVIANAIS",69,"84074.041","A EVIAN","EVIAN"]
["AVENIR GESSIEN DE THOIRY",70,"84001.062","AGT","THOIRY"]
["AVENIR GYMNIQUE DE CORBIE",71,"32080.064","AGC  CORBIE","CORBIE"]
["AVENIR GYMNIQUE LURE",72,"27070.051","AG LURE","LURE"]
["AVENIR GYMNIQUE ORANGEOIS",73,"93084.132","A.G.O ORANGE","ORANGE"]
["AVENIR LA REDONNAISE GYMNASTIQUE",74,"53035.001","AL REDON GYM","REDON"]
["AVOINE BEAUMONT GYMNASTIQUE ",75,"24037.021","AVOINE BEAUMONT GYMNASTIQUE ","AVOINE - BEAUMONT EN VERON"]
["BASTIA TEAM GYM",76,"94020.022","BASTIA TMG","BASTIA"]
["BEAUSEJOUR LES SABLES",77,"52085.018","BEAUSEJOUR LES SABLES","LES SABLES D'OLONNE"]
["BELFORT GYMNASTIQUE",78,"27090.027","BELFORT GYM","BELFORT"]
["BIARRITZ GYMNASTIQUE CLUB",79,"75064.132","BIARRITZ GYM","BIARRITZ"]
["BLANC MESNIL SPORT GYMNASTIQUE",80,"11093.338","BLANC MESNIL-BMS GYM","LE BLANC MESNIL"]
["BOIS COLOMBES TRAMPOLINE 92",81,"11092.238","BOIS COLOMBES-BCT92","BOIS COLOMBES"]
["BOLLENE GYMNASTIQUE",82,"93084.138","BOLLENE GYM","BOLLENE"]
["BREIZH GYM",83,"53035.179","BREIZH GYM","RENNES"]
["BRIGNOLES CARCES GYM",84,"93083.101","BRIGNOLES CARCES GYM","CARCES"]
["BROCELI'GYM MONTFORT",85,"53035.167","BRIVE GYM","MONTFORT SUR MEU"]
["CABRI MELLOIS",86,"75079.037","CABRI MELLOIS","MELLE"]
["CARCASSONNE OLYMPIQUE SECTION GYMNASTIQUE",87,"76011.002","CARCASSONNE OLYMPIQUE","CARCASSONNE"]
["CARCES GYM",88,"93083.101","CARCASSONNE OLYMPIQUE","CARCES"]
["CEP POITIERS",89,"75086.017","CEP POITIERS","POITIERS"]
["CERCLE D EDUCATION PHYSIQUE GYM POITIERS",90,"75086.017","C.C.N.","POITIERS"]
["CERCLE JULES FERRY",91,"53035.002","CERCLE JULES FERRY","SAINT-MALO"]
["CERCLE PASTEUR MONTARGIS",92,"24045.036","CERCLE PASTEUR MONTARGIS","MONTARGIS"]
["CERCLE PAUL BERT",93,"53035.009","CERCLE PAUL BERT","RENNES"]
["CERCLE SPORTIF LAIC",94,"27071.021","CSL - SAINT-VALLIER","SAINT VALLIER"]
["CLOCHETTE L'ISLOISE",95,"76032.082","CLOCHETTE L'ISLOISE","L'ISLE JOURDAIN"]
["CLUB ATHLETIQUE BEGLAIS",96,"75033.002","CA BEGLES","BEGLES"]
["CLUB DE GYMNASTIQUE DE HERMES",97,"32060.086","CG HERMES","HERMES"]
["CLUB DE GYMNASTIQUE DE SERIGNAN",98,"76034.128","GYM CLUB SERIGNAN","SERIGNAN"]
["CLUB DE GYMNASTIQUE ST-ANDREEN",99,"04974.014","C.G.S.A.","SAINT-ANDRE"]
["CLUB DEPARTEMENTAL DE GYMNASTIQUE GIRONDE",100,"75033.074","CD GYM 33 BORDEAUX","BORDEAUX"]
["CLUB GROUP'OMNISPORT de ST JULIEN L'ARS",101,"75086.031","CGO ST JULIEN de l'ARS","SAINT JULIEN L'ARS"]
["CLUB GYMNIQUE DE BONNEVEINE MARSEILLE",102,"93013.019","C.G.B MARSEILLE","MARSEILLE"]
["CLUB GYMNIQUE DE LASSIGNY",103,"32060.068","C G LASSIGNY","LASSIGNY"]
["CLUB GYMNIQUE DE NEUILLY SUR MARNE",104,"11093.341","NEUILLY S/MARNE-CGNSM","NEUILLY SUR MARNE"]
["CLUB GYMNIQUE DE SAINT GINIEZ",105,"93013.018","SAINT-GINIEZ MARSEILLE","MARSEILLE"]
["CLUB GYMNIQUE DE SAINT PIERRE REUNION",106,"04974.012","C.GYM.S.P.","SAINT-PIERRE"]
["CLUB GYMNIQUE ERMONT",107,"11095.300","ERMONT-CGE","ERMONT"]
["CLUB GYMNIQUE LANGROIS",108,"44052.062","CLUB GYMNIQUE LANGROIS","LANGRES"]
["CLUB GYMNIQUE RILLIEUX",109,"84069.051","CGR","RILLIEUX LA PAPE"]
["CLUB L'ISLOIS DE GYMNASTIQUE",110,"93084.064","C.L.G L'ISLE SUR LA SORGUE","L ISLE SUR LA SORGUE"]
["CLUB MARIGNANAIS DES SPORTS DE GYMNASTIQUE",111,"93013.001","C.M.S. MARIGNANE","MARIGNANE"]
["CLUB OLYMPIQUE MULTISPORTS BAGNEUX",112,"11092.202","BAGNEUX-COMB","BAGNEUX"]
["CLUB SPORTIF ARTISTIQUE DE LA DEFENSE - CHATELLERAULT",113,"75086.009","CSAD - CHATELLERAULT","CHATELLERAULT"]
["CLUB SPORTIF BETTON",114,"53035.073","CLUB SPORTIF BETTON","BETTON"]
["CLUB SPORTIF DE GRAVENCHON",115,"28076.092","C.S.G GRAVENCHON","NOTRE DAME DE GRAVENCHON"]
["CLUB SPORTIF DE MARDEUIL",116,"44051.033","CLUB SPORTIF DE MARDEUIL","MARDEUIL"]
["CLUB SPORTIF ET ATHLETIQUE DU KREMLIN BICETRE",117,"11094.567","KREMLIN-BICETRE-CSAKB","KREMLIN BICETRE"]
["CLUB SPORTIF MUNICIPAL DE GYMNASTIQUE EPINAY SOUS SENART",118,"11091.104","EPINAY SS SENART-CSMG","EPINAY SOUS SENART"]
["CLUB SPORTIF MUNICIPAL LE PECQ",119,"11078.062","LE PECQ-CSMLP","LE PECQ"]
["CLUB SPORTIF VILLEPINTE GYMNASTIQUE",120,"11093.363","VILLEPINTE-CSVG ","VILLEPINTE"]
["COGLAIS GYM",121,"53035.170","","MAEN ROCH"]
["COQUELICOT TOULOUSE GYM",122,"76031.012","C. T. GYM","TOULOUSE"]
["DAMELEVIERES GYMNASTIQUE",123,"44054.161","DAMELEVIERES GYMNASTIQUE","DAMELEVIERES"]
["DEFENSE AMBLAINVILLE",124,"32060.014","DEFENSE AMBLAINVILLE","AMBLAINVILLE"]
["DINARD-GYM",125,"53035.120","DINARD-GYM","DINARD"]
["E A TESSOUALLE",126,"52049.074","E A TESSOUALLE","LA TESSOUALLE"]
["E G TREMENTINES",127,"52049.089","E G TREMENTINES","TREMENTINES"]
["E. S. M. G-O",128,"28076.067","E. S. M. G-O","GONFREVILLE L.ORCHER"]
["E.S.M. GYM CHALLANS",129,"52085.048","E.S.M. GYM CHALLANS","CHALLANS"]
["ELAN GYMNIQUE COUDEKERQUOIS",130,"32059.010","E. G. COUDEKERQUE","COUDEKERQUE"]
["ELAN GYMNIQUE DE BLAGNAC",131,"76031.049","EG BLAGNAC","BLAGNAC"]
["ELAN GYMNIQUE DE SEVRAN",132,"11093.347","SEVRAN-EGS","SEVRAN"]
["ELAN MORTAGNAIS",133,"52085.037","ELAN MORTAGNAIS","MORTAGNE SUR SEVRE"]
["ELGAR GYM",134,"75064.116","EG ST JEAN DE LUZ","ST JEAN DE LUZ"]
["ELITE GYM VILLEFRANCHE",135,"84069.011","EGV","VILLEFRANCHE SUR SAÔNE"]
["ENFANCE ET GYMNASTIQUE DE DIEUZE",136,"44057.113","ENF.ET GYM. DIEUZE","DIEUZE"]
["ENFANTS DU REVARD AIX LES BAINS",137,"84073.037","ER AIX LES BAINS","AIX LES BAINS"]
["ENTENTE FAMILIALE OMNISPORT ROYALLIEU COMPIEGNE",138,"32060.031","E.F.O.R.C. COMPIEGNE","COMPIEGNE"]
["ENTENTE GYMNIQUE DEODATIENNE",139,"44088.092","E.G. SAINT DIE","SAINT DIE DES VOSGES"]
["ENTENTE GYMNIQUE ETAMPES - SECTION GYMNASTIQUE",140,"11091.105","ETAMPES-EGE-GYM","ETAMPES"]
["ENTENTE GYMNIQUE GANNATOISE",141,"84003.077","EG GANNAT","GANNAT"]
["ENTENTE GYMNIQUE GRASSOISE",142,"93006.022","GYM GRASSE","GRASSE"]
["ENTENTE GYMNIQUE LA ROSE BLEUE",143,"76030.042","LA ROSE BLEUE BAGNOLS S/CEZE","BAGNOLS SUR CEZE"]
["ENTENTE SPORTIVE DE BRUGES",144,"75033.012","ES BRUGES","BRUGES"]
["ENTENTE SPORTIVE FALAISIENNE GYMNASTIQUE",145,"28014.193","ES FALAISE","FALAISE"]
["ENTRE CLAIN ET MIOSSON",146,"75086.068","ECM FLEURE","FLEURE"]
["ESPACE FORM",147,"28076.148","ESPACE FORM'","PAVILLY"]
["ESPERANCE AUDINCOURT",148,"27025.010","ESPERANCE AUDINCOURT","AUDINCOURT"]
["ESPERANCE DE BERNAY",149,"28027.019","ESPERANCE BERNAY","BERNAY"]
["ESPERANCE DE VIGNEUX",150,"11091.118","VIGNEUX-EV","VIGNEUX"]
["ESPERANCE D'OISSEL",151,"28076.024","ESPERANCE D'OISSEL","OISSEL"]
["ESPERANCE MONTATAIRE",152,"32060.013","ESPERANCE MONTATAIRE","MONTATAIRE"]
["ESPERANCE ST LEGER GYMNASTIQUE",153,"27058.006","E - SAINT LEGER DES VIGNES","ST LEGER DES VIGNES"]
["ESPERANCE ST-GERMANOISE",154,"84003.053","ESG","ST GERMAIN DES FOSSES"]
["ETOILE GOUSSAINVILLOISE",155,"11095.303","GOUSSAINVILLE-EG","GOUSSAINVILLE"]
["ETOILE GYMNIQUE DE COLOMIERS",156,"76031.035","EG COLOMIERS","COLOMIERS"]
["ÉTOILE GYMNIQUE ONZAINOISE ",157,"24041.082","EGO ","VEUZAIN SUR LOIRE"]
["ETOILE PARTHENAISIENNE",158,"75079.040","ETOILE PARTHENAISIENNE","PARTHENAY"]
["ETOILE SAINT AMANDOISE",159,"24018.003","E.S.A","SAINT AMAND MONTROND"]
["ETOILE SPORTIVE GYMNASTIQUE CHATEAU LANDON",160,"11077.150","CHATEAU LANDON-ASGCL","CHATEAU LANDON"]
["ETOILE SPORTIVE SANVIGNES",161,"27071.039","E. S. SANVIGNES","SANVIGNES"]
["ETOILE SPORTIVE ST MARCELLOISE SUD MINERVOIS",162,"76011.015","ETOILE SPORTIVE ST MARCEL","SAINT MARCEL"]
["EVASION SPORTIVE ET CULTURELLE PAR L'ANIMATION ET LES LOISIRS GYMNIQUES",163,"28076.177","ESCAL","ROUEN"]
["EVEIL DE CONTRES ",164,"24041.079","EVEIL ","CONTRES"]
["EVOLUTION MORTEAU",165,"27025.014","EVOLUTION MORTEAU","MORTEAU"]
["FEMINA SPORTS DE MONACO",166,"93098.008","F.S.M MONACO","MONACO"]
["FOIX ATHLETIC CLUB",167,"76009.001","FAC","FOIX"]
["FONTENILLES GYM",168,"76031.094","FG","FONTENILLES"]
["GINNASTICA CORSU DI U PAESE AIACCINU",169,"94020.021","GC PAESE AIACCINU","AJACCIO"]
["GIVRE EN MAI",170,"75079.024","GIVRE ST SAUVEUR EN MAI","SAINT SAUVEUR DE GIVRE EN MAI"]
["GRENOBLE GYM",171,"84038.013","GRENOBLE GYM","GRENOBLE"]
["GROUPEMENT GYMNIQUE HAVRE BANLIEUE",172,"28076.073","G. G. H. B.","LE HAVRE"]
["GYM 2000 LA FARLEDE",173,"93083.088","GYM 2000 LA FARLEDE","LA FARLEDE"]
["GYM 64 - ASSOCIATION DEPARTEMENTALE DE GYMNASTIQUE",174,"75064.130","GYM 64 PAU","PAU"]
["GYM AGRES VELIZY",175,"11078.011","VELIZY-GAV","VELIZY"]
["GYM CLUB DE LECOUSSE",176,"53035.117","GYM CLUB DE LECOUSSE","LECOUSSE"]
["GYM CLUB DU PERREUX",177,"11094.584","LE PERREUX-GCP","LE PERREUX"]
["GYM CLUB NUEIL LES AUBIERS",178,"75079.053","GC NUEIL LES AUBIERS","NUEIL LES AUBIERS"]
["GYM CLUB POSSESSION",179,"04974.008","G.C.P","LA POSSESSION"]
["GYM CLUB SUZERAIN",180,"52072.011","GYM CLUB SUZERAIN","LA SUZE SUR SARTHE"]
["GYM CREYSSE",181,"75024.165","GYM CREYSSE","CREYSSE"]
["GYM EQUILIBRE",182,"52085.053","GYM EQUILIBRE","CHANTONNAY"]
["GYM et RYTHME CROLLES",183,"84038.106","GR CROLLES","CROLLES"]
["GYM L AIGLE",184,"28061.380","G L AIGLE","L AIGLE"]
["GYM OLERON",185,"75017.051","GYM OLERON","SAINT PIERRE D OLERON"]
["GYM OLIVET",186,"24045.038","GYM OLIVET","OLIVET"]
["GYM' PARIS 15",187,"11075.046","PARIS-GP15","PARIS"]
["GYM SPORT PAM",188,"44054.005","PONT A MOUSSON","PONT A MOUSSON"]
["GYM'ART & FORM'FITNESS",189,"53035.169","GA2F","THORIGNÉ FOUILLARD"]
["GYM'CLUB RUTHENOIS",190,"76012.056","GYM'CLUB RUTHENOIS","RODEZ"]
["GYMNASE MUNICIPAL DE ST VALLIER",191,"84026.004","GM ST VALLIER","ST VALLIER"]
["GYMNASTE CLUB DE MANDELIEU LA NAPOULE",192,"93006.076","G.C.M.N. MANDELIEU","MANDELIEU LA NAPOULE"]
["GYMNASTIQUE CLUB DE CHATEAU GONTIER",193,"52053.091","GYM CHATEAU GONTIER","CHATEAU GONTIER"]
["GYMNASTIQUE CLUB DE WISSOUS",194,"11091.131","WISSOUS-GCW","WISSOUS"]
["GYMNASTIQUE CLUB LA ROCHE SUR YON",195,"52085.099","G C R Y","ROCHE SUR YON"]
["GYMNASTIQUE CLUB MENNECY",196,"11091.152","MENNECY-GCM","MENNECY"]
["GYMNASTIQUE DU PAYS D'AIX EN PROVENCE",197,"93013.166","GPA AIX EN PROVENCE","AIX EN PROVENCE"]
["GYMNASTIQUE LE TRAIT",198,"28076.115","GYMNASTIQUE LE TRAIT","LE TRAIT"]
["GYMNASTIQUE SODOBRIENNE DE SUEVRES",199,"24041.077","GYMNASTIQUE SODOBRIENNE","SUEVRES"]
["GYMNASTIQUE SPORTIVE BLANQUEFORT",200,"75033.065","GS BLANQUEFORT","BLANQUEFORT"]
["GYMNASTIQUE SPORTIVE CHARTRES DE BRETAGNE",201,"53035.083","GS CHARTRES 35","CHARTRES DE BRETAGNE"]
["GYMNASTIQUE SPORTIVE DE GAP",202,"93005.082","G.S GAP","GAP"]
["GYMNASTIQUE SPORTIVE ETOILE - MONTIVILLIERS",203,"28076.086","G.S.E.MONTIVILLIERS","MONTIVILLIERS "]
["GYMNATLANTICLUB",204,"52085.101","GAC","MOUTIERS LES MAUXFAITS"]
["HEGAL-EGIN",205,"75064.126","HEGALDI AER TARNOS","ANGLET"]
["HEGAL-EGIN ANGLET OLYMPIQUE",206,"75064.126","HEGAL-EGIN ANGLET","ANGLET"]
["HENIN GYM",207,"32062.201","HENIN GYM","HENIN-BEAUMONT"]
["HIRONDELLES TROYES GYMNIQUE",208,"44010.010","HIRONDELLES TROYES GYMNIQUE","TROYES"]
["HYERES GYM",209,"93083.031","HYERES GYM","HYERES"]
["ILETS SPORTS MONTLUCONNAIS",210,"84003.031","ISM GYM","MONTLUÇON"]
["IMPULSION GYM",211,"75079.088","IG ST MARTIN DE BERNEGOUE","ST MARTIN DE BERNEGOUE"]
["INDEPENDANTE COMTOISE BESANCON GYMNASTIQUE",212,"27025.008","IC BESANÇON GYM","BESANÇON"]
["INDEPENDANTE KINGERSHEIM",213,"44068.037","INDEP. KINGERSHEIM","KINGERSHEIM"]
["INFINITY GYMNASTICS VAL D'EUROPE",214,"11077.180","SERRIS-IGVE","SERRIS"]
["ISSOLDUNOISE",215,"24036.004","ISSOLDUNOISE","ISSOUDUN"]
["J3 SPORTS AMILLY GYMNASTIQUE",216,"24045.058","J3 SPORTS AMILLY","AMILLY"]
["JARNAC SPORTS GYMNASTIQUE",217,"75016.004","JARNAC GYM","JARNAC"]
["JEAN ZAY WATTRELOS",218,"32059.182","JEAN ZAY WATTRELOS","WATTRELOS"]
["JEUNE CRAN CHEVANCEAUX",219,"75017.066","JC CHEVANCEAUX","CHEVANCEAUX"]
["JEUNE FRANCE DE L ABSIE",220,"75079.039","JEUNE FRANCE CHOLET","L'ABSIE"]
["JEUNE FRANCE GYM",221,"75079.039","JF GYM ABSIE","L'ABSIE"]
["JEUNESSE LAIQUE REPUBLICAINE VILLENEUVE/LOT",222,"75047.127","JLR VILLENEUVE/LOT","VILLENEUVE/LOT"]
["JEUNESSE SPORTIVE ANGOULEME",223,"75016.001","JS ANGOULEME","ANGOULEME"]
["Juges convoqués FFGym",224,"40995.361","JC ORTHEZIEN","FFGYM"]
["KAN-KOUROU",225,"03973.002","KAN-KOUROU","KOUROU"]
["KEWENN GYMNASTIQUE",226,"53056.160","KEWENN GYM","QUEVEN"]
["L OLYMPIQUE GRANDE SYNTHE",227,"32059.098","OGS   GRANDE SYNTHE","GRANDE SYNTHE"]
["LA BELLERIVOISE",228,"84003.024","LA BELLERIVOISE","BELLERIVE SUR ALLIER"]
["LA BIGOURDANE TARBES",229,"76065.023","LA BIGOURDANE TARBES","TARBES"]
["LA BLESOISE",230,"24041.030","LA BLESOISE","BLOIS"]
["LA BOURBONNAISE",231,"84003.032","LA BOURBONNAISE","MOULINS"]
["LA BRESSAUDE",232,"44088.107","LA BRESSE","LA BRESSE"]
["LA BRETONNE GYMNIC CLUB",233,"53022.001","LA BRETONNE GYMNIC","SAINT BRIEUC"]
["LA CELLE SAINT CLOUD GYM",234,"11078.003","LA CELLE ST CLOUD-LCSCG","LA CELLE SAINT CLOUD"]
["LA CHAMPIGNEULLAISE",235,"44054.118","LA CHAMPIGNEULLAISE","CHAMPIGNEULLES"]
["LA CHAUMONTAISE",236,"44052.025","LA CHAUMONTAISE","CHAUMONT"]
["LA COGNACAISE",237,"75016.003"," LA COGNACAISE","COGNAC"]
["LA DINANNAISE",238,"53022.014","LA DINANNAISE","DINAN"]
["LA FONTENAISIENNE",239,"52085.013","LA FONTENAISIENNE","FONTENAY LE COMTE"]
["LA FRANCAISE DE CUSSET",240,"84003.026","Asso. Gym. La Française","CUSSET"]
["LA FRATERNELLE",241,"28027.042","LA FRATERNELLE","LOUVIERS"]
["LA FRONTIERE DE REMIREMONT",242,"44088.047","FRONTIERE REMIREMONT","REMIREMONT"]
["LA GAULOISE MOZAC",243,"84063.014","LA GAULOISE MOZAC","MOZAC"]
["LA JEANNE D'ARC DE MAURIAC",244,"84015.033","LA JEANNE D'ARC MAURIAC","MAURIAC"]
["LA JEANNE D'ARC DE PLOMBIERES",245,"44088.095","J.D'ARC PLOMBIERES","PLOMBIERES"]
["LA JEUNESSE BETHUNOISE",246,"32062.192","JEUN. BETHUNOISE","BETHUNE"]
["LA LEGERE MELINOISE",247,"27070.026","LA LAONNOISE","ECHENOZ LA MELINE"]
["LA LÉGÈRE MÉLINOISE",248,"27070.026","LM ÉCHENOZ LA MÉLINE","ÉCHENOZ LA MÉLINE"]
["LA NIVERNAISE",249,"27058.007","LN - NEVERS","NEVERS"]
["LA PERSEVERANTE",250,"52072.038","LA PERSEVERANTE","LE MANS"]
["LA PERSEVERANTE DE MAROMME",251,"28076.020","LA P. MAROMME","MAROMME"]
["LA POSTILLONNE OLYMPIQUE GYMNASTIQUE",252,"11091.108","LONGJUMEAU-LPOL","LONGJUMEAU"]
["LA RENAISSANCE",253,"44051.023","LA RENAISSANCE","CHALONS EN CHAMPAGNE"]
["LA ROCHEFORTAISE",254,"75017.006","LA ROCHEFORTAISE","ROCHEFORT SUR MER"]
["LA ROCHELAISE ET FRATERNELLE REUNIES",255,"75017.005","LR et FR LA ROCHELLE","LA ROCHELLE"]
["LA SEREINE GYMNASTIQUE MONTLUEL",256,"84001.063","SEREINE MONTLUEL","MONTLUEL"]
["LA VAILLANTE DE LANGON",257,"75033.006","LA V. LANGON","LANGON"]
["LA VAUDOISE GYMNASTIQUE HERICOURT",258,"27070.052","LA VAUDOISE HERICOURT","HÉRICOURT"]
["LA VIGILANTE DE NOISY LE SEC",259,"11093.344","NOISY LE SEC-LVNLS","NOISY LE SEC"]
["LA VIGILANTE GYMNASTIQUE",260,"53035.003","VIGILANTE FOUGERES","FOUGERES"]
["LA VOGESIA MUTZIG",261,"44067.012","LA VOGESIA MUTZIG","MUTZIG"]
["LA VOSGIENNE EPINAL",262,"44088.026","LA VOSGIENNE EPINAL","EPINAL"]
["LA VOSGIENNE SOULTZ 1861",263,"44068.055","LA VOSGIENNE SOULTZ 1861","SOULTZ"]
["LAETITIA",264,"52044.091","LA VOSGIENNE SOULTZ 1861","NANTES"]
["LE REVEIL",265,"32062.069","REVEIL DE BOULOGNE","BOULOGNE/MER"]
["LE STADE PESSACAIS UNION CLUB",266,"75033.005","SPUC PESSAC","PESSAC"]
["LEGION ST-PIERRE BREST GYM",267,"53029.027","LSP BREST GYM","BREST"]
["LEGION VIENNOISE ",268,"84038.062","LV","VIENNE"]
["L'ELAN GYMNIQUE DE COURBEVOIE",269,"11092.246","COURBEVOIE-EGC","COURBEVOIE"]
["L'ENVOL ROMAINVILLE",270,"11093.390","ROMAINVILLE-LER","ROMAINVILLE"]
["L'ENVOL SAINT-GAUDINOIS",271,"76031.073","L'ENVOL SAINT-GAUDINOIS","ST GAUDENS"]
["LEO LAGRANGE",272,"52044.069","LEO LAGRANGE","NANTES"]
["LES ACROBATES DU CANIGOU",273,"76066.128","LES ACROBATES DU CANIGOU","PRADES"]
["LES ALCYONS",274,"52085.001","LES ALCYONS","ST-GILLES CROIX DE VIE"]
["LES AMIS GYMNASTES D'AULNAY /BOIS",275,"11093.331","AULNAY SS BOIS-LADAB","AULNAY SOUS BOIS"]
["LES CADETS DE GASCOGNE",276,"75040.188","CG SAINT SEVER","SAINT SEVER"]
["LES ECUREUILS CRITOURIENS",277,"76009.010","LES ECUR.CRITOURIENS","LA TOUR DU CRIEU"]
["LES ETERLOUS",278,"27039.054","LE - SAINT-CLAUDE","SAINT CLAUDE"]
["LES ETOILES D' AIGREFEUILLE",279,"75017.079","ETOILES AIGREFEUILLE","AIGREFEUILLE D' AUNIS"]
["LES FARFADETS GYM ET TRAMPOLINE",280,"27070.064","LFGT - LUXEUIL LES BAINS","LUXEUIL LES BAINS"]
["LES GRAPPES D'OR",281,"75064.105","GO JURANGON","JURANCON"]
["LES JEUNES DU CAPTALAT LA TESTE",282,"75033.009","JC LA TESTE","LA TESTE"]
["LES MOUETTES DE ROYAN",283,"75017.083","MOUETTES ROYAN","ROYAN"]
["LES PATRIOTES AGENAIS",284,"75047.126","PATRIOTES AGENAIS","AGEN"]
["LICENCES INDIVIDUELLES FFGym",285,"40995.000","LICENCES INDIVIDUELLES","PARIS"]
["LORRAINE GYMNASTIQUE LUNEVILLE",286,"44054.006","LORRAINE LUNEVILLE","LUNEVILLE"]
["LOUVI'GYM",287,"53035.090","LOUVIGYM","LOUVIGNE DU DESERT"]
["L'UNION D'AY",288,"44051.020","L'UNION D'AY","AY"]
["L'UNION des GYMNASTES NIORTAIS",289,"75079.090","UG NIORT","NIORT"]
["L'UNION GYM",290,"76031.097","LUNION GYM","L'UNION"]
["L'UNION ST BRUNO BORDEAUX",291,"75033.026","USB BORDEAUX","BORDEAUX"]
["MONT SAINT AIGNAN GYM ATTITUDES",292,"28076.165","MSAGA","MONT SAINT AIGNAN"]
["MONTIGNY LE BRETONNEUX GYMNASTIQUE",293,"11078.013","MONTIGNY LE BX-MLBG","MONTIGNY LE BRETONNEUX"]
["MORLAA'GYM",294,"75064.134","MORLAA'GYM","MORLAAS"]
["MORLAIX SAINT POL GYMNASTIQUE",295,"53029.010","MORLAIX ST POL GYM","MORLAIX"]
["MULHOUSE GYM ALSACE",296,"44068.156","MULHOUSE GA","MULHOUSE"]
["MUNICIPALE CONDOM",297,"76032.016","MUNICIPALE CONDOM","CONDOM"]
["NEUVILLE GYM",298,"84069.091","NEUVILLE GYM","NEUVILLE S/SAONE"]
["NICE GYM",299,"93006.099","NICE GYM","NICE"]
["NORMANDIE REGROUPEMENT GYMNIQUE",300,"28076.156","NRGym Elbeuf","ELBEUF"]
["OLYMPIQUE CLUB CESSONNAIS",301,"53035.161","O.C.C. GYM ","CESSON SEVIGNE"]
["PATRIOTE COOP",302,"75087.001","P.COOP LIMOGES","LIMOGES"]
["PATRONAGE LAIQUE SAINT PIERRE DES CORPS",303,"24037.026","PLSP ST PIERRE DES CORPS ","SAINT PIERRE DES CORPS"]
["PAUILLAC GYM",304,"75033.024","PAUILLAC GYM","PAUILLAC"]
["PORTET GYM",305,"76031.099","PORTET GYM","PORTET SUR GARONNE"]
["RAYON SPORTIF BRAGARD ST DIZIER",306,"44052.055","RSB ST DIZIER","SAINT DIZIER"]
["RIVE DROITE GYMNASTIQUE",307,"75033.084","RD GYM GUITRES","GUÎTRES"]
["ROYAN OCEAN GYMNASTIQUE",308,"75017.087","R. S. TOMBLAINE","ROYAN"]
["RYTHM' & GYM' CHAMPIGNY LE SEC",309,"75086.084","RYTHM GYM CHAMPIGNY","CHAMPIGNY LE SEC"]
["SAINT JEAN GYMNIQUE",310,"76031.048","SAINT JEAN GYMNIQUE","ST JEAN"]
["SAINT SOUPPLETS GYMNASTIQUE",311,"11077.182","ST SOUPPLETS-SSGYM","SAINT SOUPPLETS"]
["SAINT-DENIS GYM REUNION",312,"04974.042","S.D.G.R.","SAINT-DENIS"]
["SALESIENNE ANNECY",313,"84074.069","S ANNECY","ANNECY"]
["SALLE VINCENT FERRARI DE SETE",314,"76034.022","SALLE VINCENT FERRARI DE SETE","SETE"]
["SALTO ALBIGEOIS",315,"76081.003","SALTO ALBIGEOIS","ALBI"]
["SALTO GYM CLUB",316,"53035.176","","SAINT AUBIN DU CORMIER"]
["SALTO GYM LA ROCHE CENTRE VENDEE",317,"52085.104","SGRCV","ROCHE SUR YON"]
["SAUMUR LOIRE ALLIANCE GYMNIQUE",318,"52049.102","SLAG","SAUMUR"]
["SEDAN GYMNIQUE",319,"44008.007","SEDAN GYMNIQUE","SEDAN"]
["SOCIETE DE GYMNASTIQUE DE YUTZ",320,"44057.012","STE DE GYMN.YUTZ","YUTZ"]
["SOCIETE DE GYMNASTIQUE ERSTEIN",321,"44067.020","S.G. ERSTEIN","ERSTEIN"]
["SOCIETE DE GYMNASTIQUE ILLZACH",322,"44068.036","S.G. ILLZACH","ILLZACH"]
["SOCIETE DE GYMNASTIQUE MASEVAUX",323,"44068.039","S.G. MASEVAUX","MASEVAUX"]
["SOCIETE DE GYMNASTIQUE MUTTERSHOLTZ",324,"44067.011","S.G. MUTTERSHOLTZ","MUTTERSHOLTZ"]
["SOCIETE DE GYMNASTIQUE SAUSHEIM",325,"44068.054","S.G. SAUSHEIM","SAUSHEIM"]
["SOCIETE DE GYMNASTIQUE SELESTAT",326,"44067.019","S.G. SELESTAT","SELESTAT"]
["Société de Gymnastique Sportive St Joseph HOENHEIM",327,"44067.173","ST JOSEPH HOENHEIM","HOENHEIM"]
["SOCIETE DE TRAMPOLINE ET DE GYMNASTIQUE DE CHATEAUDUN",328,"24028.017","STG CHATEAUDUN","CHATEAUDUN"]
["Société Immercurienne Gymnique de Saint Laurent Blangy",329,"32062.085","ST LAURENT BLANGY","ST LAURENT BLANGY"]
["SOCIETE MIOSSAISE",330,"75033.011","SOCIETE MIOS","MIOS"]
["SOCIETE MUNICIPALE ARMENTIERES",331,"32059.004","S.M. ARMENTIERES","ARMENTIERES"]
["SPORT ATHLETIQUE MERIGNACAIS",332,"75033.015","S.A MERIGNAC","MERIGNAC"]
["SPORTING CLUB PRIVAS GYM",333,"84007.105","SCP GYM","PRIVAS"]
["SPORTS REUNIS OBERNAI",334,"44067.013","S.R. OBERNAI","OBERNAI"]
["ST CAPRAIS GYM ",335,"75033.032","ST CAPRAIS GYM BORDEAUX","BORDEAUX"]
["ST CAPRAIS GYM BORDEAUX",336,"75033.032","ST CAPRAIS GYM BORDEAUX","BORDEAUX"]
["ST MAIXENT GYM",337,"75079.096","ST MAIXENT GYM","ST MAIXENT L'ECOLE"]
["STADE CASTRAIS",338,"76081.022","STADE CASTRAIS","CASTRES"]
["STADE OLYMPIQUE DE ROSNY SOUS BOIS",339,"11093.346","ROSNY S/S BOIS-SORSSB","ROSNY SOUS BOIS"]
["STADE POITEVIN GYMNASTIQUE",340,"75086.036","SP GYM POITIERS","POITIERS"]
["SULNIAC GYM ACRO",341,"53056.141","SULNIAC GYM ACRO","SULNIAC"]
["TALENCE GYMNASTIQUE",342,"75033.004","TALENCE GYM","TALENCE"]
["THOUARS GYM 79",343,"75079.087","THOUARS GYM 79","THOUARS"]
["THOUROTTE GYM",344,"32060.037","THOUROTTE GYM","THOUROTTE"]
["Trampo Gym Accro La Naborienne ",345,"44057.174","T.G.A. La Naborienne ","SAINT-AVOLD"]
["TRELAZE GYM CLUB",346,"52049.081","TRELAZE GYM CLUB","TRELAZE"]
["TRICOLORE SPORTIVE DE MASSY",347,"11091.110","MASSY-TSM","MASSY"]
["U S J A CARQUEFOU",348,"52044.056","U S J A CARQUEFOU","CARQUEFOU"]
["UNION ACROBATIQUE METZ-MOSELLE",349,"44057.173","UA2M","METZ"]
["UNION COSNOISE SPORT",350,"27058.012","UCS - COSNE COURS SUR LOIRE","COSNE COURS SUR LOIRE"]
["UNION GYMNIQUE DE CHALETTE",351,"24045.040","UG DE CHALETTE","CHALETTE SUR LOING"]
["UNION GYMNIQUE DE LONGWY",352,"44054.068","U.G. LONGWY","LONGWY"]
["UNION GYMNIQUE PALOISE",353,"75064.104","UG PAU","PAU"]
["UNION GYMNIQUE SAPEURS POMPIER PORTES LES VALENCE",354,"84026.043","UGSP ","PORTES LES VALENCE"]
["UNION GYMNIQUE SAUJONNAISE",355,"75017.059","UG SAUJON","SAUJON"]
["UNION HALLUINOISE DE GYM ET DE DANSE",356,"32059.019","UNION HALLUINOISE","HALLUIN"]
["UNION SPORTIVE  MONT BLANC PASSY",357,"84074.022","USMB PASSY ","PASSY"]
["Union Sportive Ancenienne Gymnastique",358,"52044.117","USA GYM","ANCENIS"]
["UNION SPORTIVE ARGENTON GYMNASTIQUE",359,"24036.096","US ARGENTON GYMNASTIQUE","ARGENTON SUR CREUSE"]
["UNION SPORTIVE AVENIR AMNEVILLE",360,"44057.053","U.S.AVENIR AMNEVILLE","AMNEVILLE"]
["UNION SPORTIVE BOURGUESANNE",361,"84007.002","USB ","BOURG ST ANDEOL"]
["UNION SPORTIVE DE CHAMALIERES",362,"84063.009","U.S. CHAMALIERES","CHAMALIERES"]
["UNION SPORTIVE DE VERN GYMNASTIQUE",363,"53035.174","U.S.S.J. ST JACQUES","VERN SUR SEICHE"]
["UNION SPORTIVE FORBACH GYMNASTIQUE ET DANSE FORBACH",364,"44057.015","USF GYM.DANS.FORBACH","FORBACH"]
["UNION SPORTIVE JARNY GYMNASTIQUE",365,"44054.080","U.S.JARNY GYM","JARNY"]
["UNION SPORTIVE LAVALLOISE",366,"52053.073","UNION SPORTIVE LAVAL","LAVAL"]
["UNION SPORTIVE LIFFREENNE",367,"53035.039","U.S. LIFFRE","LIFFRE"]
["UNION SPORTIVE PORTOISE DE GYMNASTIQUE ET DU SPORT ACROBATIQUE",368,"04974.006","U.S.P.G.S.A.","LE PORT"]
["URKIROLAK GYM",369,"75064.115","UG ST JEAN DE LUZ","ST JEAN DE LUZ"]
["US VENDOME GYMNASTIQUE - LES KANGOUROUS",370,"24041.041","USV - LES KANGOUROUS","VENDÔME"]
["USM GYM LA MELUNAISE",371,"11077.111","MELUN-LM","MELUN"]
["USM Montargis Fémina-Pasteur ",372,"24045.037","USMM GYM","MONTARGIS"]
["USMM section Gymnastique Fémina-Pasteur ",373,"24045.037","USMM GYM","MONTARGIS"]
["VANNETAISE ATHLETIC CLUB",374,"53056.011","VANNETAISE A.C.","VANNES"]
["VELAY GYM",375,"84043.067","VELAY GYM","LE PUY"]
["VERN GYM PARKOUR",376,"53035.180","VGP","VERN SUR SEICHE"]
["VICHY GYM",377,"84003.059","VICHY GYM","VICHY"]
["VIGILANTS DE L'OUEST",378,"53035.021","VIGILANTS DE L'OUEST","RENNES"]
["VILLEMOMBLE SPORT GYMNASTIQUE",379,"11093.349","VILLEMOMBLE-VSG","VILLEMOMBLE"]

{"sheet":"FedB Tumbling avant","index":5,"n_rows":11,"n_cols":4,"rows_kept":11,"cut":false,"hidden":true,"merged":[[0,0,0,2],[2,0,8,0],[9,0,12,0]]}
["Séries autorisées au Tumbling en avant\nTeamGym",null,null,{"$f":"COUNTA(SerieArriereTumblingFedB)","v":10}]
[null,"Séries","Valeur"]
[null,"Roulade avant",0.5]
[null,"Roue",1]
[null,"Roue saut de mains",2]
[null,"Saut de mains",2]
[null,"Saut de mains 1 pied",2]
[null,"Saut de mains 1 pied Rondade",2]
[null,"Saut de mains 1 pied Roue",2]
[null,"Saut de mains 1 pied Saut de mains",2]
[null,"Série Nulle",0]

{"sheet":"FedB Tumbling arrière","index":6,"n_rows":42,"n_cols":8,"rows_kept":42,"cut":false,"hidden":true,"merged":[[0,0,0,2],[2,0,4,0],[5,0,11,0]]}
["Séries autorisée au Tumbling en arrière\nTeamGym",null,null,{"$f":"COUNTA(SerieArriereTumblingFedB)","v":10}]
[null,"Séries","Valeur"]
[null,"Roue",1]
[null,"Roue pied pied",1]
[null,"Roue Roue pied pied",1]
[null,"Roue saut de mains",1]
[null,"Saut de mains 1 pied Roue",1]
[null,"Rondade",1.5]
[null,"Roue Rondade",1.5]
[null,"Saut de mains 1 pied Rondade",1.5]
[null,"Rondade flip",2]
[null,"Série Nulle ",0]
[]
[]
[]
[]
[]
[]
[]
[]
[]
[]
[]
[]
[]
[]
[null,null,null,null,null,null,null,0]
[]
[]
[]
[]
[]
[]
[]
[]
[]
[]
[null,null,null,null,null,null,null,0]
[null,null,null,null,null,null,null,0]
[null,null,null,null,null,null,null,0]
[null,null,null,null,null,null,null,0]
[null,null,null,null,null,null,null,0]

{"sheet":"NatB Tumbling Mixte","index":7,"n_rows":125,"n_cols":3,"rows_kept":125,"cut":false,"hidden":true,"merged":[[0,0,0,2],[2,0,17,0],[18,0,34,0],[35,0,39,0],[40,0,52,0]]}
["Séries autorisée au Tumbling en arrière\nTeamGym"]
[null,"Séries","Valeur"]
[null,"Série Nulle ",0]
[null,"Saut de mains 1 pied Roue ",0.5]
[null,"Saut de mains 1 pied Rondade",0.5]
[null,"Roue Roue pied pied ",0.5]
[null,"Roue saut de mains ",0.5]
[null,"Roue Rondade",0.5]
[null,"Roue Roue pied pied",0.5]
[null,"Salto av décalé groupé Rondade  ",0.6]
[null,"Salto av décalé carpé Rondade  ",0.7]
[null,"Rondade flip ",1]
[null,"Roue saut de mains",1]
[null,"Saut de mains 1 pied Rondade",1]
[null,"Saut de mains 1 pied Roue",1]
[null,"Saut de mains 1 pied Saut de mains",1]
[null,"Salto av décalé groupé Rondade flip ",1.1000000000000001]
[null,"Salto av décalé carpé Rondade flip ",1.2]
["3 éléments","Flip av saut de mains",1.2]
[null,"Saut de mains flip av ",1.2]
[null,"Rondade salto groupé ",1.4]
[null,"Rondade flip salto groupé ",1.4]
[null,"Salto av décalé groupé Rondade  ",1.4]
[null,"Salto av décalé groupé roue  ",1.4]
[null,"Salto av décalé groupé saut de mains ",1.4]
[null,"Rondade salto carpé ",1.5]
[null,"Rondade flip salto carpé ",1.5]
[null,"Salto av décalé groupé Rondade  flip salto groupé ",1.5]
[null,"Salto av décalé groupé Rondade  Salto groupé ",1.5]
[null,"Salto av décalé carpé Rondade  ",1.5]
[null,"Salto av décalé carpé saut de mains ",1.5]
[null,"Rondade salto groupé 180° ",1.6]
[null,"Rondade salto tendu ",1.6]
[null,"Rondade flip salto groupé 180° ",1.6]
[null,"Rondade flip salto tendu ",1.6]
["4 éléments","Salto av décalé groupé Rondade  flip salto carpé ",1.6]
[null,"Salto av décalé groupé Rondade  Salto carpé ",1.6]
[null,"Salto av décalé carpé Rondade  flip salto groupé",1.6]
[null,"Salto av décalé carpé Rondade  Salto groupé ",1.6]
[null,"Saut de mains 1 pied Saut de mains salto groupé ",1.6]
["4 éléments","Saut de mains salto av groupé",1.6]
[null,"Rondade salto carpé 180° ",1.7]
[null,"Rondade flip salto carpé 180° ",1.7]
[null,"Salto av décalé groupé Rondade  flip salto groupé 180° ",1.7]
[null,"Salto av décalé groupé Rondade  flip salto tendu ",1.7]
[null,"Salto av décalé groupé Rondade  Salto tendu ",1.7]
[null,"Salto av décalé carpé Rondade  flip salto carpé ",1.7]
[null,"Salto av décalé carpé Rondade  Salto carpé ",1.7]
[null,"Salto av carpé salto av groupé ",1.7]
[null,"Salto av décalé groupé saut de mains salto groupé ",1.7]
[null,"Salto av groupé salto carpé ",1.7]
[null,"Saut de mains 1 pied Saut de mains salto carpé",1.7]
[null,"Saut de mains salto av carpé",1.7]
[null,"Rondade salto groupé 360° ",1.8]
[null,"Rondade salto tendu 180° ",1.8]
[null,"Rondade flip salto groupé 360° ",1.8]
[null,"Rondade flip salto tendu 180° ",1.8]
[null,"Salto av décalé groupé Rondade  flip salto carpé 180° ",1.8]
[null,"Salto av décalé carpé Rondade  flip salto groupé 180° ",1.8]
[null,"Salto av décalé carpé Rondade  flip salto Tendu ",1.8]
[null,"Salto av décalé carpé Rondade  Salto groupé 180°",1.8]
[null,"Salto av décalé carpé Rondade  Salto tendu ",1.8]
[null,"Flip av salto av groupé ",1.8]
[null,"Salto av décalé carpé saut de mains salto groupé",1.8]
[null,"Salto av décalé groupé saut de mains salto carpé ",1.8]
[null,"Salto av groupé salto tendu ",1.8]
[null,"Salto av tendu salto av groupé ",1.8]
[null,"Saut de mains 1 pied Saut de mains salto groupé 180° ",1.8]
[null,"Saut de mains 1 pied Saut de mains salto tendu",1.8]
[null,"Saut de mains flip av salto groupé ",1.8]
[null,"Saut de mains salto av groupé 180°",1.8]
[null,"Saut de mains salto av groupé salto av goupé ",1.8]
[null,"Saut de mains salto av tendu",1.8]
[null,"Salto av groupé salto av groupé 180°",1.8]
[null,"Salto av décalé groupé Rondade  flip salto tendu 180° ",1.9]
[null,"Salto av décalé groupé Rondade  Salto tendu 180° ",1.9]
[null,"Salto av décalé carpé Rondade  flip salto carpé 180° ",1.9]
[null,"Salto av décalé carpé Rondade  Salto carpé 180°",1.9]
[null,"Flip av salto av carpé ",1.9]
[null,"Flip av saut de mains salto groupé ",1.9]
[null,"Salto av décalé carpé saut de mains salto carpé ",1.9]
[null,"Salto av décalé groupé saut de mains salto tendu ",1.9]
[null,"Salto av tendu salto av carpé ",1.9]
[null,"Saut de mains 1 pied Saut de mains salto carpé 180°",1.9]
[null,"Saut de mains flip av salto carpé ",1.9]
[null,"Saut de mains salto av carpé 180°",1.9]
[null,"Rondade salto tendu 360°",2]
[null,"Rondade flip salto tendu 360°",2]
[null,"Salto av décalé groupé Rondade  flip salto tendu 360°",2]
[null,"Salto av décalé groupé Rondade  Salto tendu 360°",2]
[null,"Salto av décalé carpé Rondade  flip salto Tendu 180° ",2]
[null,"Salto av décalé carpé Rondade  flip salto Tendu 360° ",2]
[null,"Salto av décalé carpé Rondade  Salto tendu 180°",2]
[null,"Salto av décalé carpé Rondade  Salto tendu 360° ",2]
[null,"Flip av salto av carpé 180° ",2]
[null,"Flip av salto av carpé 360° ",2]
[null,"Flip av salto av groupé 180° ",2]
[null,"Flip av salto av groupé 360° ",2]
[null,"Flip av salto av tendu ",2]
[null,"Flip av salto av tendu 180° ",2]
[null,"Flip av salto av tendu 360° ",2]
[null,"Salto av décalé carpé saut de mains salto carpé 180° ",2]
[null,"Salto av décalé carpé saut de mains salto carpé 360° ",2]
[null,"Salto av décalé carpé saut de mains salto groupé 180°",2]
[null,"Salto av décalé carpé saut de mains salto groupé 360°",2]
[null,"Salto av décalé carpé saut de mains salto tendu ",2]
[null,"Saut de mains 1 pied Saut de mains salto carpé 360°",2]
[null,"Saut de mains 1 pied Saut de mains salto groupé  360° ",2]
[null,"Saut de mains 1 pied Saut de mains salto tendu 180°",2]
[null,"Saut de mains 1 pied Saut de mains salto tendu 360°",2]
[null,"Saut de mains flip av salto carpé 180° ",2]
[null,"Saut de mains flip av salto carpé 360° ",2]
[null,"Saut de mains flip av salto carpé salto av groupé ",2]
[null,"Saut de mains flip av salto groupé 180°",2]
[null,"Saut de mains flip av salto groupé 360°",2]
[null,"Saut de mains flip av salto groupé salto av groupé ",2]
[null,"Saut de mains flip av salto tendu ",2]
[null,"Saut de mains flip av salto tendu 180° ",2]
[null,"Saut de mains flip av salto tendu 360° ",2]
[null,"Saut de mains flip av salto tendu salto av groupé ",2]
[null,"Saut de mains salto av groupé 360°",2]
[null,"Saut de mains salto av tendu 180° ",2]
[null,"Saut de mains salto av tendu 360°",2]
[null,"Salto av tendu salto av groupé 180°",2]
[null,"Salto av groupé salto av tendu 180°",2]

{"sheet":"NatC MT - MT","index":8,"n_rows":11,"n_cols":4,"rows_kept":11,"cut":false,"hidden":true,"merged":[[0,0,0,2],[2,0,15,0]]}
["Séries autorisées au Mini Trampoline et Table de Saut\nTeamGym",null,null,{"$f":"COUNTA(SerieMTMTNatC)","v":9}]
[null,"Eléments","Valeur"]
[null,"Saut carpé ecart ",1]
[null,"Saut carpé ecart 1/2 tour ",1.2]
[null,"Salto av groupé ",1.4]
[null,"Salto av carpé ",1.5]
[null,"Salto av groupé 1/2 vrille ",1.6]
[null,"Salto av tendu ",1.6]
[null,"Salto av carpé 1/2 vrille ",1.7]
[null,"Salto av tendu 1/2 vrille",1.8]
[null,"Passage Nul",0]

{"sheet":"NatC MT - Saut","index":9,"n_rows":6,"n_cols":4,"rows_kept":6,"cut":false,"hidden":true,"merged":[[0,0,0,2],[2,0,7,0]]}
["Séries autorisées au Mini Trampoline et Table de Saut\nTeamGym",null,null,{"$f":"COUNTA(SerieMTMTNatC)","v":9}]
[null,"Eléments","Valeur"]
[null,"Rondade ",1]
[null,"Rondade 1/2 tour - Pétrick (180°/180°) ",1.2]
[null,"Lune ",1.6]
[null,"Saut Nul",0]

{"sheet":"FedB MT - MT","index":10,"n_rows":11,"n_cols":4,"rows_kept":11,"cut":false,"hidden":true,"merged":[[0,0,0,2],[2,0,11,0]]}
["Séries autorisées au Mini Trampoline et Table de Saut\nTeamGym",null,null,{"$f":"COUNTA(SerieArriereTumblingFedB)","v":10}]
[null,"Eléments","Valeur "]
[null,"Saut droit",1.2]
[null,"Saut droit 1/2 tour",1.4]
[null,"Saut droit 1 tour",1.6]
[null,"Saut groupé",1.5]
[null,"Saut carpé serré",1.8]
[null,"Saut carpé écart",1.8]
[null,"Saut carpé écart 1/2 tour",2]
[null,"Salto av groupé",2]
[null,"Passage Nul",0]

{"sheet":"FedA Tumbling avant","index":11,"n_rows":14,"n_cols":5,"rows_kept":14,"cut":false,"hidden":true,"merged":[[9,0,10,0],[0,0,0,2],[2,0,8,0]]}
["Séries autorisées au Tumbling en avant\nTeamGym",null,null,null,{"$f":"COUNTA(B3:B14)","v":12}]
[null,"Séries","Valeur"]
[null,"Roulade avant",0.3]
[null,"Roue",0.5]
[null,"Roue Rondade",0.5]
[null,"Roue Roue pied pied",0.5]
[null,"Roue saut de mains",1.5]
[null,"Saut de mains",1.5]
[null,"Saut de mains 1 pied",1.5]
[null,"Saut de mains 1 pied Roue",1.5]
[null,"Saut de mains 1 pied Rondade",1.5]
[null,"Saut de mains 1 pied Saut de mains",1.5]
[null,"Salto av groupé",2]
[null,"Série Nulle",0]

{"sheet":"FedA Tumbling arrière","index":12,"n_rows":41,"n_cols":8,"rows_kept":41,"cut":false,"hidden":true,"merged":[[5,0,10,0],[0,0,0,2],[2,0,4,0]]}
["Séries autorisée au Tumbling en arrière\nTeamGym",null,null,{"$f":"COUNTA(SerieArriereTumblingFedA)","v":11}]
[null,"Séries","Valeur"]
[null,"Roue",0.5]
[null,"Roue pied pied",0.5]
[null,"Roue Roue pied pied",0.5]
[null,"Roue saut de mains",0.5]
[null,"Saut de mains 1 pied Roue",0.5]
[null,"Rondade",1]
[null,"Roue Rondade",1]
[null,"Saut de mains 1 pied Rondade",1]
[null,"Rondade flip",1.5]
[null,"Rondade salto groupé",2]
[null,"Série Nulle ",0]
[]
[]
[]
[]
[]
[]
[]
[]
[]
[]
[]
[]
[null,null,null,null,null,null,null,0]
[]
[]
[]
[]
[]
[]
[]
[]
[]
[]
[null,null,null,null,null,null,null,0]
[null,null,null,null,null,null,null,0]
[null,null,null,null,null,null,null,0]
[null,null,null,null,null,null,null,0]
[null,null,null,null,null,null,null,0]

{"sheet":"NatB Tumbling avant","index":13,"n_rows":74,"n_cols":3,"rows_kept":74,"cut":false,"hidden":true,"merged":[[0,0,0,2],[2,0,32,0],[34,0,56,0],[57,0,68,0],[69,0,70,0]]}
["Séries autorisées au Tumbling en avant\nTeamGym"]
[null,"Séries","Valeur"]
[null,"Série Nulle ",0]
[null,"Roue Rondade",0.5]
[null,"Roue Roue pied pied",0.5]
[null,"Roue saut de mains",1]
[null,"Saut de mains 1 pied Rondade",1]
[null,"Saut de mains 1 pied Roue",1]
[null,"Saut de mains 1 pied Saut de mains",1]
[null,"Flip av saut de mains",1.2]
[null,"Saut de mains flip av ",1.2]
[null,"Salto av décalé groupé Rondade  ",1.4]
[null,"Salto av décalé groupé roue  ",1.4]
[null,"Salto av décalé groupé saut de mains ",1.4]
[null,"Salto av décalé carpé Rondade  ",1.5]
[null,"Salto av décalé carpé saut de mains ",1.5]
[null,"Saut de mains 1 pied Saut de mains salto groupé ",1.6]
[null,"Saut de mains salto av groupé",1.6]
[null,"Salto av carpé salto av groupé ",1.7]
[null,"Salto av décalé groupé saut de mains salto groupé ",1.7]
[null,"Salto av groupé salto carpé ",1.7]
[null,"Saut de mains 1 pied Saut de mains salto carpé",1.7]
[null,"Saut de mains salto av carpé",1.7]
[null,"Flip av salto av groupé ",1.8]
[null,"Salto av décalé carpé saut de mains salto groupé",1.8]
[null,"Salto av décalé groupé saut de mains salto carpé ",1.8]
[null,"Salto av groupé salto av groupé 180°",1.8]
[null,"Salto av groupé salto tendu ",1.8]
[null,"Salto av tendu salto av groupé ",1.8]
[null,"Saut de mains 1 pied Saut de mains salto groupé 180° ",1.8]
[null,"Saut de mains 1 pied Saut de mains salto tendu",1.8]
[null,"Saut de mains flip av salto groupé ",1.8]
[null,"Saut de mains salto av groupé 180°",1.8]
[null,"Saut de mains salto av groupé salto av goupé ",1.8]
["3 éléments","Saut de mains salto av tendu",1.8]
[null,"Flip av salto av carpé ",1.9]
[null,"Flip av saut de mains salto groupé ",1.9]
[null,"Salto av décalé carpé saut de mains salto carpé ",1.9]
[null,"Salto av décalé groupé saut de mains salto tendu ",1.9]
[null,"Salto av tendu salto av carpé ",1.9]
[null,"Saut de mains 1 pied Saut de mains salto carpé 180°",1.9]
[null,"Saut de mains flip av salto carpé ",1.9]
[null,"Saut de mains salto av carpé 180°",1.9]
[null,"Flip av salto av carpé 180° ",2]
[null,"Flip av salto av carpé 360° ",2]
[null,"Flip av salto av groupé 180° ",2]
[null,"Flip av salto av groupé 360° ",2]
[null,"Flip av salto av tendu ",2]
[null,"Flip av salto av tendu 180° ",2]
[null,"Flip av salto av tendu 360° ",2]
[null,"Salto av décalé carpé saut de mains salto carpé 180° ",2]
[null,"Salto av décalé carpé saut de mains salto carpé 360° ",2]
[null,"Salto av décalé carpé saut de mains salto groupé 180°",2]
[null,"Salto av décalé carpé saut de mains salto groupé 360°",2]
[null,"Salto av décalé carpé saut de mains salto tendu ",2]
[null,"Salto av groupé salto av tendu 180°",2]
[null,"Salto av tendu salto av groupé 180°",2]
["3 éléments\n(suite)","Saut de mains 1 pied Saut de mains salto carpé 360°",2]
[null,"Saut de mains 1 pied Saut de mains salto groupé  360° ",2]
[null,"Saut de mains 1 pied Saut de mains salto tendu 180°",2]
[null,"Saut de mains 1 pied Saut de mains salto tendu 360°",2]
[null,"Saut de mains flip av salto carpé 180° ",2]
[null,"Saut de mains flip av salto carpé 360° ",2]
[null,"Saut de mains flip av salto carpé salto av groupé ",2]
[null,"Saut de mains flip av salto groupé 180°",2]
[null,"Saut de mains flip av salto groupé 360°",2]
[null,"Saut de mains flip av salto groupé salto av groupé ",2]
[null,"Saut de mains flip av salto tendu ",2]
[null,"Saut de mains flip av salto tendu 180° ",2]
[null,"Saut de mains flip av salto tendu 360° ",2]
[null,"Saut de mains flip av salto tendu salto av groupé ",2]
[null,"Saut de mains salto av groupé 360°",2]
[null,"Saut de mains salto av tendu 180° ",2]
[null,"Saut de mains salto av tendu 360° ",2]

{"sheet":"NatB Tumbling arrière","index":14,"n_rows":55,"n_cols":3,"rows_kept":55,"cut":false,"hidden":true,"merged":[[2,0,17,0],[18,0,38,0],[39,0,43,0],[44,0,51,0],[0,0,0,2]]}
["Séries autorisée au Tumbling en arrière\nTeamGym"]
[null,"Séries","Valeur"]
["2 éléments","Série Nulle",0]
[null,"Roue Rondade ",0.5]
[null,"Roue Roue pied pied ",0.5]
[null,"Roue saut de mains ",0.5]
[null,"Saut de mains 1 pied Rondade",0.5]
[null,"Saut de mains 1 pied Roue ",0.5]
[null,"Salto av décalé groupé Rondade  ",0.6]
[null,"Salto av décalé carpé Rondade  ",0.7]
[null,"Rondade flip ",1]
[null,"Salto av décalé groupé Rondade  flip ",1.1000000000000001]
[null,"Salto av décalé carpé Rondade  flip ",1.2]
[null,"Rondade flip salto groupé ",1.4]
[null,"Rondade salto groupé ",1.4]
[null,"Rondade flip salto carpé ",1.5]
[null,"Rondade salto carpé ",1.5]
[null,"Salto av décalé groupé Rondade  flip salto groupé ",1.5]
["3 éléments","Salto av décalé groupé Rondade  Salto groupé ",1.5]
[null,"Rondade flip salto groupé 180° ",1.6]
[null,"Rondade flip salto tendu ",1.6]
[null,"Rondade salto groupé 180° ",1.6]
[null,"Rondade salto tendu ",1.6]
[null,"Salto av décalé carpé Rondade  flip salto groupé",1.6]
[null,"Salto av décalé carpé Rondade  Salto groupé ",1.6]
[null,"Salto av décalé groupé Rondade  flip salto carpé ",1.6]
[null,"Salto av décalé groupé Rondade  Salto carpé ",1.6]
[null,"Rondade flip salto carpé 180° ",1.7]
[null,"Rondade salto carpé 180° ",1.7]
[null,"Salto av décalé carpé Rondade  flip salto carpé ",1.7]
[null,"Salto av décalé carpé Rondade  Salto carpé ",1.7]
[null,"Salto av décalé groupé Rondade  flip salto groupé 180° ",1.7]
[null,"Salto av décalé groupé Rondade  flip salto tendu ",1.7]
[null,"Salto av décalé groupé Rondade  Salto tendu ",1.7]
[null,"Rondade flip salto groupé 360° ",1.8]
[null,"Rondade flip salto tendu 180° ",1.8]
[null,"Rondade salto groupé 360° ",1.8]
[null,"Rondade salto tendu 180° ",1.8]
[null,"Salto av décalé carpé Rondade  flip salto groupé 180° ",1.8]
["4 éléments","Salto av décalé carpé Rondade  flip salto Tendu ",1.8]
[null,"Salto av décalé carpé Rondade  Salto groupé 180°",1.8]
[null,"Salto av décalé carpé Rondade  Salto tendu ",1.8]
[null,"Salto av décalé groupé Rondade  flip salto carpé 180° ",1.8]
[null,"Salto av décalé carpé Rondade  flip salto carpé 180° ",1.9]
["4 éléments","Salto av décalé carpé Rondade  Salto carpé 180°",1.9]
[null,"Salto av décalé groupé Rondade  flip salto tendu 180° ",1.9]
[null,"Salto av décalé groupé Rondade  Salto tendu 180° ",1.9]
[null,"Rondade flip salto tendu 360°",2]
[null,"Rondade salto tendu 360°",2]
[null,"Salto av décalé carpé Rondade  flip salto Tendu 180° ",2]
[null,"Salto av décalé carpé Rondade  flip salto Tendu 360° ",2]
[null,"Salto av décalé carpé Rondade  Salto tendu 180°",2]
[null,"Salto av décalé carpé Rondade  Salto tendu 360° ",2]
[null,"Salto av décalé groupé Rondade  flip salto tendu 360°",2]
[null,"Salto av décalé groupé Rondade  Salto tendu 360°",2]

{"sheet":"FedA MT - MT","index":15,"n_rows":13,"n_cols":4,"rows_kept":13,"cut":false,"hidden":true,"merged":[[0,0,0,2],[2,0,9,0]]}
["Séries autorisées au Mini Trampoline et Table de Saut\nTeamGym",null,null,{"$f":"COUNTA(SerieMTMTFedA)","v":11}]
[null,"Eléments","Valeur "]
[null,"Saut groupé",1]
[null,"Saut droit",1]
[null,"Saut droit 1/2 tour",1.2]
[null,"Saut carpé serré",1.3]
[null,"Saut carpé écart",1.3]
[null,"Saut droit 1 tour",1.4]
[null,"Saut carpé écart 1/2 tour",1.5]
[null,"Salto av groupé",1.8]
[null,"Salto av carpé",1.9]
[null,"Salto av tendu",2]
[null,"Passage Nul",0]

{"sheet":"NatB MT - Saut","index":16,"n_rows":8,"n_cols":5,"rows_kept":8,"cut":false,"hidden":true,"merged":[[2,0,8,0],[0,0,0,2]]}
["Séries autorisées au Mini Trampoline et Table de Saut\nTeamGym",null,null,null,{"$f":"COUNTA(B3:B8)","v":6}]
[null,"Eléments","Valeur"]
[null,"Rondade ",1]
[null,"Rondade 1/2 tour - Pétrick (180°/180°) ",1.2]
[null,"Lune ",1.6]
[null,"Lune 1/2 tour ",1.8]
[null,"Lune 1 vrille ",2]
[null,"Saut Nul",0]

{"sheet":"ListeDiffSol","index":17,"n_rows":190,"n_cols":12,"rows_kept":190,"cut":false,"hidden":true,"merged":[[0,5,0,9],[0,0,0,4]]}
["Fédérale",null,null,null,null,"Performance"]
[{"$f":"COUNTA(A5:A27)","v":23},{"$f":"COUNTA(B5:B28)","v":6},{"$f":"COUNTA(C5:C29)","v":15},{"$f":"COUNTA(D5:D28)","v":24},1,24,{"$f":"COUNTA(G5:G64)","v":60},{"$f":"COUNTA(H5:H23)","v":19},{"$f":"COUNTA(I5:I27)","v":23},24,{"$f":"COUNTA(K5:K26)","v":4},{"$f":"COUNTA(L5:L18)","v":14}]
["FEDSAUT","FEDPIVOTS","FEDMAINTIEN","FEDTOUT","FEDGE","PERFCOMBI","PERFSAUT","PERFPIVOTS","PERFMAINTIENT","PERFMIXTE","PERFGE","PERFACRO"]
[]
["J201","DB201","SB204","J201","G401","J201","J201","DB201","SB204","J201","G401","A205"]
["J202","DB202","SB206","J202",null,"J202","J202","DB202","SB402","J202","G802","A209"]
["J203","DB401","SB402","J203",null,"J203","J203","DB206","SB404","J203","G1001","A214A"]
["J206","DB402","SB404","J206",null,"J206","J206","DB401","SB406","J206","G1002","A214B"]
["J207","DB403","SB406","J207",null,"J207","J207","DB402","SB601","J207",null,"A406"]
["J210","DB409","HB201","J210",null,"J210","J210","DB403","SB603","J210",null,"A409A"]
["J216",null,"HB202","J216",null,"J216","J216","DB409","SB604","J216",null,"A409B"]
["J217",null,"HB204","J217",null,"J217","J217","DB601","SB605","J217",null,"A410"]
["J222",null,"HB206","J222",null,"J222","J222","DB602","SB801","J222",null,"A411"]
["J227",null,"HB207","J227",null,"J227","J227","DB604","SB802","J227",null,"A601"]
["J401",null,"HB208","J401",null,"J401","J401","DB609","SB803","J401",null,"A603"]
["J406",null,"HB402","J406",null,"J406","J406","DB610","SB804","J406",null,"A604A"]
["J407",null,"HB403","J407",null,"J407","J407","DB612","SB805","J407",null,"A604B"]
["J408",null,"HB404","J408",null,"J408","J408","DB801","SB806","J408",null,"A605"]
["J409",null,"HB405","J409",null,"J409","J409","DB802","SB807","J409",null,"A607A"]
["J410",null,null,"J410",null,"J410","J410","DB803","SB1001","J410",null,"A607B"]
["J411",null,null,"J411",null,"J411","J411","DB805","SB1002","J411",null,"A608"]
["J415",null,null,"J415",null,"J415","J415","DB811","SB1004","J415",null,"A609"]
["J416",null,null,"J416",null,"J416","J416","DB812","SB1006","J416",null,"A611"]
["J418",null,null,"J418",null,"J418","J418","DB1003","SB1007","J418",null,"A615"]
["J420",null,null,"J420",null,"J420","J420","DB1004","HB201","J420",null,"A801"]
["J422",null,null,"J422",null,"J422","J422","DB1006","HB202","J422",null,"A802"]
["J427",null,null,"J427",null,"J427","J427","DB1007","HB204","J427",null,"A803"]
[null,null,null,"DB201",null,"J601","J601","DB1008","HB206","J601",null,"A808"]
[null,null,null,"DB202",null,"J603","J603","DB1010","HB207","J603",null,"A809"]
[null,null,null,"DB401",null,"J611","J611","DB1011","HB208","J611",null,"A810"]
[null,null,null,"DB402",null,"J612","J612","DB1012","HB402","J612",null,"A1001"]
[null,null,null,"DB403",null,"J613","J613","DB1013","HB403","J613",null,"A1004"]
[null,null,null,"DB409",null,"J614","J614",null,"HB404","J614",null,"A1005"]
[null,null,null,"SB204",null,"J615","J615",null,"HB405","J615",null,"A1006"]
[null,null,null,"SB402",null,"J616","J616",null,"HB601","J616",null,"A1007"]
[null,null,null,"SB404",null,"J617","J617",null,"HB603","J617",null,"A1008"]
[null,null,null,"SB406",null,"J620","J620",null,"HB604","J620",null,"A1010"]
[null,null,null,"HB201",null,"J621","J621",null,"HB606","J621",null,"A1013"]
[null,null,null,"HB202",null,"J623","J623",null,"HB802","J623",null,"A1014"]
[null,null,null,"HB204",null,"J624","J624",null,"HB804","J624",null,"A1015"]
[null,null,null,"HB206",null,"J625","J625",null,"HB805","J625"]
[null,null,null,"HB207",null,"J626","J626",null,"HB806","J626"]
[null,null,null,"HB208",null,"J801","J801",null,"HB1001","J801"]
[null,null,null,"HB402",null,"J802","J802",null,"HB1003","J802"]
[null,null,null,"HB403",null,"J803","J803",null,"HB1005","J803"]
[null,null,null,"HB404",null,"J804","J804",null,"HB1006","J804"]
[null,null,null,"HB405",null,"J807","J807",null,null,"J807"]
[null,null,null,"G401",null,"J809","J809",null,null,"J809"]
[null,null,null,null,null,"J811","J811",null,null,"J811"]
[null,null,null,null,null,"J812A","J812A",null,null,"J812A"]
[null,null,null,null,null,"J812B","J812B",null,null,"J812B"]
[null,null,null,null,null,"J813A","J813A",null,null,"J813A"]
[null,null,null,null,null,"J813B","J813B",null,null,"J813B"]
[null,null,null,null,null,"J814","J814",null,null,"J814"]
[null,null,null,null,null,"J816","J816",null,null,"J816"]
[null,null,null,null,null,"J818","J818",null,null,"J818"]
[null,null,null,null,null,"J820","J820",null,null,"J820"]
[null,null,null,null,null,"J821","J821",null,null,"J821"]
[null,null,null,null,null,"J822","J822",null,null,"J822"]
[null,null,null,null,null,"J823","J823",null,null,"J823"]
[null,null,null,null,null,"J824","J824",null,null,"J824"]
[null,null,null,null,null,"J825","J825",null,null,"J825"]
[null,null,null,null,null,"J826","J826",null,null,"J826"]
[null,null,null,null,null,"J828","J828",null,null,"J828"]
[null,null,null,null,null,"J1002","J1002",null,null,"J1002"]
[null,null,null,null,null,"J1003","J1003",null,null,"J1003"]
[null,null,null,null,null,"J1004","J1004",null,null,"J1004"]
[null,null,null,null,null,"J1005","J1005",null,null,"J1005"]
[null,null,null,null,null,"J1006","J1006",null,null,"J1006"]
[null,null,null,null,null,"J1008","J1008",null,null,"J1008"]
[null,null,null,null,null,"J1009A","J1009A",null,null,"J1009A"]
[null,null,null,null,null,"J1009B","J1009B",null,null,"J1009B"]
[null,null,null,null,null,"J1010","J1010",null,null,"J1010"]
[null,null,null,null,null,"J1016","J1016",null,null,"J1016"]
[null,null,null,null,null,"J1018","J1018",null,null,"J1018"]
[null,null,null,null,null,"J1019A","J1019A",null,null,"J1019A"]
[null,null,null,null,null,"J1019B","J1019B",null,null,"J1019B"]
[null,null,null,null,null,"J1022","J1022",null,null,"J1022"]
[null,null,null,null,null,"J1023","J1023",null,null,"J1023"]
[null,null,null,null,null,"J1024","J1024",null,null,"J1024"]
[null,null,null,null,null,"J1027","J1027",null,null,"J1027"]
[null,null,null,null,null,"J1028","J1028",null,null,"J1028"]
[null,null,null,null,null,"J1029","J1029",null,null,"J1029"]
[null,null,null,null,null,"DB201",null,null,null,"DB201"]
[null,null,null,null,null,"DB202",null,null,null,"DB202"]
[null,null,null,null,null,"DB401",null,null,null,"DB401"]
[null,null,null,null,null,"DB402",null,null,null,"DB402"]
[null,null,null,null,null,"DB403",null,null,null,"DB403"]
[null,null,null,null,null,"DB409",null,null,null,"DB409"]
[null,null,null,null,null,"DB601",null,null,null,"DB601"]
[null,null,null,null,null,"DB602",null,null,null,"DB602"]
[null,null,null,null,null,"DB604",null,null,null,"DB604"]
[null,null,null,null,null,"DB609",null,null,null,"DB609"]
[null,null,null,null,null,"DB610",null,null,null,"DB610"]
[null,null,null,null,null,"DB612",null,null,null,"DB612"]
[null,null,null,null,null,"DB801",null,null,null,"DB801"]
[null,null,null,null,null,"DB802",null,null,null,"DB802"]
[null,null,null,null,null,"DB803",null,null,null,"DB803"]
[null,null,null,null,null,"DB805",null,null,null,"DB805"]
[null,null,null,null,null,"DB812",null,null,null,"DB812"]
[null,null,null,null,null,"DB1003",null,null,null,"DB1003"]
[null,null,null,null,null,"DB1004",null,null,null,"DB1004"]
[null,null,null,null,null,"DB1006",null,null,null,"DB1006"]
[null,null,null,null,null,"DB1007",null,null,null,"DB1007"]
[null,null,null,null,null,"DB1008",null,null,null,"DB1008"]
[null,null,null,null,null,"DB1010",null,null,null,"DB1010"]
[null,null,null,null,null,"DB1011",null,null,null,"DB1011"]
[null,null,null,null,null,"DB1012",null,null,null,"DB1012"]
[null,null,null,null,null,"DB1013",null,null,null,"DB1013"]
[null,null,null,null,null,null,null,null,null,"SB204"]
[null,null,null,null,null,null,null,null,null,"SB402"]
[null,null,null,null,null,null,null,null,null,"SB404"]
[null,null,null,null,null,null,null,null,null,"SB406"]
[null,null,null,null,null,null,null,null,null,"SB601"]
[null,null,null,null,null,null,null,null,null,"SB603"]
[null,null,null,null,null,null,null,null,null,"SB604"]
[null,null,null,null,null,null,null,null,null,"SB605"]
[null,null,null,null,null,null,null,null,null,"SB801"]
[null,null,null,null,null,null,null,null,null,"SB802"]
[null,null,null,null,null,null,null,null,null,"SB803"]
[null,null,null,null,null,null,null,null,null,"SB804"]
[null,null,null,null,null,null,null,null,null,"SB805"]
[null,null,null,null,null,null,null,null,null,"SB806"]
[null,null,null,null,null,null,null,null,null,"SB807"]
[null,null,null,null,null,null,null,null,null,"SB1001"]
[null,null,null,null,null,null,null,null,null,"SB1002"]
[null,null,null,null,null,null,null,null,null,"SB1004"]
[null,null,null,null,null,null,null,null,null,"SB1006"]
[null,null,null,null,null,null,null,null,null,"SB1007"]
[null,null,null,null,null,null,null,null,null,"HB201"]
[null,null,null,null,null,null,null,null,null,"HB202"]
[null,null,null,null,null,null,null,null,null,"HB204"]
[null,null,null,null,null,null,null,null,null,"HB206"]
[null,null,null,null,null,null,null,null,null,"HB207"]
[null,null,null,null,null,null,null,null,null,"HB208"]
[null,null,null,null,null,null,null,null,null,"HB402"]
[null,null,null,null,null,null,null,null,null,"HB403"]
[null,null,null,null,null,null,null,null,null,"HB404"]
[null,null,null,null,null,null,null,null,null,"HB405"]
[null,null,null,null,null,null,null,null,null,"HB601"]
[null,null,null,null,null,null,null,null,null,"HB603"]
[null,null,null,null,null,null,null,null,null,"HB604"]
[null,null,null,null,null,null,null,null,null,"HB606"]
[null,null,null,null,null,null,null,null,null,"HB802"]
[null,null,null,null,null,null,null,null,null,"HB804"]
[null,null,null,null,null,null,null,null,null,"HB805"]
[null,null,null,null,null,null,null,null,null,"HB806"]
[null,null,null,null,null,null,null,null,null,"HB1001"]
[null,null,null,null,null,null,null,null,null,"HB1003"]
[null,null,null,null,null,null,null,null,null,"HB1005"]
[null,null,null,null,null,null,null,null,null,"HB1006"]
[null,null,null,null,null,null,null,null,null,"G401"]
[null,null,null,null,null,null,null,null,null,"G802"]
[null,null,null,null,null,null,null,null,null,"G1001"]
[null,null,null,null,null,null,null,null,null,"G1002"]
[null,null,null,null,null,null,null,null,null,"A205"]
[null,null,null,null,null,null,null,null,null,"A209"]
[null,null,null,null,null,null,null,null,null,"A214A"]
[null,null,null,null,null,null,null,null,null,"A214B"]
[null,null,null,null,null,null,null,null,null,"A406"]
[null,null,null,null,null,null,null,null,null,"A409"]
[null,null,null,null,null,null,null,null,null,"A410"]
[null,null,null,null,null,null,null,null,null,"A411"]
[null,null,null,null,null,null,null,null,null,"A601"]
[null,null,null,null,null,null,null,null,null,"A603"]
[null,null,null,null,null,null,null,null,null,"A604A"]
[null,null,null,null,null,null,null,null,null,"A604B"]
[null,null,null,null,null,null,null,null,null,"A605"]
[null,null,null,null,null,null,null,null,null,"A607A"]
[null,null,null,null,null,null,null,null,null,"A607B"]
[null,null,null,null,null,null,null,null,null,"A608"]
[null,null,null,null,null,null,null,null,null,"A609"]
[null,null,null,null,null,null,null,null,null,"A611"]
[null,null,null,null,null,null,null,null,null,"A615"]
[null,null,null,null,null,null,null,null,null,"A801"]
[null,null,null,null,null,null,null,null,null,"A802"]
[null,null,null,null,null,null,null,null,null,"A803"]
[null,null,null,null,null,null,null,null,null,"A808"]
[null,null,null,null,null,null,null,null,null,"A809"]
[null,null,null,null,null,null,null,null,null,"A810"]
[null,null,null,null,null,null,null,null,null,"A1001"]
[null,null,null,null,null,null,null,null,null,"A1004"]
[null,null,null,null,null,null,null,null,null,"A1005"]
[null,null,null,null,null,null,null,null,null,"A1006"]
[null,null,null,null,null,null,null,null,null,"A1007"]
[null,null,null,null,null,null,null,null,null,"A1008"]
[null,null,null,null,null,null,null,null,null,"A1010"]
[null,null,null,null,null,null,null,null,null,"A1013"]
[null,null,null,null,null,null,null,null,null,"A1014"]
[null,null,null,null,null,null,null,null,null,"A1015"]

{"sheet":"NatB MT - MT","index":18,"n_rows":15,"n_cols":4,"rows_kept":15,"cut":false,"hidden":true,"merged":[[0,0,0,2],[2,0,15,0]]}
["Séries autorisées au Mini Trampoline et Table de Saut\nTeamGym",null,null,{"$f":"COUNTA(SerieMTMTNatB)","v":13}]
[null,"Eléments","Valeur"]
[null,"Saut carpé ecart ",1]
[null,"Saut carpé ecart 1/2 tour ",1.2]
[null,"Salto av groupé ",1.4]
[null,"Salto av carpé ",1.5]
[null,"Salto av groupé 1/2 vrille ",1.6]
[null,"Salto av tendu ",1.6]
[null,"Salto av carpé 1/2 vrille ",1.7]
[null,"Salto av groupé 1 vrille ",1.8]
[null,"Salto av tendu 1/2 vrille",1.8]
[null,"Salto av groupé 1 vrille 1/2 ",2]
[null,"Salto av tendu 1 vrille ",2]
[null,"Salto av tendu 1 vrille 1/2 ",2]
[null,"Passage Nul",0]

{"sheet":"ListeClubs 95 ","index":19,"n_rows":191,"n_cols":6,"rows_kept":191,"cut":false,"hidden":true,"merged":[]}
["Nom","Numéro d'affiliation","Abréviation","Région","Département","Ville"]
["UNION KOENIGSHOFFEN","01067.077","UNION KOENIGSHOFFEN","ALSACE","BAS RHIN","KOENIGSHOFFEN"]
["SOCIETE DE GYMNASTIQUE MASEVAUX","01068.039","S.G. MASEVAUX","ALSACE","HAUT RHIN","MASEVAUX"]
["SOCIETE DE GYMNASTIQUE SAUSHEIM","01068.054","S.G. SAUSHEIM","ALSACE","HAUT RHIN","SAUSHEIM"]
["EAST FRANCE TEAMGYM","01068.154",null,"ALSACE","HAUT RHIN","RIBEAUVILLE"]
["L'UNION SPORTIVE TALENCAISE","02033.004","L'US TALENCE","AQUITAINE","GIRONDE","TALENCE"]
["LE STADE PESSACAIS UNION CLUB","02033.005","SPUC PESSAC","AQUITAINE","GIRONDE","PESSAC"]
["LA VAILLANTE DE LANGON","02033.006","LA V. LANGON","AQUITAINE","GIRONDE","LANGON"]
["LES JEUNES DU CAPTALAT LA TESTE","02033.009","JC LA TESTE","AQUITAINE","GIRONDE","LA TESTE"]
["ASSOCIATION SPORTIVE ET CULTURELLE PESSAC ALOUETTE","02033.010","ASCPA PESSAC","AQUITAINE","GIRONDE","PESSAC ALOUETTE"]
["ENTENTE SPORTIVE DE BRUGES","02033.012","ES BRUGES","AQUITAINE","GIRONDE","BRUGES"]
["ASSOCIATION SPORTIVE LE HAILLAN GYM","02033.018","A.S LE HAILLAN GYM","AQUITAINE","GIRONDE","LE HAILLAN"]
["ASSOCIATION SPORTIVE ILLACAISE","02033.069","AS ILLACAISE","AQUITAINE","GIRONDE","ST JEAN D'ILLAC"]
["CLUB DEPARTEMENTAL DE GYMNASTIQUE GIRONDE","02033.074","CD GYM 33","AQUITAINE","GIRONDE","BORDEAUX"]
["ASSOCIATION SPORTIVE LOS SAUTAPRATS DE COARRAZE NAY","02064.123","AS LOS SAUTAPRATS COARRAZE NAY","AQUITAINE","PYRENEES ATLANTIQUES","NAY"]
["LA BELLERIVOISE","03003.024","LA BELLERIVOISE","AUVERGNE","ALLIER","BELLERIVE SUR ALLIER"]
["LA FRANCAISE","03003.026","LA FRANCAISE","AUVERGNE","ALLIER","CUSSET"]
["ILETS SPORTS MONTLUCONNAIS","03003.031","ILETS SPORTS MONTLUCONNAIS","AUVERGNE","ALLIER","MONTLUÇON"]
["LA BOURBONNAISE","03003.032","LA BOURBONNAISE","AUVERGNE","ALLIER","MOULINS"]
["ESPERANCE ST-GERMANOISE","03003.053","ESPERANCE ST-GERMANOISE","AUVERGNE","ALLIER","ST GERMAIN DES FOSSÉS"]
["VICHY GYM","03003.059","VICHY GYM","AUVERGNE","ALLIER","VICHY"]
["ENTENTE GYMNIQUE GANNATOISE","03003.077","E.G. GANNATOISE","AUVERGNE","ALLIER","GANNAT"]
["LA JEANNE D ARC","03015.033","LA JEANNE D'ARC","AUVERGNE","CANTAL","MAURIAC"]
["ASSOCIATION SPORTIVE MONTFERRANDAISE","03063.002","A.S. MONTFERRANDAISE","AUVERGNE","PUY DE DOME","CLERMONT-FD"]
["UNION SPORTIVE DE CHAMALIERES","03063.009","U.S. CHAMALIERES","AUVERGNE","PUY DE DOME","CHAMALIÈRES"]
["LA GAULOISE MOZAC","03063.014","LA GAULOISE MOZAC","AUVERGNE","PUY DE DOME","MOZAC"]
["UNION SPORTIVE VIC LE COMTE GYMNASTIQUE","03063.022","U.S. VIC LE COMTE","AUVERGNE","PUY DE DOME","VIC LE COMTE"]
["ASS. SPORTIVE GUERIGNY URZY","04058.005","A.S.GUERIGNY URZY","BOURGOGNE","NIEVRE","GUERIGNY"]
["ESPERANCE ST LEGER GYMNASTIQUE","04058.006","E. S. L. GYMNASTIQUE","BOURGOGNE","NIEVRE","ST LEGER DES VIGNES"]
["CERCLE SPORTIF LAIC","04071.021","CERCLE SPORTIF LAIC","BOURGOGNE","SAONE ET LOIRE","SAINT VALLIER"]
["ASSOCIATION GYMNIQUE DE PLOUGASTEL","05029.086","AG PLOUGASTEL","BRETAGNE","FINISTERE","PLOUGASTEL"]
["CERCLE PAUL BERT","05035.009","CERCLE PAUL BERT","BRETAGNE","ILLE ET VILAINE","RENNES"]
["KEWENN GYMNASTIQUE","05056.160","KEWENN GYM","BRETAGNE","MORBIHAN","QUEVEN"]
["L'UNION D'AY","06051.020","L'UNION D'AY","CHAMPAGNE-ARDENNE","MARNE","AY"]
["LA CHAUMONTAISE","06052.025","LA CHAUMONTAISE","CHAMPAGNE-ARDENNE","HAUTE MARNE","CHAUMONT"]
["RAYON SPORTIF BRAGARD ST DIZIER","06052.055","RSB ST DIZIER","CHAMPAGNE-ARDENNE","HAUTE MARNE","SAINT DIZIER"]
["AMICALE LAIQUE JULES FERRY","08001.021","ALJF Ambérieu","RHONE ALPES","AIN","AMBERIEU EN BUGEY"]
["LES ENFANTS DU DEVOIR","08001.024","LES ENFANTS DU DEVOIR","RHONE ALPES","AIN","OYONNAX"]
["AVENIR GESSIEN DE THOIRY","08001.062","AVENIR GESSIEN","RHONE ALPES","AIN","THOIRY"]
["LA SEREINE DE MONTLUEL","08001.063","SM","RHONE ALPES","AIN","MONTLUEL"]
["ECOLE GYMNIQUE DE JASSANS","08001.092","E.G.J.","RHONE ALPES","AIN","JASSANS RIOTTIER"]
["LA SEREINE DE ST ANDRE DE CORCY","08001.159","SSAC","RHONE ALPES","AIN","ST ANDRE DE CORCY"]
["UNION SPORTIVE AUBENAS","08007.032","US AUBENAS","RHONE ALPES","ARDECHE","AUBENAS"]
["AVENIR DE ROMANS","08026.003","A ROMANS","RHONE ALPES","DROME","ROMANS"]
["GYMNASE MUNICIPAL DE ST VALLIER","08026.004","GMSV","RHONE ALPES","DROME","ST VALLIER"]
["UNION SPORTIVE CRESTOISE","08026.005","UNION SPORTIVE","RHONE ALPES","DROME","CREST"]
["ENTENTE GYMNIQUE PIERRELATTE","08026.006","EGP","RHONE ALPES","DROME","PIERRELATTE"]
["AVANT GARDE TAIN TOURNON","08026.008","AGTT","RHONE ALPES","DROME","TAIN TOURNON"]
["GROUPE OMNISPORT LORIOL","08026.036","GOL","RHONE ALPES","DROME","LORIOL"]
["UNION GYMNIQUE SAPEURS POMPIER PORTES LES VALENCE","08026.043","UGSP PORTES LES VALENCE","RHONE ALPES","DROME","PORTES LES VALENCE"]
["GRENOBLE GYM","08038.013","GRENOBLE GYM","RHONE ALPES","ISERE","GRENOBLE"]
["AMICALE LAIQUE JEUNES FILLES DE ROANNE","08042.014","AMICALE LAIQUE JEUNES FILLES","RHONE ALPES","LOIRE","ROANNE"]
["INDEPENDANTE STEPHANOISE","08042.025","IS","RHONE ALPES","LOIRE","ST ETIENNE"]
["CLUB GYMNIQUE RILLIEUX","08069.051","CGR","RHONE ALPES","RHONE","RILLIEUX LA PAPE"]
["NEUVILLE GYM","08069.091","NEUVILLE GYM","RHONE ALPES","RHONE","NEUVILLE S/SAONE"]
["ENFANTS DU REVARD AIX LES BAINS","08073.037","ER AIX LES BAINS","RHONE ALPES","SAVOIE","AIX LES BAINS"]
["AVANT GARDE ALBERTVILLE","08073.042","AG ALBERTVILLE","RHONE ALPES","SAVOIE","ALBERTVILLE"]
["AVENIR EVIANAIS","08074.041",null,"RHONE ALPES","HAUTE SAVOIE","EVIAN"]
["L OLYMPIQUE GRANDE SYNTHE","09059.098","OGS","NORD PAS DE CALAIS","NORD","GRANDE SYNTHE"]
["ALLIANCE TOURQUENNOISE DE GYMNASTIQUE","09059.254","ATG","NORD PAS DE CALAIS","NORD","TOURCOING"]
["LA FRATERNELLE D'OUTREAU","09062.155","FRATERNELLE OUTREAU","NORD PAS DE CALAIS","PAS DE CALAIS","OUTREAU"]
["INDEPENDANTE COMTOISE BESANCON","10025.008","I.C BESANCON","FRANCHE COMTE","DOUBS","BESANÇON"]
["EVOLUTION MORTEAU","10025.014","EVOLUTION MORTEAU","FRANCHE COMTE","DOUBS","MORTEAU"]
["LA LEGERE MELINOISE","10070.026","LEGERE MELINOISE ECHENOZ LA M.","FRANCHE COMTE","HAUTE SAONE","ECHENOZ LA MELINE"]
["VAUDOISE HERICOURT","10070.052","VAUDOISE HERICOURT","FRANCHE COMTE","HAUTE SAONE","HÉRICOURT"]
["AVANT GARDE de la MOTTE GYM","10070.055","AGM GYM","FRANCHE COMTE","HAUTE SAONE","VESOUL"]
["CARCASSONNE OLYMPIQUE SECTION GYMNASTIQUE","11011.002","CARCASSONNE OLYMPIQUE","LANGUEDOC ROUSSILLON","AUDE","CARCASSONNE"]
["ETOILE SPORTIVE ST MARCELLOISE SUD MINERVOIS","11011.015","ETOILE SPORTIVE ST MARCEL","LANGUEDOC ROUSSILLON","AUDE","SAINT MARCEL"]
["ENTENTE GYMNIQUE LA ROSE BLEUE","11030.042","LA ROSE BLEUE BAGNOLS S/CEZE","LANGUEDOC ROUSSILLON","GARD","BAGNOLS SUR CEZE"]
["ASSOCIATION SPORTIVE BEZIERS GYMNASTIQUE & SPORTS ACROBATIQUES","11034.006","A.S.BEZIERS GYM & SPORTS ACROB","LANGUEDOC ROUSSILLON","HERAULT","BEZIERS"]
["CLUB DE GYMNASTIQUE DE SERIGNAN","11034.128","GYM CLUB SERIGNAN","LANGUEDOC ROUSSILLON","HERAULT","SERIGNAN"]
["ASSOCIATION GYMNIQUE PERPIGNANAISE","11066.053","A.G.P.PERPIGNAN","LANGUEDOC ROUSSILLON","PYRENEES ORIENTALES","PERPIGNAN"]
["GYM SPORT PAM","12054.005","PONT A MOUSSON","LORRAINE","MEURTHE ET MOSELLE","PONT A MOUSSON"]
["LORRAINE GYMNASTIQUE LUNEVILLE","12054.006","LORRAINE LUNEVILLE","LORRAINE","MEURTHE ET MOSELLE","LUNEVILLE"]
["AMICALE LAIQUE P.BROSSOLETTE VANDOEUVRE","12054.009","A.L.B. VANDOEUVRE","LORRAINE","MEURTHE ET MOSELLE","VANDOEUVRE"]
["SOCIETE DE GYMNASTIQUE DE YUTZ","12057.012","STE DE GYMN.YUTZ","LORRAINE","MOSELLE","YUTZ"]
["UNION SPORTIVE AVENIR AMNEVILLE","12057.053","U.S.AVENIR AMNEVILLE","LORRAINE","MOSELLE","AMNEVILLE"]
["ASSOCIATION GYMNIQUE CREHANGE FAULQUEMONT","12057.131","A.G.C. FAULQUEMONT","LORRAINE","MOSELLE","FAULQUEMONT"]
["LA VOSGIENNE EPINAL","12088.026","LA VOSGIENNE EPINAL","LORRAINE","VOSGES","EPINAL"]
["LA FRONTIERE DE REMIREMONT","12088.047","FRONTIERE REMIREMONT","LORRAINE","VOSGES","REMIREMONT"]
["LA JULIANA NOMEXY","12088.089","LA JULIANA NOMEXY","LORRAINE","VOSGES","NOMEXY"]
["ENTENTE GYMNIQUE DEODATIENNE","12088.092","E.G. SAINT DIE","LORRAINE","VOSGES","SAINT DIE DES VOSGES"]
["LA JEANNE D'ARC DE PLOMBIERES","12088.095","J.D'ARC PLOMBIERES","LORRAINE","VOSGES","PLOMBIERES"]
["LA PERSEVERANTE DE MAROMME","14076.020","LA PERSEVERANTE","HAUTE NORMANDIE","SEINE MARITIME","MAROMME"]
["LA SOTTEVILLAISE","14076.022","LA SOTTEVILLAISE","HAUTE NORMANDIE","SEINE MARITIME","SOTTEVILLE-LES-ROUEN"]
["ASSOCIATION SPORTIVE COURONNAISE de GYMNASTIQUE","14076.027","A.S.C.GYM","HAUTE NORMANDIE","SEINE MARITIME","PETIT COURONNE"]
["E. S. M. G-O","14076.067","E. S. M. G-O","HAUTE NORMANDIE","SEINE MARITIME","GONFREVILLE L.ORCHER"]
["GROUPEMENT GYMNIQUE HAVRE BANLIEUE","14076.073","G. G. H. B.","HAUTE NORMANDIE","SEINE MARITIME","LE HAVRE"]
["MONT SAINT AIGNAN GYMNASTIQUE AUX AGRES","14076.165","MSAGA","HAUTE NORMANDIE","SEINE MARITIME","MONT SAINT AIGNAN"]
["EVASION SPORTIVE ET CULTURELLE PAR L.ANIMATION ET LES LOISIRS GYMNIQUES","14076.177","ESCAL","HAUTE NORMANDIE","SEINE MARITIME","ROUEN"]
["ETOILE SAINT AMANDOISE","15018.003","ETOILE ST AMANDOISE","CENTRE","CHER","SAINT AMAND MONTROND"]
["LA MEHUNOISE VIGILANTE","15018.005","LA MEHUNOISE VIGILANTE","CENTRE","CHER","MEHUN SUR YEVRE"]
["GYMNASTIQUE LUNEROISE","15018.043",null,"CENTRE","CHER","LUNERY"]
["SOCIETE DE TRAMPOLINE ET DE GYMNASTIQUE DE CHATEAUDUN","15028.017","STG CHATEAUDUN","CENTRE","EURE ET LOIR","CHATEAUDUN"]
["ISSOLDUNOISE","15036.004","ISSOLDUNOISE","CENTRE","INDRE","ISSOUDUN"]
["AMICALE LAIQUE DE CHATEAUROUX","15036.050","AL CHATEAUROUX","CENTRE","INDRE","CHATEAUROUX"]
["UNION SPORTIVE ARGENTONNAISE GYMNASTIQUE","15036.096","US ARGENTONNAISE GYM","CENTRE","INDRE","ARGENTON SUR CREUSE"]
["REVEIL SPORTIF SAINT CYR SUR LOIRE","15037.071","REVEIL SPORTIF ST CYR","CENTRE","INDRE ET LOIRE","SAINT CYR SUR LOIRE"]
["ALERTE SAINT GEORGES SUR CHER","15041.063","ALERTE ST GEORGES","CENTRE","LOIR ET CHER","SAINT GEORGES SUR CHER"]
["ASSOCIATION SPORTIVE DE LA JEUNESSE ONZAINOISE","15041.076","ASJO ONZAIN","CENTRE","LOIR ET CHER","ONZAIN"]
["CLUB COMITE REGIONAL DU CENTRE-VAL DE LOIRE DE GYMNASTIQUE","15045.000","CRCVLG","CENTRE","LOIRET","OLIVET"]
["GYM OLIVET","15045.038",null,"CENTRE","LOIRET","OLIVET"]
["ETOILE BALGENTIENNE","15045.066","ETOILE BALGENTIENNE","CENTRE","LOIRET","BEAUGENCY"]
["ESPERANCE MONTATAIRE","16060.013","ESPERANCE MONTATAIRE","PICARDIE","OISE","MONTATAIRE"]
["THOUROTTE GYM","16060.037","THOUROTTE GYM","PICARDIE","OISE","THOUROTTE"]
["CLUB GYMNIQUE DE LASSIGNY","16060.068","C G L","PICARDIE","OISE","LASSIGNY"]
["CLUB DE GYMNASTIQUE DE HERMES","16060.086","CGDH","PICARDIE","OISE","HERMES"]
["ETOILE SPORTIVE DES CHEMINOTS LONGUEAU AMIENS METROPOLE GYMNASTIQUE","16080.009","ESCLAM GYM","PICARDIE","SOMME","LONGUEAU AMIENS METROPOLE"]
["ABBEVILLE GYM","16080.065","ABBEVILLE GYM","PICARDIE","SOMME","ABBEVILLE"]
["LA COGNACAISE","18016.003","LA COGNACAISE","POITOU CHARENTES","CHARENTE","COGNAC"]
["Association Angérienne d'Activité Gymnique","18017.001","A3GYM","POITOU CHARENTES","CHARENTE MARITIME","ST JEAN D ' ANGELY"]
["LA ROCHEFORTAISE","18017.006","LA ROCHEFORTAISE","POITOU CHARENTES","CHARENTE MARITIME","ROCHEFORT SUR MER"]
["UNION SPORTIVE SAINTES CLUB CHEMINOTS GYMNASTIQUE","18017.026","USSCC GYM","POITOU CHARENTES","CHARENTE MARITIME","SAINTES"]
["GYM OLERON","18017.051","GYM OLERON","POITOU CHARENTES","CHARENTE MARITIME","SAINT PIERRE D OLERON"]
["UNION GYMNIQUE SAUJONNAISE","18017.059","UG SAUJON","POITOU CHARENTES","CHARENTE MARITIME","SAUJON"]
["LA TONNACQUOISE GYMNASTIQUE","18017.081",null,"POITOU CHARENTES","CHARENTE MARITIME","TONNAY CHARENTE"]
["LES MOUETTES DE ROYAN","18017.083",null,"POITOU CHARENTES","CHARENTE MARITIME","ROYAN"]
["AVANT GARDE DE TERVES","18079.022","AVANT GARDE TERVES","POITOU CHARENTES","DEUX SEVRES","TERVES"]
["GIVRE EN MAI","18079.024","GIVRE EN MAI","POITOU CHARENTES","DEUX SEVRES","SAINT SAUVEUR DE GIVRE EN MAI"]
["CABRI MELLOIS","18079.037","CABRI MELLOIS","POITOU CHARENTES","DEUX SEVRES","MELLE"]
["TRINITAIRES GYMNASTIQUE","18079.045","TRINITAIRES GYMNASTIQUE","POITOU CHARENTES","DEUX SEVRES","MAULEON"]
["LA VOLT'AIRE AIRVAULT","18079.048","VOLT'AIRE AIRVAULT","POITOU CHARENTES","DEUX SEVRES","AIRVAULT"]
["GYM CLUB NUEIL LES AUBIERS","18079.053","GCNA","POITOU CHARENTES","DEUX SEVRES","NUEIL LES AUBIERS"]
["GYMNASTES DE L'EGRAY","18079.062","GYMNASTES EGRAY","POITOU CHARENTES","DEUX SEVRES","GERMOND"]
["IMPULSION GYM","18079.088","IMPULSION GYM","POITOU CHARENTES","DEUX SEVRES","ST MARTIN DE BERNEGOUE"]
["L'UNION des GYMNASTES NIORTAIS","18079.090","UGN","POITOU CHARENTES","DEUX SEVRES","NIORT"]
["CLUB SPORTIF ARTISTIQUE DE LA DEFENSE - CHATELLERAULT","18086.009","CSAD - C GYM","POITOU CHARENTES","VIENNE","CHATELLERAULT"]
["CERCLE D EDUCATION PHYSIQUE GYM POITIERS","18086.017","CEP POITIERS","POITOU CHARENTES","VIENNE","POITIERS"]
["CLUB GROUP'OMNISPORT de ST JULIEN L'ARS","18086.031","CGSTJA","POITOU CHARENTES","VIENNE","SAINT JULIEN L'ARS"]
["ASSOCIATION GYMNIQUE LOUDUNAISE","18086.034","AG LOUDUNAISE","POITOU CHARENTES","VIENNE","LOUDUN"]
["STADE POITEVIN GYMNASTIQUE","18086.036","SPG","POITOU CHARENTES","VIENNE","POITIERS"]
["ENTRE CLAIN ET MIOSSON","18086.068","ECM","POITOU CHARENTES","VIENNE","FLEURE"]
["NOUVEL'R GYM LENCLOITRE","18086.077","CGL","POITOU CHARENTES","VIENNE","LENCLOITRE"]
["RYTHM' & GYM' CHAMPIGNY LE SEC","18086.084","RaG","POITOU CHARENTES","VIENNE","CHAMPIGNY LE SEC"]
["VIENNE GYM","18086.089","VIENNE GYM","POITOU CHARENTES","VIENNE","POITIERS"]
["CLUB MARIGNANAIS DES SPORTS DE GYMNASTIQUE","19013.001","C.M.S. MARIGNANE","PROVENCE ALPES COTE D AZUR","BOUCHES DU RHONE","MARIGNANE"]
["GYMNASTIQUE CLUB MIRAMAS","19013.052","G.C. MIRAMAS","PROVENCE ALPES COTE D AZUR","BOUCHES DU RHONE","MIRAMAS"]
["ENTENTE NOTRE DAME DU MONT","19013.097",null,"PROVENCE ALPES COTE D AZUR","BOUCHES DU RHONE","MARSEILLE"]
["GYMNASTIQUE DU PAYS D'AIX EN PROVENCE","19013.166","GPA","PROVENCE ALPES COTE D AZUR","BOUCHES DU RHONE","AIX EN PROVENCE"]
["CLUB GYMNIQUE SAINT MAXIMINOIS","19083.024","C.G.S.M","PROVENCE ALPES COTE D AZUR","VAR","ST MAXIMIN LA STE BAUME"]
["HYERES GYM","19083.031","HYERES GYM","PROVENCE ALPES COTE D AZUR","VAR","HYERES"]
["GYM 2000 LA FARLEDE","19083.088","GYM 2000 LA FARLEDE","PROVENCE ALPES COTE D AZUR","VAR","LA FARLEDE"]
["ASSOCIATION LES PITCHOUNS DE CARCES","19083.101","Les Pitchouns","PROVENCE ALPES COTE D AZUR","VAR","CARCES"]
["ACRO TRAMP SAINT MAXIMIN SEILLONS","19083.110","ATSM","PROVENCE ALPES COTE D AZUR","VAR","SAINT MAXIMIN LA SAINTE BAUME - SEILLONS"]
["CLUB L'ISLOIS DE GYMNASTIQUE","19084.064","C.L.G","PROVENCE ALPES COTE D AZUR","VAUCLUSE","L ISLE SUR LA SORGUE"]
["LES ECUR.CRITOURIENS","20009.010","LES ECUR.CRITOURIENS","MIDI PYRENEES","ARIEGE","LA TOUR DU CRIEU"]
["COQUELICOT TOULOUSE GYM","20031.012","C. T. GYM","MIDI PYRENEES","HAUTE GARONNE","TOULOUSE"]
["ETOILE GYMNIQUE DE COLOMIERS","20031.035","E.G.COLOMIERS","MIDI PYRENEES","HAUTE GARONNE","COLOMIERS"]
["ELAN GYMNIQUE","20031.049","ELAN GYMNIQUE","MIDI PYRENEES","HAUTE GARONNE","BLAGNAC"]
["PORTET GYM","20031.099","PORTET GYM","MIDI PYRENEES","HAUTE GARONNE","PORTET SUR GARONNE"]
["Association Sportive Fleurance Gym","20032.084","AS Fleurance Gym","MIDI PYRENEES","GERS","FLEURANCE"]
["LA BIGOURDANE TARBES","20065.023","LA BIGOURDANE TARBES","MIDI PYRENEES","HAUTES PYRENEES","TARBES"]
["SALTO ALBIGEOIS","20081.003","SALTO ALBIGEOIS","MIDI PYRENEES","TARN","ALBI"]
["LA NANTAISE","21044.012","LA NANTAISE","PAYS DE LA LOIRE","LOIRE ATLANTIQUE","NANTES"]
["ANGERS GYMNASTIQUE","21049.077","ANGERS GYMNASTIQUE","PAYS DE LA LOIRE","MAINE ET LOIRE","ANGERS"]
["A.S.P.C. GYM'SPORT","21049.082","A.S.PONTS DE CE","PAYS DE LA LOIRE","MAINE ET LOIRE","LES PONTS DE CE"]
["SAUMUR LOIRE ALLIANCE GYMNIQUE","21049.102","SLAG","PAYS DE LA LOIRE","MAINE ET LOIRE","SAUMUR"]
["UNION SPORTIVE LAVALLOISE","21053.073","UNION SPORTIVE LAVAL","PAYS DE LA LOIRE","MAYENNE","LAVAL"]
["GYM CLUB SUZERAIN","21072.011","GYM CLUB SUZERAIN","PAYS DE LA LOIRE","SARTHE","LA SUZE SUR SARTHE"]
["AVANT GARDE DU MANS","21072.041","AVANT GARDE DU MANS","PAYS DE LA LOIRE","SARTHE","LE MANS"]
["A S C A","21072.054","A S C A","PAYS DE LA LOIRE","SARTHE","LA CHAPELLE ST-AUBIN"]
["LA FONTENAISIENNE","21085.013","LA FONTENAISIENNE","PAYS DE LA LOIRE","VENDEE","FONTENAY LE COMTE"]
["BEAUSEJOUR LES SABLES","21085.018","BEAUSEJOUR LES SABLES","PAYS DE LA LOIRE","VENDEE","LES SABLES D'OLONNE"]
["E.S.M. GYM CHALLANS","21085.048","E.S.M. GYM CHALLANS","PAYS DE LA LOIRE","VENDEE","CHALLANS"]
["GYMNASTIQUE CLUB LA ROCHE SUR YON","21085.099","G C R Y","PAYS DE LA LOIRE","VENDEE","ROCHE SUR YON"]
["LA CELLE SAINT CLOUD GYM","23078.003","LA CELLE ST CLOUD-LCSCG","ILE DE FRANCE OUEST","YVELINES","LA CELLE SAINT CLOUD"]
["CLUB SPORTIF MUNICIPAL DE GYMNASTIQUE EPINAY SOUS SENART","23091.104","EPINAY SS SENART-CSMG","ILE DE FRANCE OUEST","ESSONNE","EPINAY SOUS SENART"]
["ENTENTE GYMNIQUE ETAMPES","23091.105","ETAMPES-EGE","ILE DE FRANCE OUEST","ESSONNE","ETAMPES"]
["SPORTING CLUB DE LIMOURS GYMNASTIQUE","23091.107","LIMOURS-SCLG","ILE DE FRANCE OUEST","ESSONNE","LIMOURS"]
["TRICOLORE SPORTIVE DE MASSY","23091.110","MASSY-TSM","ILE DE FRANCE OUEST","ESSONNE","MASSY"]
["ASSOCIATION GYMNIQUE BREUILLETOISE","23091.135","BREUILLET-AGB","ILE DE FRANCE OUEST","ESSONNE","BREUILLET"]
["GYMNASTIQUE CLUB MENNECY","23091.152","MENNECY-GCM","ILE DE FRANCE OUEST","ESSONNE","MENNECY"]
["DRAVEIL TEAM TUMBLING - GYMNASTIQUE","23091.183","DRAVEIL-DTTG","ILE DE FRANCE OUEST","ESSONNE","DRAVEIL"]
["UNION SPORTIVE MUNICIPALE MALAKOFF","23092.209","MALAKOFF-USMM","ILE DE FRANCE OUEST","HAUTS DE SEINE","MALAKOFF"]
["ALBONAISE GYMNASTIQUE","23095.301","FRANCONVILLE-AG","ILE DE FRANCE OUEST","VAL D'OISE","FRANCONVILLE"]
["ETOILE GOUSSAINVILLOISE","23095.303","GOUSSAINVILLE-EG","ILE DE FRANCE OUEST","VAL D'OISE","GOUSSAINVILLE"]
["LES ECUREUILS DE SAINT PRIX","23095.330","ST PRIX-ESP","ILE DE FRANCE OUEST","VAL D'OISE","SAINT PRIX"]
["EN AVANT ! DE PARIS","24075.004","EN AVANT DE PARIS","ILE DE FRANCE MARNE","PARIS","PARIS"]
["MEAUX GYMNASTIQUE","24077.110","MEAUX GYMNASTIQUE","ILE DE FRANCE MARNE","SEINE ET MARNE","MEAUX"]
["CLUB ATHLETIQUE COMBS LA VILLE GYMNASTIQUE","24077.128","CA COMBS LA VILLE GYM","ILE DE FRANCE MARNE","SEINE ET MARNE","COMBS LA VILLE"]
["ASSOCIATION GYMNIQUE DE CESSON VERT ST DENIS","24077.130","AG CESSON VERT ST D.","ILE DE FRANCE MARNE","SEINE ET MARNE","CESSON VERT SAINT DENIS"]
["ESPOIR GYMNIQUE DE BRIE COMTE ROBERT","24077.178","EG BRIE COMTE ROBERT","ILE DE FRANCE MARNE","SEINE ET MARNE","BRIE COMTE ROBERT"]
["LES AMIS GYMNASTES D'AULNAY /BOIS","24093.331","AG AULNAY /BOIS","ILE DE FRANCE MARNE","SEINE SAINT DENIS","AULNAY SOUS BOIS"]
["CLUB GYMNIQUE DE NEUILLY SUR MARNE","24093.341","CG NEUILLY/MARNE","ILE DE FRANCE MARNE","SEINE SAINT DENIS","NEUILLY SUR MARNE"]
["STADE OLYMPIQUE DE ROSNY SOUS BOIS","24093.346","SO ROSNY SOUS BOIS","ILE DE FRANCE MARNE","SEINE SAINT DENIS","ROSNY SOUS BOIS"]
["ESPERANCE DE FONTENAY SOUS BOIS","24094.564","ESPERANCE FONTENAY","ILE DE FRANCE MARNE","VAL DE MARNE","FONTENAY SOUS BOIS"]
["CLUB SPORTIF ET ATHLETIQUE DU KREMLIN BICETRE","24094.567","CSA KREMLIN-BICETRE","ILE DE FRANCE MARNE","VAL DE MARNE","LE KREMLIN BICETRE"]
["GYM CLUB DU PERREUX","24094.584","GC LE PERREUX","ILE DE FRANCE MARNE","VAL DE MARNE","LE PERREUX"]
["BASTIA TEAM GYM","25020.022",null,"CORSE","CORSE","BASTIA"]
["FLAMBOYANT GYM CLUB","27990.002","FLAMBOYANT GYM CLUB","NOUVELLE CALEDONIE","NOUVELLE CALEDONIE","NOUMEA"]
["LICENCES INDIVIDUELLES FFG","40995.000","LICENCES INDIVIDUELLES","FFG","LICENCE INDIVIDUELLE FFG","PARIS"]

{"sheet":"liste","index":20,"n_rows":21,"n_cols":13,"rows_kept":21,"cut":false,"hidden":true,"merged":[]}
[]
["FédéralA",1,null,"Finale A","Junior",1]
["FédéralB",1,"Adulte","Finale B","Senior",2,null,"FédéralA","FédéralB","NationalA","NationalB","NationalC","Europe"]
["FédéralC",2,"Féminine","Finale C",null,3,null,"Adultes","Adultes","Junior ","Mix-Masc","Junior","Senior Féminine"]
["NationalA",2,"Masc/Mix","Finale D",null,4,null,"Mix-Masc","Mix-Masc","12 ans et Plus","Fem","12 ans et Plus","Senior Masculine"]
["NationalB",2,"Unique",null,null,null,null,"Fem","Fem",null,"Junior",null,"Senior Mixte"]
["NationalC",3,null,null,null,null,null,"10 - 15 ans","10 - 15 ans",null,null,null,"Junior Féminine"]
["Europe",3,null,null,{"$f":"INDIRECT(A2)","v":{"$error":"#VALUE!"}},null,null,null,null,null,null,null,"Junior Masculine"]
[null,3,"Féminine",null,null,null,null,null,null,null,null,null,"Junior Mixte"]
[null,4,"Masculine"]
["Catégorie",5,"Mixte"]
["Découverte"]
["Evolution"]
["Détente"]
["Passion"]
[]
[]
[null,null,1]
[null,null,2]
[null,null,3]
[null,null,4]

{"sheet":"Activer Macro 97-2003","index":21,"n_rows":71,"n_cols":1,"rows_kept":71,"cut":false,"hidden":false,"merged":[]}
["pour activer les macros :"]
[]
["en résumé : menu Excel ->"]
["Outils > Macros > Sécurité > cocher niveau sécurité moyen"]
[]
["en images:"]
[]
[]
[]
[]
[]
[]
[]
[]
[]
[]
[]
[]
[]
[]
[]
[]
[]
[]
[]
[]
[]
[]
[]
[]
[]
[]
[]
[]
[]
[]
[]
[]
[-2]
[]
[]
[]
[]
[]
[]
[]
[]
[]
[]
[]
[]
[]
[]
[]
[]
[]
[]
[]
["(3) important : fermer le fichier, puis l'ouvrir à nouveau et cliquer \"Activer les Macros\" à la question suivante"]
[]
[]
[]
[]
[]
[]
[]
[]
["= mise en garde de Microsoft à ne pas négliger :"]
["Les macros peuvent contenir des virus. Il est généralement plus prudent de les désactiver. Toutefois, si elles proviennent d'une source sûre, le fait de les désactiver vous empêchera d'avoir accès à toutes les fonctionnalités. "]
[]
["les macros sont activées !"]

{"sheet":"Activer Macro2007","index":22,"n_rows":30,"n_cols":2,"rows_kept":30,"cut":false,"hidden":false,"merged":[]}
[]
[]
[]
[]
[]
[]
[]
[]
[]
[]
[]
[]
[]
[]
[]
[]
[]
[]
[]
[]
[]
[]
[]
[]
[]
[]
[]
[]
[]
[null,"fermer le fichier, puis l'ouvrir à nouveau "]

{"sheet":"SOL Explications","index":23,"n_rows":22,"n_cols":9,"rows_kept":22,"cut":false,"hidden":false,"merged":[[21,5,28,7],[17,1,18,4],[17,8,18,11],[0,1,0,11],[1,1,1,11],[2,1,2,11]]}
[null,"FEUILLES DE DIFF SOL - \n"]
[null,"La feuille a été modifiée pour que les juges de composition voit les données pour mieux juger. Sur cette page vous avez tout pour construire votre sol."]
[null,"Sélectionnez les objets et déplacez les sur les carrés blancs pour contruire votre formation et/ou indiquez les exigences de composition."]
[]
[]
[]
[]
[]
[]
[]
[]
[]
[]
[]
[]
[]
[]
[null,"FEDERAL",null,null,null,null,null,null,"PERFORMANCE"]
[]
[]
[]
[null,null,null,null,null,"Ce sont des listes, il faut choisir saut/pivots/maintien sur chaque formation"]

{"sheet":"Explications","index":24,"n_rows":49,"n_cols":4,"rows_kept":49,"cut":false,"hidden":false,"merged":[[1,3,2,9],[3,3,3,9],[5,1,5,10],[6,1,6,10],[7,1,7,11],[24,1,24,10],[8,1,8,11],[9,1,9,10],[10,1,10,10],[12,1,12,10],[14,1,14,10],[16,1,16,10],[17,1,17,10],[19,1,19,10],[21,1,21,10],[22,1,22,10],[23,1,23,10],[41,1,41,10],[43,1,43,10],[44,1,44,10],[25,1,25,10],[26,1,26,10],[29,1,29,10],[33,1,33,10],[34,1,34,10],[36,1,36,10]]}
[]
[null,null,null,"FEUILLES DE DIFF - MODE D'EMPLOI"]
[]
[null,null,null,"V1.0"]
[]
[null,"Cet onglet permet de vous expliquer chaque étape de cet outil. "]
[null,"Comment activer les macros"]
[null,"Allez sur les onglets en fonction de votre version, ou regardez sur internet"]
[]
[null,"Explication des onglets"]
[]
[]
[]
[]
[]
[]
[]
[]
[]
[]
[]
[]
[]
[]
[]
[]
[]
[]
[]
[]
[]
[]
[]
[]
[]
[]
[]
[]
[]
[]
[]
[null,"Utilisation de MAV"]
[null,"N'enregistrez pas le fichier au format par défaut, forcez le au format excel (.xlsm per ex)"]
[]
[null,"Un problème  : responsablejugeteamgym@ffgym.fr"]
[null,"Une adresse de support a été créée afin de vous permettre d'envoyer les problèmes que vous rencontrerez:"]
[null,"Si vous rencontrez un problème envoyez un mail à cette adresse, en expliquant le problème que vous rencontrez, la saisie et les actions que vous avez effectuées. "]
[null,"Vous pouvez joindre aussi le fichier qui pose problème en précisant la version excel que vous utilisez."]
[null,"Plus vous serez explicite dans la description du problème, plus nous serons à même de vous aider."]

{"sheet":"MessageErreurO365","index":25,"n_rows":15,"n_cols":2,"rows_kept":15,"cut":false,"hidden":false,"merged":[[12,0,12,3]]}
["Si vous voyez le message suivant : "]
[]
[]
[]
[]
[]
[]
[]
[]
[]
[]
[null,"Vous pouvez cliquer sur le lien pour plus d'explication : "]
["Actions à effectuer sur chaque ordiniateur "]
[null,"1 - Copiez toutes vos feuilles pour la compétition dans un répertoire ( qui lui-même peut contenir d'autres répertoires) :"]
[null,"2 - Suivre la procédure suivante :"]

{"sheet":"fiche engagement","index":26,"n_rows":19,"n_cols":8,"rows_kept":19,"cut":false,"hidden":false,"merged":[[18,1,18,4],[8,0,8,1],[0,0,0,5],[1,0,1,5],[2,0,2,5],[4,0,4,5],[6,0,6,1],[6,2,6,3],[3,0,3,5],[5,0,5,5],[10,0,10,1],[15,0,15,1],[15,2,15,4],[17,1,17,4],[12,2,14,4]]}
["Fiche d'engagement Compétition TeamGym - SAISON 2024- 2025 V1.2"]
["ENGAGEMENT EN LIGNE "]
["Remplir une feuille par équipe de compétition et remplissez toutes les cases."]
["Les cases grises sont des listes déroulantes."]
["Les cases bleues sont des zones de texte à compléter"]
["Les cases roses sont remplies automatiquement"]
["Help",null,"responsablejugeteamgym@ffgym.fr"]
[]
["Catégories:",null,null,"Finale:","Finale A"]
[]
["Section:",null,null,"Equipe numéro :",1]
[null,"Nb Gym"]
[]
[]
["Nom de l'association :"]
["Code Informatique:",null,{"$f":"IF(H16=0,\" \",INDEX('FFGym Clubs'!$C$3:$C$381,H16))","v":" "},null,null,null,null,{"$f":"SUM(('FFGym Clubs'!$A$2:$A$381=$C$13)*('FFGym Clubs'!$B$2:$B$381))","v":0}]
[]
["Ville :",{"$f":"IF(H16=0,\" \",INDEX('FFGym Clubs'!$E$3:$E$381,'fiche engagement'!H16))","v":" "}]
["Abréviation de l'association",{"$f":"IF(H16=0,\" \",INDEX('FFGym Clubs'!$D$3:$D$381,'fiche engagement'!H16))","v":" "}]

{"sheet":"FED Dif Sol","index":27,"n_rows":17,"n_cols":49,"rows_kept":17,"cut":false,"hidden":false,"merged":[[7,42,7,44],[7,45,7,47],[8,30,8,32],[14,29,16,29],[0,10,1,12],[9,29,11,29],[4,29,6,29],[7,30,7,32],[7,33,7,35],[7,36,7,38],[7,39,7,41],[2,45,2,47],[3,30,3,32],[3,33,3,35],[3,36,3,38],[3,39,3,41],[3,42,3,44],[3,45,3,47],[2,30,2,32],[2,33,2,35],[2,36,2,38],[2,39,2,41],[2,42,2,44],[14,0,16,0],[12,13,12,15],[13,1,13,3],[13,4,13,6],[13,7,13,9],[13,10,13,12],[13,13,13,15],[12,1,12,3],[12,4,12,6],[12,7,12,9],[12,10,12,12],[9,0,11,0],[12,17,12,19],[7,1,7,3],[7,4,7,6],[7,7,7,9],[7,10,7,12],[7,13,7,15],[8,13,8,15],[7,17,7,20],[8,16,8,17],[8,18,8,20],[4,0,6,0],[8,1,8,3],[8,4,8,6],[8,7,8,9],[8,10,8,12],[3,1,3,3],[3,4,3,6],[3,7,3,9],[3,10,3,12],[3,13,3,15],[0,4,1,6],[0,7,1,7],[0,8,1,9],[1,17,1,19],[2,1,2,3],[2,4,2,6],[2,7,2,9],[2,10,2,12],[2,13,2,15],[0,14,0,15],[12,45,12,47],[8,33,8,35],[8,36,8,38],[8,39,8,41],[8,42,8,44],[8,45,8,47],[12,30,12,32],[12,33,12,35],[12,36,12,38],[12,39,12,41],[12,42,12,44],[13,45,13,47],[16,30,16,32],[16,33,16,35],[16,36,16,38],[16,39,16,41],[16,42,16,44],[16,45,16,47],[13,30,13,32],[13,33,13,35],[13,36,13,38],[13,39,13,41],[13,42,13,44],[17,45,17,47],[17,30,17,32],[17,33,17,35],[17,36,17,38],[17,39,17,41],[17,42,17,44]]}
[null,null,null,null,"NOMBRE DE GYM:",null,null,{"$f":"'fiche engagement'!C12","v":0},"Equipe:",null,{"$f":"CONCATENATE(INDEX('FFGym Clubs'!$D$3:$D$381,'fiche engagement'!H16),\" - Equipe N°\",'fiche engagement'!E11)","v":{"$error":"#VALUE!"}},null,null,null,"Somme des Diff"]
[null,null,null,null,null,null,null,null,null,null,null,null,null,null,{"$f":"SUM(Z5:AS6)+SUM(Z10:AS11)+SUM(Z15:AS16)+AC7+AG7+AK7+AO7+AS7+AS12+AO12+AK12+AG12+AC12+AC17+AG17+AK17+AO17+AS17","v":0},"Cumul de toutes les valeurs",{"$f":"'fiche engagement'!C9","v":0},"Exigences de composition"]
[null,"Formation",null,null,"Formation",null,null,"Formation",null,null,"Formation",null,null,"Formation",null,null,null,null,null,null,null,null,null,null,null,null,null,null,null,null,"Formation",null,null,null,"Formation",null,null,null,"Formation",null,null,null,"Formation",null,null,null,"Formation"]
[null,null,null,null,null,null,null,null,null,null,null,null,null,null,null,null,null,null,null,"Formations différentes  6 "]
["DIFF","SAUT","PIVOTS + EFORCE","MAINTIEN","SAUT","PIVOTS + EFORCE","MAINTIEN","SAUT","PIVOTS + EFORCE","MAINTIEN","SAUT","PIVOTS + EFORCE","MAINTIEN","SAUT","PIVOTS + EFORCE","MAINTIEN",null,null,null,null,null,null,null,null,null,null,null,null,null,"DIFF",{"$f":"IFERROR(RIGHT(LEFT(B5,2))/10,0)","v":0},{"$f":"IFERROR(RIGHT(LEFT(C5,3))/10,0)","v":0},{"$f":"IFERROR(IF(LEN(D5)=6,1,RIGHT(LEFT(D5,3))/10),0)","v":0},{"$f":"IFERROR(RIGHT(LEFT(E5,2))/10,0)","v":0},{"$f":"IFERROR(RIGHT(LEFT(F5,3))/10,0)","v":0},{"$f":"IFERROR(IF(LEN(G5)=6,1,RIGHT(LEFT(G5,3))/10),0)","v":0},{"$f":"IFERROR(RIGHT(LEFT(H5,2))/10,0)","v":0},{"$f":"IFERROR(RIGHT(LEFT(I5,3))/10,0)","v":0},{"$f":"IFERROR(IF(LEN(J5)=6,1,RIGHT(LEFT(J5,3))/10),0)","v":0},{"$f":"IFERROR(RIGHT(LEFT(K5,2))/10,0)","v":0},{"$f":"IFERROR(RIGHT(LEFT(L5,3))/10,0)","v":0},{"$f":"IFERROR(IF(LEN(M5)=6,1,RIGHT(LEFT(M5,3))/10),0)","v":0},{"$f":"IFERROR(RIGHT(LEFT(N5,2))/10,0)","v":0},{"$f":"IFERROR(RIGHT(LEFT(O5,3))/10,0)","v":0},{"$f":"IFERROR(IF(LEN(P5)=6,1,RIGHT(LEFT(P5,3))/10),0)","v":0},{"$f":"IFERROR(RIGHT(LEFT(Q5,2))/10,0)","v":0},{"$f":"IFERROR(RIGHT(LEFT(R5,3))/10,0)","v":0},{"$f":"IFERROR(IF(LEN(S5)=6,1,RIGHT(LEFT(S5,3))/10),0)","v":0}]
[null,"GE","TOUT","TOUT","GE","TOUT","TOUT","GE","TOUT","TOUT","GE","TOUT","TOUT","GE","TOUT","TOUT",null,null,null,null,null,null,null,null,null,null,null,null,null,null,{"$f":"IFERROR(RIGHT(LEFT(B6,2))/10,0)","v":0},{"$f":"IFERROR(IF(LEN(C6)=5,RIGHT(LEFT(C6,3))/10,RIGHT(LEFT(C6,2))/10),0)","v":0},{"$f":"IFERROR(IF(LEN(D6)=5,RIGHT(LEFT(D6,3))/10,RIGHT(LEFT(D6,2))/10),0)","v":0},0,{"$f":"IFERROR(IF(LEN(F6)=5,RIGHT(LEFT(F6,3))/10,RIGHT(LEFT(F6,2))/10),0)","v":0},0,0,{"$f":"IFERROR(IF(LEN(I6)=5,RIGHT(LEFT(I6,3))/10,RIGHT(LEFT(I6,2))/10),0)","v":0},0,0,{"$f":"IFERROR(IF(LEN(L6)=5,RIGHT(LEFT(L6,3))/10,RIGHT(LEFT(L6,2))/10),0)","v":0},0,0,{"$f":"IFERROR(IF(LEN(O6)=5,RIGHT(LEFT(O6,3))/10,RIGHT(LEFT(O6,2))/10),0)","v":0},0,0,{"$f":"IFERROR(IF(LEN(R6)=5,RIGHT(LEFT(R6,3))/10,RIGHT(LEFT(R6,2))/10),0)","v":0},0]
[null,"Combinaison",null,null,"Combinaison",null,null,"Combinaison",null,null,"Combinaison",null,null,"Combinaison",null,null,null,null,null,null,null,null,null,null,null,null,null,null,null,null,"Combi",{"$f":"IFERROR(IF(LEN(C7)=5,1,RIGHT(LEFT(C7,2))/10),0)","v":0},{"$f":"IFERROR(IF(LEN(D7)=5,1,RIGHT(LEFT(D7,2))/10),0)","v":0},{"$f":"IFERROR(IF(LEN(E7)=5,1,IF(LEN(E7)=6,1,RIGHT(LEFT(E7,2))/10)),0)","v":0},"Combi",{"$f":"IFERROR(IF(LEN(G7)=5,1,RIGHT(LEFT(G7,2))/10),0)","v":0},0,{"$f":"IFERROR(IF(LEN(I7)=5,1,IF(LEN(I7)=6,1,RIGHT(LEFT(I7,2))/10)),0)","v":0},"Combi",{"$f":"IFERROR(IF(LEN(K7)=5,1,RIGHT(LEFT(K7,2))/10),0)","v":0},0,{"$f":"IFERROR(IF(LEN(M7)=5,1,IF(LEN(M7)=6,1,RIGHT(LEFT(M7,2))/10)),0)","v":0},"Combi",{"$f":"IFERROR(IF(LEN(O7)=5,1,RIGHT(LEFT(O7,2))/10),0)","v":0},0,{"$f":"IFERROR(IF(LEN(Q7)=5,1,IF(LEN(Q7)=6,1,RIGHT(LEFT(Q7,2))/10)),0)","v":0},"Combi",{"$f":"IFERROR(IF(LEN(S7)=5,1,RIGHT(LEFT(S7,2))/10),0)","v":0},{"$f":"IF(OR(AF7+AG7>0,AJ7+AK7>0,AN7+AO7>0,AR7+AS7>0,AV7+#REF!>0),0.5,0)","v":{"$error":"#REF!"}}]
[null,"Formation",null,null,"Formation",null,null,"Formation",null,null,"Formation",null,null,"Formation",null,null,null,"Legende pour les difficultés par formation",null,null,null,null,null,null,null,null,null,null,null,null,"Formation",null,null,null,"Formation",null,null,null,"Formation",null,null,null,"Formation",null,null,null,"Formation"]
[null,null,null,null,null,null,null,null,null,null,null,null,null,null,null,null,"SAUT = Jxxx \nGE =  Groupe Elément",null,"Maintien  = SB / HB \nPivots + Eléments de Force = DB"]
["DIFF","SAUT","PIVOTS + EFORCE","MAINTIEN","SAUT","PIVOTS + EFORCE","MAINTIEN","SAUT","PIVOTS + EFORCE","MAINTIEN","SAUT","PIVOTS + EFORCE","MAINTIEN","SAUT","PIVOTS + EFORCE","MAINTIEN",null,null,null,null,null,null,null,null,null,null,null,null,null,"DIFF",{"$f":"IFERROR(RIGHT(LEFT(B10,2))/10,0)","v":0},{"$f":"IFERROR(RIGHT(LEFT(C10,3))/10,0)","v":0},{"$f":"IFERROR(IF(LEN(D10)=6,1,RIGHT(LEFT(D10,3))/10),0)","v":0},{"$f":"IFERROR(RIGHT(LEFT(E10,2))/10,0)","v":0},{"$f":"IFERROR(RIGHT(LEFT(F10,3))/10,0)","v":0},{"$f":"IFERROR(IF(LEN(G10)=6,1,RIGHT(LEFT(G10,3))/10),0)","v":0},{"$f":"IFERROR(RIGHT(LEFT(H10,2))/10,0)","v":0},{"$f":"IFERROR(RIGHT(LEFT(I10,3))/10,0)","v":0},{"$f":"IFERROR(IF(LEN(J10)=6,1,RIGHT(LEFT(J10,3))/10),0)","v":0},{"$f":"IFERROR(RIGHT(LEFT(K10,2))/10,0)","v":0},{"$f":"IFERROR(RIGHT(LEFT(L10,3))/10,0)","v":0},{"$f":"IFERROR(IF(LEN(M10)=6,1,RIGHT(LEFT(M10,3))/10),0)","v":0},{"$f":"IFERROR(RIGHT(LEFT(N10,2))/10,0)","v":0},{"$f":"IFERROR(RIGHT(LEFT(O10,3))/10,0)","v":0},{"$f":"IFERROR(IF(LEN(P10)=6,1,RIGHT(LEFT(P10,3))/10),0)","v":0},{"$f":"IFERROR(RIGHT(LEFT(Q10,2))/10,0)","v":0},{"$f":"IFERROR(RIGHT(LEFT(R10,3))/10,0)","v":0},{"$f":"IFERROR(IF(LEN(S10)=6,1,RIGHT(LEFT(S10,3))/10),0)","v":0}]
[null,"GE","TOUT","TOUT","GE","TOUT","TOUT","GE","TOUT","TOUT","GE","TOUT","TOUT","GE","TOUT","TOUT",null,null,null,null,null,null,null,null,null,null,null,null,null,null,0,{"$f":"IFERROR(IF(LEN(C11)=5,RIGHT(LEFT(C11,3))/10,RIGHT(LEFT(C11,2))/10),0)","v":0},0,0,{"$f":"IFERROR(IF(LEN(F11)=5,RIGHT(LEFT(F11,3))/10,RIGHT(LEFT(F11,2))/10),0)","v":0},0,0,{"$f":"IFERROR(IF(LEN(I11)=5,RIGHT(LEFT(I11,3))/10,RIGHT(LEFT(I11,2))/10),0)","v":0},0,0,{"$f":"IFERROR(IF(LEN(L11)=5,RIGHT(LEFT(L11,3))/10,RIGHT(LEFT(L11,2))/10),0)","v":0},0,0,{"$f":"IFERROR(IF(LEN(O11)=5,RIGHT(LEFT(O11,3))/10,RIGHT(LEFT(O11,2))/10),0)","v":0},0,0,{"$f":"IFERROR(IF(LEN(R11)=5,RIGHT(LEFT(R11,3))/10,RIGHT(LEFT(R11,2))/10),0)","v":0},0]
[null,"Combinaison",null,null,"Combinaison",null,null,"Combinaison",null,null,"Combinaison",null,null,"Combinaison",null,null,null,null,null,null,null,null,null,null,null,null,null,null,null,null,"Combi",{"$f":"IFERROR(IF(LEN(C12)=5,1,RIGHT(LEFT(C12,2))/10),0)","v":0},{"$f":"IFERROR(IF(LEN(D12)=5,1,RIGHT(LEFT(D12,2))/10),0)","v":0},{"$f":"IFERROR(IF(LEN(E12)=5,1,IF(LEN(E12)=6,1,RIGHT(LEFT(E12,2))/10)),0)","v":0},"Combi",{"$f":"IFERROR(IF(LEN(G12)=5,1,RIGHT(LEFT(G12,2))/10),0)","v":0},0,{"$f":"IFERROR(IF(LEN(I12)=5,1,IF(LEN(I12)=6,1,RIGHT(LEFT(I12,2))/10)),0)","v":0},"Combi",{"$f":"IFERROR(IF(LEN(K12)=5,1,RIGHT(LEFT(K12,2))/10),0)","v":0},0,{"$f":"IFERROR(IF(LEN(M12)=5,1,IF(LEN(M12)=6,1,RIGHT(LEFT(M12,2))/10)),0)","v":0},"Combi",{"$f":"IFERROR(IF(LEN(O12)=5,1,RIGHT(LEFT(O12,2))/10),0)","v":0},0,{"$f":"IFERROR(IF(LEN(Q12)=5,1,IF(LEN(Q12)=6,1,RIGHT(LEFT(Q12,2))/10)),0)","v":0},"Combi",{"$f":"IFERROR(IF(LEN(S12)=5,1,RIGHT(LEFT(S12,2))/10),0)","v":0},{"$f":"IF(OR(AF12+AG12>0,AJ12+AK12>0,AN12+AO12>0,AR12+AS12>0,AV12+#REF!>0),0.5,0)","v":{"$error":"#REF!"}}]
["DIFF","Formation",null,null,"Formation",null,null,"Formation",null,null,"Formation",null,null,"Formation",null,null,null,"Gymnastes",null,null,null,null,null,null,null,null,null,null,null,null,"Formation",null,null,null,"Formation",null,null,null,"Formation",null,null,null,"Formation",null,null,null,"Formation"]
[]
["DIFF","SAUT","PIVOTS + EFORCE","MAINTIEN","SAUT","PIVOTS + EFORCE","MAINTIEN","SAUT","PIVOTS + EFORCE","MAINTIEN","SAUT","PIVOTS + EFORCE","MAINTIEN","SAUT","PIVOTS + EFORCE","MAINTIEN",null,null,null,null,null,null,null,null,null,null,null,null,null,"DIFF",{"$f":"IFERROR(RIGHT(LEFT(B15,2))/10,0)","v":0},{"$f":"IFERROR(RIGHT(LEFT(C15,3))/10,0)","v":0},{"$f":"IFERROR(IF(LEN(D15)=6,1,RIGHT(LEFT(D15,3))/10),0)","v":0},{"$f":"IFERROR(RIGHT(LEFT(E15,2))/10,0)","v":0},{"$f":"IFERROR(RIGHT(LEFT(F15,3))/10,0)","v":0},{"$f":"IFERROR(IF(LEN(G15)=6,1,RIGHT(LEFT(G15,3))/10),0)","v":0},{"$f":"IFERROR(RIGHT(LEFT(H15,2))/10,0)","v":0},{"$f":"IFERROR(RIGHT(LEFT(I15,3))/10,0)","v":0},{"$f":"IFERROR(IF(LEN(J15)=6,1,RIGHT(LEFT(J15,3))/10),0)","v":0},{"$f":"IFERROR(RIGHT(LEFT(K15,2))/10,0)","v":0},{"$f":"IFERROR(RIGHT(LEFT(L15,3))/10,0)","v":0},{"$f":"IFERROR(IF(LEN(M15)=6,1,RIGHT(LEFT(M15,3))/10),0)","v":0},{"$f":"IFERROR(RIGHT(LEFT(N15,2))/10,0)","v":0},{"$f":"IFERROR(RIGHT(LEFT(O15,3))/10,0)","v":0},{"$f":"IFERROR(IF(LEN(P15)=6,1,RIGHT(LEFT(P15,3))/10),0)","v":0},{"$f":"IFERROR(RIGHT(LEFT(Q15,2))/10,0)","v":0},{"$f":"IFERROR(RIGHT(LEFT(R15,3))/10,0)","v":0},{"$f":"IFERROR(IF(LEN(S15)=6,1,RIGHT(LEFT(S15,3))/10),0)","v":0}]
[null,"GE","TOUT","TOUT","GE","TOUT","TOUT","GE","TOUT","TOUT","GE","TOUT","TOUT","GE","TOUT","TOUT",null,null,null,null,null,null,null,null,null,null,null,null,null,null,0,{"$f":"IFERROR(IF(LEN(C16)=5,RIGHT(LEFT(C16,3))/10,RIGHT(LEFT(C16,2))/10),0)","v":0},0,0,{"$f":"IFERROR(IF(LEN(F16)=5,RIGHT(LEFT(F16,3))/10,RIGHT(LEFT(F16,2))/10),0)","v":0},0,0,{"$f":"IFERROR(IF(LEN(I16)=5,RIGHT(LEFT(I16,3))/10,RIGHT(LEFT(I16,2))/10),0)","v":0},0,0,{"$f":"IFERROR(IF(LEN(L16)=5,RIGHT(LEFT(L16,3))/10,RIGHT(LEFT(L16,2))/10),0)","v":0},0,0,{"$f":"IFERROR(IF(LEN(O16)=5,RIGHT(LEFT(O16,3))/10,RIGHT(LEFT(O16,2))/10),0)","v":0},0,0,{"$f":"IFERROR(IF(LEN(R16)=5,RIGHT(LEFT(R16,3))/10,RIGHT(LEFT(R16,2))/10),0)","v":0},0]
[null,null,null,null,null,null,null,null,null,null,null,null,null,null,null,null,null,null,null,null,null,null,null,null,null,null,null,null,null,null,"Combi",{"$f":"IFERROR(IF(LEN(C17)=5,1,RIGHT(LEFT(C17,2))/10),0)","v":0},{"$f":"IFERROR(IF(LEN(D17)=5,1,RIGHT(LEFT(D17,2))/10),0)","v":0},{"$f":"IFERROR(IF(LEN(E17)=5,1,IF(LEN(E17)=6,1,RIGHT(LEFT(E17,2))/10)),0)","v":0},"Combi",{"$f":"IFERROR(IF(LEN(G17)=5,1,RIGHT(LEFT(G17,2))/10),0)","v":0},0,{"$f":"IFERROR(IF(LEN(I17)=5,1,IF(LEN(I17)=6,1,RIGHT(LEFT(I17,2))/10)),0)","v":0},"Combi",{"$f":"IFERROR(IF(LEN(K17)=5,1,RIGHT(LEFT(K17,2))/10),0)","v":0},0,{"$f":"IFERROR(IF(LEN(M17)=5,1,IF(LEN(M17)=6,1,RIGHT(LEFT(M17,2))/10)),0)","v":0},"Combi",{"$f":"IFERROR(IF(LEN(O17)=5,1,RIGHT(LEFT(O17,2))/10),0)","v":0},0,{"$f":"IFERROR(IF(LEN(Q17)=5,1,IF(LEN(Q17)=6,1,RIGHT(LEFT(Q17,2))/10)),0)","v":0},"Combi",{"$f":"IFERROR(IF(LEN(S17)=5,1,RIGHT(LEFT(S17,2))/10),0)","v":0},{"$f":"IF(OR(AF17+AG17>0,AJ17+AK17>0,AN17+AO17>0,AR17+AS17>0,AV17+#REF!>0),0.5,0)","v":{"$error":"#REF!"}}]

{"sheet":"PERF Dif Sol","index":28,"n_rows":22,"n_cols":43,"rows_kept":22,"cut":false,"hidden":false,"merged":[[9,25,11,25],[12,26,12,29],[12,30,12,33],[14,25,16,25],[12,38,12,41],[13,26,13,29],[13,30,13,33],[13,34,13,37],[17,34,17,37],[12,34,12,37],[17,38,17,41],[18,26,18,29],[18,30,18,33],[18,34,18,37],[18,38,18,41],[13,38,13,41],[17,1,17,4],[18,1,18,4],[19,0,21,0],[17,26,17,29],[17,30,17,33],[17,5,17,8],[17,9,17,12],[17,13,17,16],[18,5,18,8],[18,9,18,12],[18,13,18,16],[8,38,8,41],[4,25,6,25],[7,26,7,29],[7,30,7,33],[7,34,7,37],[7,38,7,41],[8,26,8,29],[8,30,8,33],[8,34,8,37],[3,26,3,29],[3,30,3,33],[3,34,3,37],[3,38,3,41],[2,26,2,29],[2,30,2,33],[2,34,2,37],[2,38,2,41],[14,0,16,0],[12,1,12,4],[12,5,12,8],[12,9,12,12],[12,13,12,16],[13,1,13,4],[13,5,13,8],[13,9,13,12],[13,13,13,16],[9,0,11,0],[9,18,9,20],[7,1,7,4],[7,5,7,8],[7,9,7,12],[7,13,7,16],[8,19,8,21],[8,17,8,18],[7,18,7,20],[4,0,6,0],[8,1,8,4],[8,5,8,8],[8,9,8,12],[8,13,8,16],[3,1,3,4],[3,5,3,8],[3,9,3,12],[3,13,3,16],[1,18,1,20],[2,1,2,4],[2,5,2,8],[2,9,2,12],[2,13,2,16],[0,1,1,4],[0,7,1,8],[0,9,1,13],[0,14,0,15],[1,14,1,15],[0,5,1,5]]}
[null,"NOMBRE DE GYM:",null,null,null,{"$f":"'fiche engagement'!C12","v":0},null,"Equipe:",null,{"$f":"CONCATENATE(INDEX('FFGym Clubs'!$D$3:$D$381,'fiche engagement'!H16),\" - Equipe N°\",'fiche engagement'!E11)","v":{"$error":"#VALUE!"}},null,null,null,null,"Diff +DD",null,"Combi",{"$f":"O2+Q2","v":0.5}]
[null,null,null,null,null,null,null,null,null,null,null,null,null,null,{"$f":"0.5+SUM(AA5:AP6)+SUM(AA10:AP11)+SUM(AA15:AP16)+AD7+AH7+AL7+AP7+SUM(AA20:AP21)+AD22+AH22+AL22+AP22+AP12+AL12+AH12+AD12+AD17+AH17+AL17+AP17","v":0.5},null,{"$f":"MAX(AQ7,AQ12,AQ17,AQ22)","v":0},{"$f":"'fiche engagement'!C9","v":0},"Exigences de composition"]
[null,"Formation",null,null,null,"Formation",null,null,null,"Formation",null,null,null,"Formation",null,null,null,null,null,null,null,null,null,null,null,null,"Formation",null,null,null,"Formation",null,null,null,"Formation",null,null,null,"Formation"]
[null,null,null,null,null,null,null,null,null,null,null,null,null,null,null,null,null,null,null,null,"Formation 8"]
["DIFF","SAUT","PIVOTS + FORCE","MAINTIEN","ACRO","SAUT","PIVOTS + FORCE","MAINTIEN","ACRO","SAUT","PIVOTS + FORCE","MAINTIEN","ACRO","SAUT","PIVOTS + FORCE","MAINTIEN","ACRO",null,null,null,null,null,null,null,null,"DIFF",{"$f":"IFERROR(IF(LEN(B5)=6,1,IF(LEN(B5)=5,IF(OR(RIGHT(B5)=\"A\",RIGHT(B5)=\"B\"),RIGHT(LEFT(B5,2))/10,1),RIGHT(LEFT(B5,2))/10)),0)","v":0},{"$f":"IFERROR(IF(LEN(C5)=6,1,RIGHT(LEFT(C5,3))/10),0)","v":0},{"$f":"IFERROR(IF(LEN(D5)=6,1,RIGHT(LEFT(D5,3))/10),0)","v":0},{"$f":"IFERROR(IF(LEN(E5)=6,1,IF(LEN(E5)=5,IF(OR(RIGHT(E5)=\"A\",RIGHT(E5)=\"B\"),RIGHT(LEFT(E5,2))/10,1),RIGHT(LEFT(E5,2))/10)),0)","v":0},{"$f":"IFERROR(IF(LEN(F5)=6,1,IF(LEN(F5)=5,IF(OR(RIGHT(F5)=\"A\",RIGHT(F5)=\"B\"),RIGHT(LEFT(F5,2))/10,1),RIGHT(LEFT(F5,2))/10)),0)","v":0},{"$f":"IFERROR(IF(LEN(G5)=6,1,RIGHT(LEFT(G5,3))/10),0)","v":0},{"$f":"IFERROR(IF(LEN(H5)=6,1,RIGHT(LEFT(H5,3))/10),0)","v":0},{"$f":"IFERROR(IF(LEN(I5)=6,1,IF(LEN(I5)=5,IF(OR(RIGHT(I5)=\"A\",RIGHT(I5)=\"B\"),RIGHT(LEFT(I5,2))/10,1),RIGHT(LEFT(I5,2))/10)),0)","v":0},{"$f":"IFERROR(IF(LEN(J5)=6,1,IF(LEN(J5)=5,IF(OR(RIGHT(J5)=\"A\",RIGHT(J5)=\"B\"),RIGHT(LEFT(J5,2))/10,1),RIGHT(LEFT(J5,2))/10)),0)","v":0},{"$f":"IFERROR(IF(LEN(K5)=6,1,RIGHT(LEFT(K5,3))/10),0)","v":0},{"$f":"IFERROR(IF(LEN(L5)=6,1,RIGHT(LEFT(L5,3))/10),0)","v":0},{"$f":"IFERROR(IF(LEN(M5)=6,1,IF(LEN(M5)=5,IF(OR(RIGHT(M5)=\"A\",RIGHT(M5)=\"B\"),RIGHT(LEFT(M5,2))/10,1),RIGHT(LEFT(M5,2))/10)),0)","v":0},{"$f":"IFERROR(IF(LEN(N5)=6,1,IF(LEN(N5)=5,IF(OR(RIGHT(N5)=\"A\",RIGHT(N5)=\"B\"),RIGHT(LEFT(N5,2))/10,1),RIGHT(LEFT(N5,2))/10)),0)","v":0},{"$f":"IFERROR(IF(LEN(O5)=6,1,RIGHT(LEFT(O5,3))/10),0)","v":0},{"$f":"IFERROR(IF(LEN(P5)=6,1,RIGHT(LEFT(P5,3))/10),0)","v":0},{"$f":"IFERROR(IF(LEN(Q5)=6,1,IF(LEN(Q5)=5,IF(OR(RIGHT(Q5)=\"A\",RIGHT(Q5)=\"B\"),RIGHT(LEFT(Q5,2))/10,1),RIGHT(LEFT(Q5,2))/10)),0)","v":0}]
[null,"GE","SAUT","PIVOTS + FORCE","MAINTIEN","GE","SAUT","PIVOTS + FORCE","MAINTIEN","GE","SAUT","PIVOTS + FORCE","MAINTIEN","GE","SAUT","PIVOTS + FORCE","MAINTIEN",null,null,null,null,null,null,null,null,null,{"$f":"IFERROR(IF(LEN(B6)=5,1,RIGHT(LEFT(B6,2))/10),0)","v":0},{"$f":"IFERROR(IF(LEN(C6)=6,1,IF(LEN(C6)=5,IF(OR(RIGHT(C6)=\"A\",RIGHT(C6)=\"B\"),RIGHT(LEFT(C6,2))/10,1),RIGHT(LEFT(C6,2))/10)),0)","v":0},{"$f":"IFERROR(IF(LEN(D6)=6,1,RIGHT(LEFT(D6,3))/10),0)","v":0},{"$f":"IFERROR(IF(LEN(E6)=6,1,RIGHT(LEFT(E6,3))/10),0)","v":0},{"$f":"IFERROR(IF(LEN(F6)=5,1,RIGHT(LEFT(F6,2))/10),0)","v":0},{"$f":"IFERROR(IF(LEN(G6)=6,1,IF(LEN(G6)=5,IF(OR(RIGHT(G6)=\"A\",RIGHT(G6)=\"B\"),RIGHT(LEFT(G6,2))/10,1),RIGHT(LEFT(G6,2))/10)),0)","v":0},{"$f":"IFERROR(IF(LEN(H6)=6,1,RIGHT(LEFT(H6,3))/10),0)","v":0},{"$f":"IFERROR(IF(LEN(I6)=6,1,RIGHT(LEFT(I6,3))/10),0)","v":0},{"$f":"IFERROR(IF(LEN(J6)=5,1,RIGHT(LEFT(J6,2))/10),0)","v":0},{"$f":"IFERROR(IF(LEN(K6)=6,1,IF(LEN(K6)=5,IF(OR(RIGHT(K6)=\"A\",RIGHT(K6)=\"B\"),RIGHT(LEFT(K6,2))/10,1),RIGHT(LEFT(K6,2))/10)),0)","v":0},{"$f":"IFERROR(IF(LEN(L6)=6,1,RIGHT(LEFT(L6,3))/10),0)","v":0},{"$f":"IFERROR(IF(LEN(M6)=6,1,RIGHT(LEFT(M6,3))/10),0)","v":0},{"$f":"IFERROR(IF(LEN(N6)=5,1,RIGHT(LEFT(N6,2))/10),0)","v":0},{"$f":"IFERROR(IF(LEN(O6)=6,1,IF(LEN(O6)=5,IF(OR(RIGHT(O6)=\"A\",RIGHT(O6)=\"B\"),RIGHT(LEFT(O6,2))/10,1),RIGHT(LEFT(O6,2))/10)),0)","v":0},{"$f":"IFERROR(IF(LEN(P6)=6,1,RIGHT(LEFT(P6,3))/10),0)","v":0},{"$f":"IFERROR(IF(LEN(Q6)=6,1,RIGHT(LEFT(Q6,3))/10),0)","v":0}]
[null,"Combi",null,null,"ACRO","Combi",null,null,"ACRO","Combi",null,null,"ACRO","Combi",null,null,"ACRO",null,null,null,null,null,null,null,null,null,"Combi",{"$f":"IFERROR(IF(LEN(C7)=6,1,IF(LEN(C7)=5,IF(OR(RIGHT(C7)=\"A\",RIGHT(C7)=\"B\"),RIGHT(LEFT(C7,2))/10,1),RIGHT(LEFT(C7,2))/10)),0)","v":0},{"$f":"IFERROR(IF(LEN(D7)=6,1,IF(LEN(D7)=5,IF(OR(RIGHT(D7)=\"A\",RIGHT(D7)=\"B\"),RIGHT(LEFT(D7,2))/10,1),RIGHT(LEFT(D7,2))/10)),0)","v":0},{"$f":"IFERROR(IF(LEN(E7)=6,1,IF(LEN(E7)=5,IF(OR(RIGHT(E7)=\"A\",RIGHT(E7)=\"B\"),RIGHT(LEFT(E7,2))/10,1),RIGHT(LEFT(E7,2))/10)),0)","v":0},"Combi",{"$f":"IFERROR(IF(LEN(G7)=6,1,IF(LEN(G7)=5,IF(OR(RIGHT(G7)=\"A\",RIGHT(G7)=\"B\"),RIGHT(LEFT(G7,2))/10,1),RIGHT(LEFT(G7,2))/10)),0)","v":0},{"$f":"IFERROR(IF(LEN(H7)=6,1,IF(LEN(H7)=5,IF(OR(RIGHT(H7)=\"A\",RIGHT(H7)=\"B\"),RIGHT(LEFT(H7,2))/10,1),RIGHT(LEFT(H7,2))/10)),0)","v":0},{"$f":"IFERROR(IF(LEN(I7)=6,1,IF(LEN(I7)=5,IF(OR(RIGHT(I7)=\"A\",RIGHT(I7)=\"B\"),RIGHT(LEFT(I7,2))/10,1),RIGHT(LEFT(I7,2))/10)),0)","v":0},"Combi",{"$f":"IFERROR(IF(LEN(K7)=6,1,IF(LEN(K7)=5,IF(OR(RIGHT(K7)=\"A\",RIGHT(K7)=\"B\"),RIGHT(LEFT(K7,2))/10,1),RIGHT(LEFT(K7,2))/10)),0)","v":0},{"$f":"IFERROR(IF(LEN(L7)=6,1,IF(LEN(L7)=5,IF(OR(RIGHT(L7)=\"A\",RIGHT(L7)=\"B\"),RIGHT(LEFT(L7,2))/10,1),RIGHT(LEFT(L7,2))/10)),0)","v":0},{"$f":"IFERROR(IF(LEN(M7)=6,1,IF(LEN(M7)=5,IF(OR(RIGHT(M7)=\"A\",RIGHT(M7)=\"B\"),RIGHT(LEFT(M7,2))/10,1),RIGHT(LEFT(M7,2))/10)),0)","v":0},"Combi",{"$f":"IFERROR(IF(LEN(O7)=6,1,IF(LEN(O7)=5,IF(OR(RIGHT(O7)=\"A\",RIGHT(O7)=\"B\"),RIGHT(LEFT(O7,2))/10,1),RIGHT(LEFT(O7,2))/10)),0)","v":0},{"$f":"IFERROR(IF(LEN(P7)=6,1,IF(LEN(P7)=5,IF(OR(RIGHT(P7)=\"A\",RIGHT(P7)=\"B\"),RIGHT(LEFT(P7,2))/10,1),RIGHT(LEFT(P7,2))/10)),0)","v":0},{"$f":"IFERROR(IF(LEN(Q7)=6,1,IF(LEN(Q7)=5,IF(OR(RIGHT(Q7)=\"A\",RIGHT(Q7)=\"B\"),RIGHT(LEFT(Q7,2))/10,1),RIGHT(LEFT(Q7,2))/10)),0)","v":0},{"$f":"IF(OR(AB7+AC7>0,AF7+AG7>0,AJ7+AK7>0,AN7+AO7>0),0.5,0)","v":0}]
[null,"Formation",null,null,null,"Formation",null,null,null,"Formation",null,null,null,"Formation",null,null,null,null,"Legende pour les difficultés par formation",null,null,null,null,null,null,null,"Formation",null,null,null,"Formation",null,null,null,"Formation",null,null,null,"Formation"]
[null,null,null,null,null,null,null,null,null,null,null,null,null,null,null,null,null,"J = SAUT \nG Groupe Elément\nA Acrobatie",null,"HB = Maintien sur les mains\nSB = maintiens \nHB = Pivots + Eléments de Force"]
["DIFF","SAUT","PIVOTS + FORCE","MAINTIEN","ACRO","SAUT","PIVOTS + FORCE","MAINTIEN","ACRO","SAUT","PIVOTS + FORCE","MAINTIEN","ACRO","SAUT","PIVOTS + FORCE","MAINTIEN","ACRO",null,"Gymnastes",null,null,null,null,null,null,"DIFF",{"$f":"IFERROR(IF(LEN(B10)=6,1,IF(LEN(B10)=5,IF(OR(RIGHT(B10)=\"A\",RIGHT(B10)=\"B\"),RIGHT(LEFT(B10,2))/10,1),RIGHT(LEFT(B10,2))/10)),0)","v":0},{"$f":"IFERROR(IF(LEN(C10)=6,1,RIGHT(LEFT(C10,3))/10),0)","v":0},{"$f":"IFERROR(IF(LEN(D10)=6,1,RIGHT(LEFT(D10,3))/10),0)","v":0},{"$f":"IFERROR(IF(LEN(E10)=6,1,IF(LEN(E10)=5,IF(OR(RIGHT(E10)=\"A\",RIGHT(E10)=\"B\"),RIGHT(LEFT(E10,2))/10,1),RIGHT(LEFT(E10,2))/10)),0)","v":0},{"$f":"IFERROR(IF(LEN(F10)=6,1,IF(LEN(F10)=5,IF(OR(RIGHT(F10)=\"A\",RIGHT(F10)=\"B\"),RIGHT(LEFT(F10,2))/10,1),RIGHT(LEFT(F10,2))/10)),0)","v":0},{"$f":"IFERROR(IF(LEN(G10)=6,1,RIGHT(LEFT(G10,3))/10),0)","v":0},{"$f":"IFERROR(IF(LEN(H10)=6,1,RIGHT(LEFT(H10,3))/10),0)","v":0},{"$f":"IFERROR(IF(LEN(I10)=6,1,IF(LEN(I10)=5,IF(OR(RIGHT(I10)=\"A\",RIGHT(I10)=\"B\"),RIGHT(LEFT(I10,2))/10,1),RIGHT(LEFT(I10,2))/10)),0)","v":0},{"$f":"IFERROR(IF(LEN(J10)=6,1,IF(LEN(J10)=5,IF(OR(RIGHT(J10)=\"A\",RIGHT(J10)=\"B\"),RIGHT(LEFT(J10,2))/10,1),RIGHT(LEFT(J10,2))/10)),0)","v":0},{"$f":"IFERROR(IF(LEN(K10)=6,1,RIGHT(LEFT(K10,3))/10),0)","v":0},{"$f":"IFERROR(IF(LEN(L10)=6,1,RIGHT(LEFT(L10,3))/10),0)","v":0},{"$f":"IFERROR(IF(LEN(M10)=6,1,IF(LEN(M10)=5,IF(OR(RIGHT(M10)=\"A\",RIGHT(M10)=\"B\"),RIGHT(LEFT(M10,2))/10,1),RIGHT(LEFT(M10,2))/10)),0)","v":0},{"$f":"IFERROR(IF(LEN(N10)=6,1,IF(LEN(N10)=5,IF(OR(RIGHT(N10)=\"A\",RIGHT(N10)=\"B\"),RIGHT(LEFT(N10,2))/10,1),RIGHT(LEFT(N10,2))/10)),0)","v":0},{"$f":"IFERROR(IF(LEN(O10)=6,1,RIGHT(LEFT(O10,3))/10),0)","v":0},{"$f":"IFERROR(IF(LEN(P10)=6,1,RIGHT(LEFT(P10,3))/10),0)","v":0},{"$f":"IFERROR(IF(LEN(Q10)=6,1,IF(LEN(Q10)=5,IF(OR(RIGHT(Q10)=\"A\",RIGHT(Q10)=\"B\"),RIGHT(LEFT(Q10,2))/10,1),RIGHT(LEFT(Q10,2))/10)),0)","v":0}]
[null,"GE","SAUT","PIVOTS + FORCE","MAINTIEN","GE","SAUT","PIVOTS + FORCE","MAINTIEN","GE","SAUT","PIVOTS + FORCE","MAINTIEN","GE","SAUT","PIVOTS + FORCE","MAINTIEN",null,null,null,null,null,null,null,null,null,{"$f":"IFERROR(IF(LEN(B11)=5,1,RIGHT(LEFT(B11,2))/10),0)","v":0},{"$f":"IFERROR(IF(LEN(C11)=6,1,IF(LEN(C11)=5,IF(OR(RIGHT(C11)=\"A\",RIGHT(C11)=\"B\"),RIGHT(LEFT(C11,2))/10,1),RIGHT(LEFT(C11,2))/10)),0)","v":0},{"$f":"IFERROR(IF(LEN(D11)=6,1,RIGHT(LEFT(D11,3))/10),0)","v":0},{"$f":"IFERROR(IF(LEN(E11)=6,1,RIGHT(LEFT(E11,3))/10),0)","v":0},{"$f":"IFERROR(IF(LEN(F11)=5,1,RIGHT(LEFT(F11,2))/10),0)","v":0},{"$f":"IFERROR(IF(LEN(G11)=6,1,IF(LEN(G11)=5,IF(OR(RIGHT(G11)=\"A\",RIGHT(G11)=\"B\"),RIGHT(LEFT(G11,2))/10,1),RIGHT(LEFT(G11,2))/10)),0)","v":0},{"$f":"IFERROR(IF(LEN(H11)=6,1,RIGHT(LEFT(H11,3))/10),0)","v":0},{"$f":"IFERROR(IF(LEN(I11)=6,1,RIGHT(LEFT(I11,3))/10),0)","v":0},{"$f":"IFERROR(IF(LEN(J11)=5,1,RIGHT(LEFT(J11,2))/10),0)","v":0},{"$f":"IFERROR(IF(LEN(K11)=6,1,IF(LEN(K11)=5,IF(OR(RIGHT(K11)=\"A\",RIGHT(K11)=\"B\"),RIGHT(LEFT(K11,2))/10,1),RIGHT(LEFT(K11,2))/10)),0)","v":0},{"$f":"IFERROR(IF(LEN(L11)=6,1,RIGHT(LEFT(L11,3))/10),0)","v":0},{"$f":"IFERROR(IF(LEN(M11)=6,1,RIGHT(LEFT(M11,3))/10),0)","v":0},{"$f":"IFERROR(IF(LEN(N11)=5,1,RIGHT(LEFT(N11,2))/10),0)","v":0},{"$f":"IFERROR(IF(LEN(O11)=6,1,IF(LEN(O11)=5,IF(OR(RIGHT(O11)=\"A\",RIGHT(O11)=\"B\"),RIGHT(LEFT(O11,2))/10,1),RIGHT(LEFT(O11,2))/10)),0)","v":0},{"$f":"IFERROR(IF(LEN(P11)=6,1,RIGHT(LEFT(P11,3))/10),0)","v":0},{"$f":"IFERROR(IF(LEN(Q11)=6,1,RIGHT(LEFT(Q11,3))/10),0)","v":0}]
[null,"Combi",null,null,"ACRO","Combi",null,null,"ACRO","Combi",null,null,"ACRO","Combi",null,null,"ACRO",null,null,null,null,null,null,null,null,null,"Combi",{"$f":"IFERROR(IF(LEN(C12)=6,1,IF(LEN(C12)=5,IF(OR(RIGHT(C12)=\"A\",RIGHT(C12)=\"B\"),RIGHT(LEFT(C12,2))/10,1),RIGHT(LEFT(C12,2))/10)),0)","v":0},{"$f":"IFERROR(IF(LEN(D12)=6,1,IF(LEN(D12)=5,IF(OR(RIGHT(D12)=\"A\",RIGHT(D12)=\"B\"),RIGHT(LEFT(D12,2))/10,1),RIGHT(LEFT(D12,2))/10)),0)","v":0},{"$f":"IFERROR(IF(LEN(E12)=6,1,IF(LEN(E12)=5,IF(OR(RIGHT(E12)=\"A\",RIGHT(E12)=\"B\"),RIGHT(LEFT(E12,2))/10,1),RIGHT(LEFT(E12,2))/10)),0)","v":0},"Combi",{"$f":"IFERROR(IF(LEN(G12)=6,1,IF(LEN(G12)=5,IF(OR(RIGHT(G12)=\"A\",RIGHT(G12)=\"B\"),RIGHT(LEFT(G12,2))/10,1),RIGHT(LEFT(G12,2))/10)),0)","v":0},{"$f":"IFERROR(IF(LEN(H12)=6,1,IF(LEN(H12)=5,IF(OR(RIGHT(H12)=\"A\",RIGHT(H12)=\"B\"),RIGHT(LEFT(H12,2))/10,1),RIGHT(LEFT(H12,2))/10)),0)","v":0},{"$f":"IFERROR(IF(LEN(I12)=6,1,IF(LEN(I12)=5,IF(OR(RIGHT(I12)=\"A\",RIGHT(I12)=\"B\"),RIGHT(LEFT(I12,2))/10,1),RIGHT(LEFT(I12,2))/10)),0)","v":0},"Combi",{"$f":"IFERROR(IF(LEN(K12)=6,1,IF(LEN(K12)=5,IF(OR(RIGHT(K12)=\"A\",RIGHT(K12)=\"B\"),RIGHT(LEFT(K12,2))/10,1),RIGHT(LEFT(K12,2))/10)),0)","v":0},{"$f":"IFERROR(IF(LEN(L12)=6,1,IF(LEN(L12)=5,IF(OR(RIGHT(L12)=\"A\",RIGHT(L12)=\"B\"),RIGHT(LEFT(L12,2))/10,1),RIGHT(LEFT(L12,2))/10)),0)","v":0},{"$f":"IFERROR(IF(LEN(M12)=6,1,IF(LEN(M12)=5,IF(OR(RIGHT(M12)=\"A\",RIGHT(M12)=\"B\"),RIGHT(LEFT(M12,2))/10,1),RIGHT(LEFT(M12,2))/10)),0)","v":0},"Combi",{"$f":"IFERROR(IF(LEN(O12)=6,1,IF(LEN(O12)=5,IF(OR(RIGHT(O12)=\"A\",RIGHT(O12)=\"B\"),RIGHT(LEFT(O12,2))/10,1),RIGHT(LEFT(O12,2))/10)),0)","v":0},{"$f":"IFERROR(IF(LEN(P12)=6,1,IF(LEN(P12)=5,IF(OR(RIGHT(P12)=\"A\",RIGHT(P12)=\"B\"),RIGHT(LEFT(P12,2))/10,1),RIGHT(LEFT(P12,2))/10)),0)","v":0},{"$f":"IFERROR(IF(LEN(Q12)=6,1,IF(LEN(Q12)=5,IF(OR(RIGHT(Q12)=\"A\",RIGHT(Q12)=\"B\"),RIGHT(LEFT(Q12,2))/10,1),RIGHT(LEFT(Q12,2))/10)),0)","v":0},{"$f":"IF(OR(AB12+AC12>0,AF12+AG12>0,AJ12+AK12>0,AN12+AO12>0),0.5,0)","v":0}]
[null,"Formation",null,null,null,"Formation",null,null,null,"Formation",null,null,null,"Formation",null,null,null,null,null,null,null,null,null,null,null,null,"Formation",null,null,null,"Formation",null,null,null,"Formation",null,null,null,"Formation"]
[]
["DIFF","SAUT","PIVOTS + FORCE","MAINTIEN","ACRO","SAUT","PIVOTS + FORCE","MAINTIEN","ACRO","SAUT","PIVOTS + FORCE","MAINTIEN","ACRO","SAUT","PIVOTS + FORCE","MAINTIEN","ACRO",null,null,null,null,null,null,null,null,"DIFF",{"$f":"IFERROR(IF(LEN(B15)=6,1,IF(LEN(B15)=5,IF(OR(RIGHT(B15)=\"A\",RIGHT(B15)=\"B\"),RIGHT(LEFT(B15,2))/10,1),RIGHT(LEFT(B15,2))/10)),0)","v":0},{"$f":"IFERROR(IF(LEN(C15)=6,1,RIGHT(LEFT(C15,3))/10),0)","v":0},{"$f":"IFERROR(IF(LEN(D15)=6,1,RIGHT(LEFT(D15,3))/10),0)","v":0},{"$f":"IFERROR(IF(LEN(E15)=6,1,IF(LEN(E15)=5,IF(OR(RIGHT(E15)=\"A\",RIGHT(E15)=\"B\"),RIGHT(LEFT(E15,2))/10,1),RIGHT(LEFT(E15,2))/10)),0)","v":0},{"$f":"IFERROR(IF(LEN(F15)=6,1,IF(LEN(F15)=5,IF(OR(RIGHT(F15)=\"A\",RIGHT(F15)=\"B\"),RIGHT(LEFT(F15,2))/10,1),RIGHT(LEFT(F15,2))/10)),0)","v":0},{"$f":"IFERROR(IF(LEN(G15)=6,1,RIGHT(LEFT(G15,3))/10),0)","v":0},{"$f":"IFERROR(IF(LEN(H15)=6,1,RIGHT(LEFT(H15,3))/10),0)","v":0},{"$f":"IFERROR(IF(LEN(I15)=6,1,IF(LEN(I15)=5,IF(OR(RIGHT(I15)=\"A\",RIGHT(I15)=\"B\"),RIGHT(LEFT(I15,2))/10,1),RIGHT(LEFT(I15,2))/10)),0)","v":0},{"$f":"IFERROR(IF(LEN(J15)=6,1,IF(LEN(J15)=5,IF(OR(RIGHT(J15)=\"A\",RIGHT(J15)=\"B\"),RIGHT(LEFT(J15,2))/10,1),RIGHT(LEFT(J15,2))/10)),0)","v":0},{"$f":"IFERROR(IF(LEN(K15)=6,1,RIGHT(LEFT(K15,3))/10),0)","v":0},{"$f":"IFERROR(IF(LEN(L15)=6,1,RIGHT(LEFT(L15,3))/10),0)","v":0},{"$f":"IFERROR(IF(LEN(M15)=6,1,IF(LEN(M15)=5,IF(OR(RIGHT(M15)=\"A\",RIGHT(M15)=\"B\"),RIGHT(LEFT(M15,2))/10,1),RIGHT(LEFT(M15,2))/10)),0)","v":0},{"$f":"IFERROR(IF(LEN(N15)=6,1,IF(LEN(N15)=5,IF(OR(RIGHT(N15)=\"A\",RIGHT(N15)=\"B\"),RIGHT(LEFT(N15,2))/10,1),RIGHT(LEFT(N15,2))/10)),0)","v":0},{"$f":"IFERROR(IF(LEN(O15)=6,1,RIGHT(LEFT(O15,3))/10),0)","v":0},{"$f":"IFERROR(IF(LEN(P15)=6,1,RIGHT(LEFT(P15,3))/10),0)","v":0},{"$f":"IFERROR(IF(LEN(Q15)=6,1,IF(LEN(Q15)=5,IF(OR(RIGHT(Q15)=\"A\",RIGHT(Q15)=\"B\"),RIGHT(LEFT(Q15,2))/10,1),RIGHT(LEFT(Q15,2))/10)),0)","v":0}]
[null,"GE","SAUT","PIVOTS + FORCE","MAINTIEN","GE","SAUT","PIVOTS + FORCE","MAINTIEN","GE","SAUT","PIVOTS + FORCE","MAINTIEN","GE","SAUT","PIVOTS + FORCE","MAINTIEN",null,null,null,null,null,null,null,null,null,{"$f":"IFERROR(IF(LEN(B16)=5,1,RIGHT(LEFT(B16,2))/10),0)","v":0},{"$f":"IFERROR(IF(LEN(C16)=6,1,IF(LEN(C16)=5,IF(OR(RIGHT(C16)=\"A\",RIGHT(C16)=\"B\"),RIGHT(LEFT(C16,2))/10,1),RIGHT(LEFT(C16,2))/10)),0)","v":0},{"$f":"IFERROR(IF(LEN(D16)=6,1,RIGHT(LEFT(D16,3))/10),0)","v":0},{"$f":"IFERROR(IF(LEN(E16)=6,1,RIGHT(LEFT(E16,3))/10),0)","v":0},{"$f":"IFERROR(IF(LEN(F16)=5,1,RIGHT(LEFT(F16,2))/10),0)","v":0},{"$f":"IFERROR(IF(LEN(G16)=6,1,IF(LEN(G16)=5,IF(OR(RIGHT(G16)=\"A\",RIGHT(G16)=\"B\"),RIGHT(LEFT(G16,2))/10,1),RIGHT(LEFT(G16,2))/10)),0)","v":0},{"$f":"IFERROR(IF(LEN(H16)=6,1,RIGHT(LEFT(H16,3))/10),0)","v":0},{"$f":"IFERROR(IF(LEN(I16)=6,1,RIGHT(LEFT(I16,3))/10),0)","v":0},{"$f":"IFERROR(IF(LEN(J16)=5,1,RIGHT(LEFT(J16,2))/10),0)","v":0},{"$f":"IFERROR(IF(LEN(K16)=6,1,IF(LEN(K16)=5,IF(OR(RIGHT(K16)=\"A\",RIGHT(K16)=\"B\"),RIGHT(LEFT(K16,2))/10,1),RIGHT(LEFT(K16,2))/10)),0)","v":0},{"$f":"IFERROR(IF(LEN(L16)=6,1,RIGHT(LEFT(L16,3))/10),0)","v":0},{"$f":"IFERROR(IF(LEN(M16)=6,1,RIGHT(LEFT(M16,3))/10),0)","v":0},{"$f":"IFERROR(IF(LEN(N16)=5,1,RIGHT(LEFT(N16,2))/10),0)","v":0},{"$f":"IFERROR(IF(LEN(O16)=6,1,IF(LEN(O16)=5,IF(OR(RIGHT(O16)=\"A\",RIGHT(O16)=\"B\"),RIGHT(LEFT(O16,2))/10,1),RIGHT(LEFT(O16,2))/10)),0)","v":0},{"$f":"IFERROR(IF(LEN(P16)=6,1,RIGHT(LEFT(P16,3))/10),0)","v":0},{"$f":"IFERROR(IF(LEN(Q16)=6,1,RIGHT(LEFT(Q16,3))/10),0)","v":0}]
[null,"Combi",null,null,"ACRO","Combi",null,null,"ACRO","Combi",null,null,"ACRO","Combi",null,null,"ACRO",null,null,null,null,null,null,null,null,null,"Combi",{"$f":"IFERROR(IF(LEN(C17)=6,1,IF(LEN(C17)=5,IF(OR(RIGHT(C17)=\"A\",RIGHT(C17)=\"B\"),RIGHT(LEFT(C17,2))/10,1),RIGHT(LEFT(C17,2))/10)),0)","v":0},{"$f":"IFERROR(IF(LEN(D17)=6,1,IF(LEN(D17)=5,IF(OR(RIGHT(D17)=\"A\",RIGHT(D17)=\"B\"),RIGHT(LEFT(D17,2))/10,1),RIGHT(LEFT(D17,2))/10)),0)","v":0},{"$f":"IFERROR(IF(LEN(E17)=6,1,IF(LEN(E17)=5,IF(OR(RIGHT(E17)=\"A\",RIGHT(E17)=\"B\"),RIGHT(LEFT(E17,2))/10,1),RIGHT(LEFT(E17,2))/10)),0)","v":0},"Combi",{"$f":"IFERROR(IF(LEN(G17)=6,1,IF(LEN(G17)=5,IF(OR(RIGHT(G17)=\"A\",RIGHT(G17)=\"B\"),RIGHT(LEFT(G17,2))/10,1),RIGHT(LEFT(G17,2))/10)),0)","v":0},{"$f":"IFERROR(IF(LEN(H17)=6,1,IF(LEN(H17)=5,IF(OR(RIGHT(H17)=\"A\",RIGHT(H17)=\"B\"),RIGHT(LEFT(H17,2))/10,1),RIGHT(LEFT(H17,2))/10)),0)","v":0},{"$f":"IFERROR(IF(LEN(I17)=6,1,IF(LEN(I17)=5,IF(OR(RIGHT(I17)=\"A\",RIGHT(I17)=\"B\"),RIGHT(LEFT(I17,2))/10,1),RIGHT(LEFT(I17,2))/10)),0)","v":0},"Combi",{"$f":"IFERROR(IF(LEN(K17)=6,1,IF(LEN(K17)=5,IF(OR(RIGHT(K17)=\"A\",RIGHT(K17)=\"B\"),RIGHT(LEFT(K17,2))/10,1),RIGHT(LEFT(K17,2))/10)),0)","v":0},{"$f":"IFERROR(IF(LEN(L17)=6,1,IF(LEN(L17)=5,IF(OR(RIGHT(L17)=\"A\",RIGHT(L17)=\"B\"),RIGHT(LEFT(L17,2))/10,1),RIGHT(LEFT(L17,2))/10)),0)","v":0},{"$f":"IFERROR(IF(LEN(M17)=6,1,IF(LEN(M17)=5,IF(OR(RIGHT(M17)=\"A\",RIGHT(M17)=\"B\"),RIGHT(LEFT(M17,2))/10,1),RIGHT(LEFT(M17,2))/10)),0)","v":0},"Combi",{"$f":"IFERROR(IF(LEN(O17)=6,1,IF(LEN(O17)=5,IF(OR(RIGHT(O17)=\"A\",RIGHT(O17)=\"B\"),RIGHT(LEFT(O17,2))/10,1),RIGHT(LEFT(O17,2))/10)),0)","v":0},{"$f":"IFERROR(IF(LEN(P17)=6,1,IF(LEN(P17)=5,IF(OR(RIGHT(P17)=\"A\",RIGHT(P17)=\"B\"),RIGHT(LEFT(P17,2))/10,1),RIGHT(LEFT(P17,2))/10)),0)","v":0},{"$f":"IFERROR(IF(LEN(Q17)=6,1,IF(LEN(Q17)=5,IF(OR(RIGHT(Q17)=\"A\",RIGHT(Q17)=\"B\"),RIGHT(LEFT(Q17,2))/10,1),RIGHT(LEFT(Q17,2))/10)),0)","v":0},{"$f":"IF(OR(AB17+AC17>0,AF17+AG17>0,AJ17+AK17>0,AN17+AO17>0),0.5,0)","v":0}]
[null,"Formation",null,null,null,"Formation",null,null,null,"Formation",null,null,null,"Formation",null,null,null,null,null,null,null,null,null,null,null,null,"Formation",null,null,null,"Formation",null,null,null,"Formation",null,null,null,"Formation"]
[]
["DIFF","SAUT","PIVOTS + FORCE","MAINTIEN","ACRO","SAUT","PIVOTS + FORCE","MAINTIEN","ACRO","SAUT","PIVOTS + FORCE","MAINTIEN","ACRO","SAUT","PIVOTS + FORCE","MAINTIEN","ACRO",null,null,null,null,null,null,null,null,null,{"$f":"IFERROR(IF(LEN(B20)=6,1,IF(LEN(B20)=5,IF(OR(RIGHT(B20)=\"A\",RIGHT(B20)=\"B\"),RIGHT(LEFT(B20,2))/10,1),RIGHT(LEFT(B20,2))/10)),0)","v":0},{"$f":"IFERROR(IF(LEN(C20)=6,1,RIGHT(LEFT(C20,3))/10),0)","v":0},{"$f":"IFERROR(IF(LEN(D20)=6,1,RIGHT(LEFT(D20,3))/10),0)","v":0},{"$f":"IFERROR(IF(LEN(E20)=6,1,IF(LEN(E20)=5,IF(OR(RIGHT(E20)=\"A\",RIGHT(E20)=\"B\"),RIGHT(LEFT(E20,2))/10,1),RIGHT(LEFT(E20,2))/10)),0)","v":0},{"$f":"IFERROR(IF(LEN(F20)=6,1,IF(LEN(F20)=5,IF(OR(RIGHT(F20)=\"A\",RIGHT(F20)=\"B\"),RIGHT(LEFT(F20,2))/10,1),RIGHT(LEFT(F20,2))/10)),0)","v":0},{"$f":"IFERROR(IF(LEN(G20)=6,1,RIGHT(LEFT(G20,3))/10),0)","v":0},{"$f":"IFERROR(IF(LEN(H20)=6,1,RIGHT(LEFT(H20,3))/10),0)","v":0},{"$f":"IFERROR(IF(LEN(I20)=6,1,IF(LEN(I20)=5,IF(OR(RIGHT(I20)=\"A\",RIGHT(I20)=\"B\"),RIGHT(LEFT(I20,2))/10,1),RIGHT(LEFT(I20,2))/10)),0)","v":0},{"$f":"IFERROR(IF(LEN(J20)=6,1,IF(LEN(J20)=5,IF(OR(RIGHT(J20)=\"A\",RIGHT(J20)=\"B\"),RIGHT(LEFT(J20,2))/10,1),RIGHT(LEFT(J20,2))/10)),0)","v":0},{"$f":"IFERROR(IF(LEN(K20)=6,1,RIGHT(LEFT(K20,3))/10),0)","v":0},{"$f":"IFERROR(IF(LEN(L20)=6,1,RIGHT(LEFT(L20,3))/10),0)","v":0},{"$f":"IFERROR(IF(LEN(M20)=6,1,IF(LEN(M20)=5,IF(OR(RIGHT(M20)=\"A\",RIGHT(M20)=\"B\"),RIGHT(LEFT(M20,2))/10,1),RIGHT(LEFT(M20,2))/10)),0)","v":0},{"$f":"IFERROR(IF(LEN(N20)=6,1,IF(LEN(N20)=5,IF(OR(RIGHT(N20)=\"A\",RIGHT(N20)=\"B\"),RIGHT(LEFT(N20,2))/10,1),RIGHT(LEFT(N20,2))/10)),0)","v":0},{"$f":"IFERROR(IF(LEN(O20)=6,1,RIGHT(LEFT(O20,3))/10),0)","v":0},{"$f":"IFERROR(IF(LEN(P20)=6,1,RIGHT(LEFT(P20,3))/10),0)","v":0},{"$f":"IFERROR(IF(LEN(Q20)=6,1,IF(LEN(Q20)=5,IF(OR(RIGHT(Q20)=\"A\",RIGHT(Q20)=\"B\"),RIGHT(LEFT(Q20,2))/10,1),RIGHT(LEFT(Q20,2))/10)),0)","v":0}]
[null,"GE","SAUT","PIVOTS + FORCE","MAINTIEN","GE","SAUT","PIVOTS + FORCE","MAINTIEN","GE","SAUT","PIVOTS + FORCE","MAINTIEN","GE","SAUT","PIVOTS + FORCE","MAINTIEN",null,null,null,null,null,null,null,null,null,{"$f":"IFERROR(IF(LEN(B21)=5,1,RIGHT(LEFT(B21,2))/10),0)","v":0},{"$f":"IFERROR(IF(LEN(C21)=6,1,IF(LEN(C21)=5,IF(OR(RIGHT(C21)=\"A\",RIGHT(C21)=\"B\"),RIGHT(LEFT(C21,2))/10,1),RIGHT(LEFT(C21,2))/10)),0)","v":0},{"$f":"IFERROR(IF(LEN(D21)=6,1,RIGHT(LEFT(D21,3))/10),0)","v":0},{"$f":"IFERROR(IF(LEN(E21)=6,1,RIGHT(LEFT(E21,3))/10),0)","v":0},{"$f":"IFERROR(IF(LEN(F21)=5,1,RIGHT(LEFT(F21,2))/10),0)","v":0},{"$f":"IFERROR(IF(LEN(G21)=6,1,IF(LEN(G21)=5,IF(OR(RIGHT(G21)=\"A\",RIGHT(G21)=\"B\"),RIGHT(LEFT(G21,2))/10,1),RIGHT(LEFT(G21,2))/10)),0)","v":0},{"$f":"IFERROR(IF(LEN(H21)=6,1,RIGHT(LEFT(H21,3))/10),0)","v":0},{"$f":"IFERROR(IF(LEN(I21)=6,1,RIGHT(LEFT(I21,3))/10),0)","v":0},{"$f":"IFERROR(IF(LEN(J21)=5,1,RIGHT(LEFT(J21,2))/10),0)","v":0},{"$f":"IFERROR(IF(LEN(K21)=6,1,IF(LEN(K21)=5,IF(OR(RIGHT(K21)=\"A\",RIGHT(K21)=\"B\"),RIGHT(LEFT(K21,2))/10,1),RIGHT(LEFT(K21,2))/10)),0)","v":0},{"$f":"IFERROR(IF(LEN(L21)=6,1,RIGHT(LEFT(L21,3))/10),0)","v":0},{"$f":"IFERROR(IF(LEN(M21)=6,1,RIGHT(LEFT(M21,3))/10),0)","v":0},{"$f":"IFERROR(IF(LEN(N21)=5,1,RIGHT(LEFT(N21,2))/10),0)","v":0},{"$f":"IFERROR(IF(LEN(O21)=6,1,IF(LEN(O21)=5,IF(OR(RIGHT(O21)=\"A\",RIGHT(O21)=\"B\"),RIGHT(LEFT(O21,2))/10,1),RIGHT(LEFT(O21,2))/10)),0)","v":0},{"$f":"IFERROR(IF(LEN(P21)=6,1,RIGHT(LEFT(P21,3))/10),0)","v":0},{"$f":"IFERROR(IF(LEN(Q21)=6,1,RIGHT(LEFT(Q21,3))/10),0)","v":0}]
[null,"Combi",null,null,"ACRO","Combi",null,null,"ACRO","Combi",null,null,"ACRO","Combi",null,null,"ACRO",null,null,null,null,null,null,null,null,null,"Combi",{"$f":"IFERROR(IF(LEN(C22)=6,1,IF(LEN(C22)=5,IF(OR(RIGHT(C22)=\"A\",RIGHT(C22)=\"B\"),RIGHT(LEFT(C22,2))/10,1),RIGHT(LEFT(C22,2))/10)),0)","v":0},{"$f":"IFERROR(IF(LEN(D22)=6,1,IF(LEN(D22)=5,IF(OR(RIGHT(D22)=\"A\",RIGHT(D22)=\"B\"),RIGHT(LEFT(D22,2))/10,1),RIGHT(LEFT(D22,2))/10)),0)","v":0},{"$f":"IFERROR(IF(LEN(E22)=6,1,IF(LEN(E22)=5,IF(OR(RIGHT(E22)=\"A\",RIGHT(E22)=\"B\"),RIGHT(LEFT(E22,2))/10,1),RIGHT(LEFT(E22,2))/10)),0)","v":0},"Combi",{"$f":"IFERROR(IF(LEN(G22)=6,1,IF(LEN(G22)=5,IF(OR(RIGHT(G22)=\"A\",RIGHT(G22)=\"B\"),RIGHT(LEFT(G22,2))/10,1),RIGHT(LEFT(G22,2))/10)),0)","v":0},{"$f":"IFERROR(IF(LEN(H22)=6,1,IF(LEN(H22)=5,IF(OR(RIGHT(H22)=\"A\",RIGHT(H22)=\"B\"),RIGHT(LEFT(H22,2))/10,1),RIGHT(LEFT(H22,2))/10)),0)","v":0},{"$f":"IFERROR(IF(LEN(I22)=6,1,IF(LEN(I22)=5,IF(OR(RIGHT(I22)=\"A\",RIGHT(I22)=\"B\"),RIGHT(LEFT(I22,2))/10,1),RIGHT(LEFT(I22,2))/10)),0)","v":0},"Combi",{"$f":"IFERROR(IF(LEN(K22)=6,1,IF(LEN(K22)=5,IF(OR(RIGHT(K22)=\"A\",RIGHT(K22)=\"B\"),RIGHT(LEFT(K22,2))/10,1),RIGHT(LEFT(K22,2))/10)),0)","v":0},{"$f":"IFERROR(IF(LEN(L22)=6,1,IF(LEN(L22)=5,IF(OR(RIGHT(L22)=\"A\",RIGHT(L22)=\"B\"),RIGHT(LEFT(L22,2))/10,1),RIGHT(LEFT(L22,2))/10)),0)","v":0},{"$f":"IFERROR(IF(LEN(M22)=6,1,IF(LEN(M22)=5,IF(OR(RIGHT(M22)=\"A\",RIGHT(M22)=\"B\"),RIGHT(LEFT(M22,2))/10,1),RIGHT(LEFT(M22,2))/10)),0)","v":0},"Combi",{"$f":"IFERROR(IF(LEN(O22)=6,1,IF(LEN(O22)=5,IF(OR(RIGHT(O22)=\"A\",RIGHT(O22)=\"B\"),RIGHT(LEFT(O22,2))/10,1),RIGHT(LEFT(O22,2))/10)),0)","v":0},{"$f":"IFERROR(IF(LEN(P22)=6,1,IF(LEN(P22)=5,IF(OR(RIGHT(P22)=\"A\",RIGHT(P22)=\"B\"),RIGHT(LEFT(P22,2))/10,1),RIGHT(LEFT(P22,2))/10)),0)","v":0},{"$f":"IFERROR(IF(LEN(Q22)=6,1,IF(LEN(Q22)=5,IF(OR(RIGHT(Q22)=\"A\",RIGHT(Q22)=\"B\"),RIGHT(LEFT(Q22,2))/10,1),RIGHT(LEFT(Q22,2))/10)),0)","v":0},{"$f":"IF(OR(AB22+AC22>0,AF22+AG22>0,AJ22+AK22>0,AN22+AO22>0),0.5,0)","v":0}]

{"sheet":"dif tumbling","index":29,"n_rows":41,"n_cols":14,"rows_kept":41,"cut":false,"hidden":false,"merged":[[34,2,34,9],[16,2,21,9],[25,2,25,9],[31,2,31,9],[28,2,28,9],[30,2,30,9],[0,1,0,2],[1,1,1,2],[2,1,2,2],[3,1,3,2],[4,1,4,2],[6,1,6,2],[7,1,7,2],[8,1,8,2],[29,2,29,9],[9,1,9,2],[39,2,39,9],[5,1,5,2],[40,2,40,9],[22,2,22,9],[10,1,10,2],[11,1,11,2],[12,1,12,2],[15,2,15,9],[26,2,26,9],[27,2,27,9],[13,2,13,10],[35,2,35,9],[36,2,36,9],[37,2,37,9],[38,2,38,9],[11,9,11,10]]}
[null,"Difficultés",null,"Nat A","Nat B","Nat C","Fed A/C","Fed B",null,null,null,"Case option pour les series avant arriere"]
["Av","Roulade avant",null,null,null,null,"0.3","0.5",null,null,null,1,2,1]
["Avt \nArr","Roue",null,null,"0.5","0.5","0.5",1]
["Arr","Roue pied pied",null,null,"0.5","0.5","0.5",1,null,null,null,{"$f":"'fiche engagement'!C9","v":0}]
["Arr","Rondade",null,null,"0.5","0.5",1,"1.5"]
["Avt","Saut de mains",null,"0.3",1,1,"1.5",2,null,"1/2 vrille",0.2]
["Avt","Saut de mains un pied",null,"0.3",1,1,"1.5",2,"TOTAL","carpé",0.1]
["Avt","Flip avant",null,"0.7","1.2","1.2",null,null,"DIFF","tendu",0.2]
["Arr","Flip arrière",null,"0.3",1,1,"1.5",2,{"$f":"IF(OR('fiche engagement'!C9=\"FédéralB\",'fiche engagement'!C9=\"FédéralA\"),K32+K41,K23+K32+K41)","v":0},"double",1]
["Avt","Salto en avant",null,1,"1.4","1.4",2,null,null,"Salto salto",0.2]
["Arr","Salto en arrière",null,1,"1.4","1.4",2,null,null,"salto au départ",0.1]
["Avt","Saut de mains Salto",null,"1.2","1.6","1.6",null,null,"Catégorie:",{"$f":"CONCATENATE('fiche engagement'!C9,\" \", 'fiche engagement'!C11,\" \", 'fiche engagement'!E9)","v":"  Finale A"}]
["Avt","Flip avant Salto",null,"1.4","1.8"]
[null,"Equipe",{"$f":"CONCATENATE(INDEX('FFGym Clubs'!$D$3:$D$381,'fiche engagement'!H16),\" - Equipe N°\",'fiche engagement'!E11)","v":"AG DE LA MONTAGNE - Equipe N°1"}]
[null,"1er Passage"]
["N°","Prénom du gym",null,null,null,null,null,null,null,null,"Valeur"]
[1]
[2]
[3]
[4]
[5]
[6]
[null,null,"Moyenne du passage : ",null,null,null,null,null,null,null,{"$f":"ROUND(SUM(K17:K22)/6,1)","v":0}]
[null,"2ème Passage"]
["N°","Prénom du gym",null,null,null,null,null,null,null,null,"Valeur"]
[1]
[2]
[3]
[4]
[5]
[6]
[null,null,"Moyenne du passage : ",null,null,null,null,null,null,null,{"$f":"IF(K26<>\"\",ROUND(AVERAGE(K26:K31),1),0)","v":0}]
[null,"3ème Passage"]
["N°","Prénom du gym",null,null,null,null,null,null,null,null,"Valeur"]
[1]
[2]
[3]
[4]
[5]
[6]
[null,null,"Moyenne du passage : ",null,null,null,null,null,null,null,{"$f":"IF(K35<>\"\",ROUND(AVERAGE(K35:K40),1),0)","v":0}]

{"sheet":"dif mini tramp","index":30,"n_rows":41,"n_cols":14,"rows_kept":41,"cut":false,"hidden":false,"merged":[[28,2,28,9],[29,2,29,9],[38,2,38,9],[39,2,39,9],[30,2,30,9],[34,2,34,9],[35,2,35,9],[36,2,36,9],[37,2,37,9],[33,7,33,9],[33,2,33,6],[6,9,6,10],[26,2,26,9],[27,2,27,9],[16,2,21,9],[25,2,25,9],[12,9,12,10],[13,2,13,10],[15,2,15,9],[10,1,10,2],[11,1,11,2],[12,1,12,2],[9,1,9,2],[24,7,24,9],[24,2,24,6],[0,1,0,2],[5,1,5,2],[6,1,6,2],[7,1,7,2],[8,1,8,2]]}
[null,"Difficulté",null,"Nat A","Nat B","Nat C","Fed A/C","Fed B",null,null,null,"Case option pour les series avant arriere"]
[null,"Rondade",null,"0.5",1,1,null,null,null,null,null,1,2,2]
[null,"Rondade demi -Pétrick",null,"0.7","1.2"]
[null,"Lune",null,1,"1.6","1.6",null,null,null,null,null,{"$f":"'fiche engagement'!$C$9","v":0}]
[null,"Lune vrille",null,"1.4",2]
[null,"Tsukahara",null,"1.6"]
[null,"Lune salto",null,"1.8",null,null,null,null,null,"Valorisation"]
[null,"Saut droit",null,null,null,null,1,"1.2","TOTAL","1/2 vrille",0.2]
[null,"Saut groupé",null,null,null,null,1,"1.5","DIFF","carpé",0.1]
[null,"Saut écart carpé",null,null,1,1,"1.3 ","1.8 ",{"$f":"IF(OR('fiche engagement'!C9=\"FédéralB\",'fiche engagement'!C9=\"FédéralA\"),K32+K41,K23+K32+K41)","v":0},"tendu",0.2]
[null,"Saut écart carpé",null,null,1,1,"1.3 ","1.8 ",null,"double",1]
[null,"Salto",null,1,"1.4","1.4","1.8",2]
[null,null,null,null,null,null,null,null,"Catégorie ",{"$f":"CONCATENATE('fiche engagement'!C9,\" \", 'fiche engagement'!C11,\" \", 'fiche engagement'!E9)","v":"  Finale A"}]
[null,"Equipe ",{"$f":"CONCATENATE(INDEX('FFGym Clubs'!$D$3:$D$381,'fiche engagement'!H16),\" - Equipe N°\",'fiche engagement'!E11)","v":"AG DE LA MONTAGNE - Equipe N°1"}]
[null,"1er Passage"]
["N°","Prénom du gym",null,null,null,null,null,null,null,null,"Valeur"]
[1]
[2]
[3]
[4]
[5]
[6]
[null,null,null,null,null,null,null,null,null,"Moyenne du passage : ",{"$f":"ROUND(SUM(K17:K22)/6,1)","v":0}]
[null,"2ème Passage"]
["N°","Prénom du gym",null,null,null,null,null,null,null,null,"Valeur"]
[1]
[2]
[3]
[4]
[5]
[6]
[null,null,null,null,null,null,null,null,null,"Moyenne du passage : ",{"$f":"IF(K26=\"\",0,ROUND(AVERAGE(K26:K31),1))","v":0}]
[null,"3ème Passage"]
["N°","Prénom du gym",null,null,null,null,null,null,null,null,"Valeur"]
[1]
[2]
[3]
[4]
[5]
[6]
[null,null,null,null,null,null,null,null,null,null,{"$f":"IF(K35=\"\",0,ROUND(AVERAGE(K35:K40),1))","v":0}]